Publisher Label,Publisher URI,Body Name,Service Area Categorisation,Service Division Categorisation,Expenses Type,Date,Transaction Number,Amount,Capital or Revenue,Supplier Name,Merchant Category
Peterborough,http://opendatacommunities.org/id/unitary-authority/peterborough,Peterborough City Council,Children's & Safeguarding,Commissioning - CSC,Third Party Payments,01/02/2018 00:00,8000109547,40152.13,Revenue,IAS TACT,Third Party Payments - Contract
Peterborough,http://opendatacommunities.org/id/unitary-authority/peterborough,Peterborough City Council,Corporate Property,Commercial Propety,Services,02/02/2018 00:00,30160404,2047.5,Revenue,Barker Storey Matthews,Valuations
Peterborough,http://opendatacommunities.org/id/unitary-authority/peterborough,Peterborough City Council,Communities,Cohesion,Services,02/02/2018 00:00,30160623,525,Revenue,PARCA,Childcare
Peterborough,http://opendatacommunities.org/id/unitary-authority/peterborough,Peterborough City Council,Children's & Safeguarding,Commissioning - CSC,Services,02/02/2018 00:00,30160631,1526,Revenue,K2 CARE LTD,Purchased Social Care Services
Peterborough,http://opendatacommunities.org/id/unitary-authority/peterborough,Peterborough City Council,Corporate Property,Commercial Propety,Repair & Maintenance of Buildings,02/02/2018 00:00,30160690,3650,Revenue,Tesam Distribution Ltd,Premises Repairs
Peterborough,http://opendatacommunities.org/id/unitary-authority/peterborough,Peterborough City Council,Corporate Property,Office Accomodation,Cleaning & Domestic Supplies,02/02/2018 00:00,30160691,1477.28,Revenue,Beebys Ltd,Cleaning
Peterborough,http://opendatacommunities.org/id/unitary-authority/peterborough,Peterborough City Council,City Servs & Communications,Regulatory Services,Services,02/02/2018 00:00,30160700,919.67,Revenue,Cambridgeshire & Peterborough Fire Authority,Hired Services
Peterborough,http://opendatacommunities.org/id/unitary-authority/peterborough,Peterborough City Council,City Servs & Communications,Parking Services,Services,02/02/2018 00:00,30160719,775,Revenue,C N SECURITY,Security
Peterborough,http://opendatacommunities.org/id/unitary-authority/peterborough,Peterborough City Council,City Servs & Communications,Parking Services,Services,02/02/2018 00:00,30160721,675,Revenue,C N SECURITY,Security
Peterborough,http://opendatacommunities.org/id/unitary-authority/peterborough,Peterborough City Council,City Servs & Communications,"Markets, Tourism & Events",Advertising,02/02/2018 00:00,30160723,555,Revenue,Fastsigns Peterborough,Advertising
Peterborough,http://opendatacommunities.org/id/unitary-authority/peterborough,Peterborough City Council,Commissioning and Commercial Operations,Clare Lodge,"Tools, Equipment, Furniture & Materials",02/02/2018 00:00,30160727,832,Revenue,Link Design,Furniture And Equipment Purchase
Peterborough,http://opendatacommunities.org/id/unitary-authority/peterborough,Peterborough City Council,Corporate,Corporate,Non Revenue,02/02/2018 00:00,30160735,700,Capital,Barker Storey Matthews,Consultants Fees
Peterborough,http://opendatacommunities.org/id/unitary-authority/peterborough,Peterborough City Council,Communities,Targeted Youth Service,Services,02/02/2018 00:00,30160851,1200,Revenue,PGL Travel Ltd,Programmes
Peterborough,http://opendatacommunities.org/id/unitary-authority/peterborough,Peterborough City Council,Corporate,Corporate,Non Revenue,02/02/2018 00:00,30160864,4391,Capital,A W Morley T/A Morley Building Services,Grant Payment
Peterborough,http://opendatacommunities.org/id/unitary-authority/peterborough,Peterborough City Council,Adults,Independent Sector Placements,Services,02/02/2018 00:00,30160892,1324.88,Revenue,ABOUT ME CARE AND SUPPORT LTD,Home Care
Peterborough,http://opendatacommunities.org/id/unitary-authority/peterborough,Peterborough City Council,Financial Services,Finance,Agency Staff,02/02/2018 00:00,30161071,760.48,Revenue,Morgan Hunt UK Ltd,External Temporary Staff
Peterborough,http://opendatacommunities.org/id/unitary-authority/peterborough,Peterborough City Council,Corporate,Corporate,Non Revenue,02/02/2018 00:00,30161161,3228,Capital,A W Morley T/A Morley Building Services,Grant Payment
Peterborough,http://opendatacommunities.org/id/unitary-authority/peterborough,Peterborough City Council,Corporate,Corporate,Non Revenue,02/02/2018 00:00,30161163,4470,Capital,A W Morley T/A Morley Building Services,Grant Payment
Peterborough,http://opendatacommunities.org/id/unitary-authority/peterborough,Peterborough City Council,Corporate,Corporate,Non Revenue,02/02/2018 00:00,30161166,1740,Capital,Obam Domestic Lift Services Ltd,Grant Payment
Peterborough,http://opendatacommunities.org/id/unitary-authority/peterborough,Peterborough City Council,Adults,Independent Sector Placements,Services,02/02/2018 00:00,30161259,2480,Revenue,Kemps Place Ltd,Residential Care
Peterborough,http://opendatacommunities.org/id/unitary-authority/peterborough,Peterborough City Council,Adults,Independent Sector Placements,Services,02/02/2018 00:00,30161260,1071,Revenue,Kemps Place Ltd,Residential Care
Peterborough,http://opendatacommunities.org/id/unitary-authority/peterborough,Peterborough City Council,Adults,Independent Sector Placements,Services,02/02/2018 00:00,30161262,2680,Revenue,Kemps Place Ltd,Residential Care
Peterborough,http://opendatacommunities.org/id/unitary-authority/peterborough,Peterborough City Council,HR,HR,Services,02/02/2018 00:00,30161332,2800,Revenue,Jan Trethewey Ltd,Consultants Fees
Peterborough,http://opendatacommunities.org/id/unitary-authority/peterborough,Peterborough City Council,Legal & Democratic,Legal Services,Services,02/02/2018 00:00,30161346,700,Revenue,"Martignetti, Mr Ian",Legal Costs
Peterborough,http://opendatacommunities.org/id/unitary-authority/peterborough,Peterborough City Council,City Servs & Communications,"Markets, Tourism & Events",Services,02/02/2018 00:00,30161351,1723,Revenue,C N SECURITY,Security
Peterborough,http://opendatacommunities.org/id/unitary-authority/peterborough,Peterborough City Council,Corporate,Corporate,Non Revenue,02/02/2018 00:00,30161358,1950,Capital,EMS Stairlifts,Grant Payment
Peterborough,http://opendatacommunities.org/id/unitary-authority/peterborough,Peterborough City Council,Education,Financing - Resources,Services,02/02/2018 00:00,30161417,54000,Revenue,New College Stamford,Education Expenses
Peterborough,http://opendatacommunities.org/id/unitary-authority/peterborough,Peterborough City Council,Education,Financing - Resources,Services,02/02/2018 00:00,30161418,117713.89,Revenue,New College Stamford,Education Expenses
Peterborough,http://opendatacommunities.org/id/unitary-authority/peterborough,Peterborough City Council,Education,Financing - Resources,Services,02/02/2018 00:00,30161419,117713.89,Revenue,New College Stamford,Education Expenses
Peterborough,http://opendatacommunities.org/id/unitary-authority/peterborough,Peterborough City Council,Children's & Safeguarding,Access to Resources & Specialist Commissioning,Services,02/02/2018 00:00,30161583,11712,Revenue,Positive Steps (Care Services) Ltd,Boarding Out Allowances
Peterborough,http://opendatacommunities.org/id/unitary-authority/peterborough,Peterborough City Council,Adults,Day opportunities - Older People,Agency Staff,02/02/2018 00:00,30161604,-1567,Revenue,Caritas Recruitment,External Temporary Staff
Peterborough,http://opendatacommunities.org/id/unitary-authority/peterborough,Peterborough City Council,Amey Peterborough & Waste Management,Waste Management,Services,02/02/2018 00:00,30161690,5500,Revenue,Pinsent Masons,Consultants Fees
Peterborough,http://opendatacommunities.org/id/unitary-authority/peterborough,Peterborough City Council,Financial Services,Finance,Agency Staff,02/02/2018 00:00,30161694,4200,Revenue,Green Park Interim and Exec Ltd,External Temporary Staff
Peterborough,http://opendatacommunities.org/id/unitary-authority/peterborough,Peterborough City Council,Adults,Independent Sector Placements,Services,02/02/2018 00:00,30161760,1952,Revenue,Thera East Anglia,Day Care
Peterborough,http://opendatacommunities.org/id/unitary-authority/peterborough,Peterborough City Council,Adults,Independent Sector Placements,Services,02/02/2018 00:00,30161761,1952,Revenue,Thera East Anglia,Day Care
Peterborough,http://opendatacommunities.org/id/unitary-authority/peterborough,Peterborough City Council,Adults,Independent Sector Placements,Services,02/02/2018 00:00,30161763,2812,Revenue,Thera East Anglia,Day Care
Peterborough,http://opendatacommunities.org/id/unitary-authority/peterborough,Peterborough City Council,Adults,Independent Sector Placements,Services,02/02/2018 00:00,30161765,1952,Revenue,Thera East Anglia,Day Care
Peterborough,http://opendatacommunities.org/id/unitary-authority/peterborough,Peterborough City Council,Adults,Independent Sector Placements,Services,02/02/2018 00:00,30161789,1008,Revenue,Thera East Anglia,Day Care
Peterborough,http://opendatacommunities.org/id/unitary-authority/peterborough,Peterborough City Council,Adults,Independent Sector Placements,Services,02/02/2018 00:00,30161790,1586,Revenue,Thera East Anglia,Day Care
Peterborough,http://opendatacommunities.org/id/unitary-authority/peterborough,Peterborough City Council,Adults,Independent Sector Placements,Services,02/02/2018 00:00,30161792,602,Revenue,Thera East Anglia,Day Care
Peterborough,http://opendatacommunities.org/id/unitary-authority/peterborough,Peterborough City Council,Adults,Independent Sector Placements,Services,02/02/2018 00:00,30161797,1952,Revenue,Thera East Anglia,Day Care
Peterborough,http://opendatacommunities.org/id/unitary-authority/peterborough,Peterborough City Council,Adults,Independent Sector Placements,Services,02/02/2018 00:00,30161799,1008,Revenue,Thera East Anglia,Day Care
Peterborough,http://opendatacommunities.org/id/unitary-authority/peterborough,Peterborough City Council,Adults,Independent Sector Placements,Services,02/02/2018 00:00,30161800,688,Revenue,Thera East Anglia,Day Care
Peterborough,http://opendatacommunities.org/id/unitary-authority/peterborough,Peterborough City Council,Adults,Independent Sector Placements,Services,02/02/2018 00:00,30161803,1952,Revenue,Thera East Anglia,Day Care
Peterborough,http://opendatacommunities.org/id/unitary-authority/peterborough,Peterborough City Council,Adults,Independent Sector Placements,Services,02/02/2018 00:00,30161804,1008,Revenue,Thera East Anglia,Day Care
Peterborough,http://opendatacommunities.org/id/unitary-authority/peterborough,Peterborough City Council,Adults,Independent Sector Placements,Services,02/02/2018 00:00,30161806,882,Revenue,Thera East Anglia,Day Care
Peterborough,http://opendatacommunities.org/id/unitary-authority/peterborough,Peterborough City Council,Adults,Independent Sector Placements,Services,02/02/2018 00:00,30161810,1008,Revenue,Thera East Anglia,Day Care
Peterborough,http://opendatacommunities.org/id/unitary-authority/peterborough,Peterborough City Council,Adults,Independent Sector Placements,Services,02/02/2018 00:00,30161812,1952,Revenue,Thera East Anglia,Day Care
Peterborough,http://opendatacommunities.org/id/unitary-authority/peterborough,Peterborough City Council,Adults,Independent Sector Placements,Services,02/02/2018 00:00,30161819,1952,Revenue,Thera East Anglia,Day Care
Peterborough,http://opendatacommunities.org/id/unitary-authority/peterborough,Peterborough City Council,Adults,Independent Sector Placements,Services,02/02/2018 00:00,30161820,1342,Revenue,Thera East Anglia,Day Care
Peterborough,http://opendatacommunities.org/id/unitary-authority/peterborough,Peterborough City Council,Adults,Independent Sector Placements,Services,02/02/2018 00:00,30161823,3999.4,Revenue,Mencap,Residential Care
Peterborough,http://opendatacommunities.org/id/unitary-authority/peterborough,Peterborough City Council,Adults,Independent Sector Placements,Services,02/02/2018 00:00,30161824,688,Revenue,Thera East Anglia,Day Care
Peterborough,http://opendatacommunities.org/id/unitary-authority/peterborough,Peterborough City Council,Adults,Independent Sector Placements,Services,02/02/2018 00:00,30161826,4853,Revenue,Mencap,Residential Care
Peterborough,http://opendatacommunities.org/id/unitary-authority/peterborough,Peterborough City Council,Adults,Independent Sector Placements,Services,02/02/2018 00:00,30161827,4606.2,Revenue,Mencap,Residential Care
Peterborough,http://opendatacommunities.org/id/unitary-authority/peterborough,Peterborough City Council,Various,Various,Services,02/02/2018 00:00,30161849,1459.03,Revenue,Whistl UK Ltd,Postage
Peterborough,http://opendatacommunities.org/id/unitary-authority/peterborough,Peterborough City Council,Adults,Independent Sector Placements,Services,02/02/2018 00:00,30161943,3400,Revenue,LESTER HALL APARTMENTS LTD,Residential Care
Peterborough,http://opendatacommunities.org/id/unitary-authority/peterborough,Peterborough City Council,Adults,Independent Sector Placements,Services,02/02/2018 00:00,30162087,1225,Revenue,Oakhouse Homecare Cambs Ltd,Residential Care
Peterborough,http://opendatacommunities.org/id/unitary-authority/peterborough,Peterborough City Council,Adults,Independent Sector Placements,Services,02/02/2018 00:00,30162090,1224.08,Revenue,Stonehaven (Healthcare) Ltd TA The Manor Exminster,Residential Care
Peterborough,http://opendatacommunities.org/id/unitary-authority/peterborough,Peterborough City Council,Adults,Independent Sector Placements,Services,02/02/2018 00:00,30162167,8752,Revenue,Autism Care (UK) Ltd,Residential Care
Peterborough,http://opendatacommunities.org/id/unitary-authority/peterborough,Peterborough City Council,Corporate,Corporate,Non Revenue,02/02/2018 00:00,30162886,-2057.25,Capital,Barker Storey Matthews,Consultants Fees
Peterborough,http://opendatacommunities.org/id/unitary-authority/peterborough,Peterborough City Council,Adults,Independent Sector Placements,Services,02/02/2018 00:00,30162967,1008.68,Revenue,Oakhouse Homecare Cambs Ltd,Residential Care
Peterborough,http://opendatacommunities.org/id/unitary-authority/peterborough,Peterborough City Council,Children's & Safeguarding,Children's Social Care,Services,02/02/2018 00:00,30163254,651.59,Revenue,CAPITA Translation and Interpreting,Interpretation Expenses
Peterborough,http://opendatacommunities.org/id/unitary-authority/peterborough,Peterborough City Council,Corporate,Corporate,Non Revenue,02/02/2018 00:00,30163329,1000,Capital,Family Action Hampton Hargate,Grant Payment
Peterborough,http://opendatacommunities.org/id/unitary-authority/peterborough,Peterborough City Council,Westcombe Engineering,Westcombe Engineering,"Tools, Equipment, Furniture & Materials",02/02/2018 00:00,30163435,686.56,Revenue,Barron Clark Castings Ltd,Items For Resale
Peterborough,http://opendatacommunities.org/id/unitary-authority/peterborough,Peterborough City Council,Financial Services,Finance,Agency Staff,02/02/2018 00:00,30163486,3180,Revenue,Penna Plc,External Temporary Staff
Peterborough,http://opendatacommunities.org/id/unitary-authority/peterborough,Peterborough City Council,Adults,Day opportunities - Older People,Agency Staff,02/02/2018 00:00,30163511,1470,Revenue,Caritas Recruitment,External Temporary Staff
Peterborough,http://opendatacommunities.org/id/unitary-authority/peterborough,Peterborough City Council,Development and Construction,Development Management,Agency Staff,02/02/2018 00:00,30163592,1000.21,Revenue,Reed Specialist Recruitment Limited,External Temporary Staff
Peterborough,http://opendatacommunities.org/id/unitary-authority/peterborough,Peterborough City Council,Commissioning and Commercial Operations,Commissioning Team,Agency Staff,02/02/2018 00:00,30163595,1808.35,Revenue,Reed Specialist Recruitment Limited,External Temporary Staff
Peterborough,http://opendatacommunities.org/id/unitary-authority/peterborough,Peterborough City Council,Commissioning and Commercial Operations,Clare Lodge,Agency Staff,02/02/2018 00:00,30163598,689.67,Revenue,Reed Specialist Recruitment Limited,External Temporary Staff
Peterborough,http://opendatacommunities.org/id/unitary-authority/peterborough,Peterborough City Council,Commissioning and Commercial Operations,Clare Lodge,Agency Staff,02/02/2018 00:00,30163600,541.26,Revenue,Reed Specialist Recruitment Limited,External Temporary Staff
Peterborough,http://opendatacommunities.org/id/unitary-authority/peterborough,Peterborough City Council,City Servs & Communications,Parking Services,Agency Staff,02/02/2018 00:00,30163604,1093.82,Revenue,Reed Specialist Recruitment Limited,External Temporary Staff
Peterborough,http://opendatacommunities.org/id/unitary-authority/peterborough,Peterborough City Council,Legal & Democratic,Legal Services,Agency Staff,02/02/2018 00:00,30163608,1556.8,Revenue,Reed Specialist Recruitment Limited,External Temporary Staff
Peterborough,http://opendatacommunities.org/id/unitary-authority/peterborough,Peterborough City Council,Vivacity/Cultural Services,Cultural Services,Energy Costs,02/02/2018 00:00,30163634,2529.02,Revenue,Corona Energy Retail 4 Limited,Gas
Peterborough,http://opendatacommunities.org/id/unitary-authority/peterborough,Peterborough City Council,"Cemeteries, Cremation & Registrars",Bereavement Service,Energy Costs,02/02/2018 00:00,30163634,2307.72,Revenue,Corona Energy Retail 4 Limited,Gas
Peterborough,http://opendatacommunities.org/id/unitary-authority/peterborough,Peterborough City Council,Commissioning and Commercial Operations,Clare Lodge,Energy Costs,02/02/2018 00:00,30163645,924.73,Revenue,Corona Energy Retail 4 Limited,Gas
Peterborough,http://opendatacommunities.org/id/unitary-authority/peterborough,Peterborough City Council,Vivacity/Cultural Services,Cultural Services,Energy Costs,02/02/2018 00:00,30163646,1169.32,Revenue,Corona Energy Retail 4 Limited,Gas
Peterborough,http://opendatacommunities.org/id/unitary-authority/peterborough,Peterborough City Council,Corporate Property,Office Accomodation,Energy Costs,02/02/2018 00:00,30163646,647.38,Revenue,Corona Energy Retail 4 Limited,Gas
Peterborough,http://opendatacommunities.org/id/unitary-authority/peterborough,Peterborough City Council,Corporate Property,Commercial Propety,Energy Costs,02/02/2018 00:00,30163646,2196.4,Revenue,Corona Energy Retail 4 Limited,Gas
Peterborough,http://opendatacommunities.org/id/unitary-authority/peterborough,Peterborough City Council,Vivacity/Cultural Services,Cultural Services,Energy Costs,02/02/2018 00:00,30163647,1608.61,Revenue,Corona Energy Retail 4 Limited,Gas
Peterborough,http://opendatacommunities.org/id/unitary-authority/peterborough,Peterborough City Council,Corporate Property,Commercial Propety,Energy Costs,02/02/2018 00:00,30163647,682.34,Revenue,Corona Energy Retail 4 Limited,Gas
Peterborough,http://opendatacommunities.org/id/unitary-authority/peterborough,Peterborough City Council,Corporate Property,Office Accomodation,Energy Costs,02/02/2018 00:00,30163648,3544.89,Revenue,Corona Energy Retail 4 Limited,Gas
Peterborough,http://opendatacommunities.org/id/unitary-authority/peterborough,Peterborough City Council,Vivacity/Cultural Services,Cultural Services,Energy Costs,02/02/2018 00:00,30163648,1290.37,Revenue,Corona Energy Retail 4 Limited,Gas
Peterborough,http://opendatacommunities.org/id/unitary-authority/peterborough,Peterborough City Council,Corporate Property,Office Accomodation,Energy Costs,02/02/2018 00:00,30163649,1129.2,Revenue,Corona Energy Retail 4 Limited,Gas
Peterborough,http://opendatacommunities.org/id/unitary-authority/peterborough,Peterborough City Council,Education,PFI,Energy Costs,02/02/2018 00:00,30163652,3413.65,Revenue,Corona Energy Retail 4 Limited,Gas
Peterborough,http://opendatacommunities.org/id/unitary-authority/peterborough,Peterborough City Council,Education,PFI,Energy Costs,02/02/2018 00:00,30163652,1987.83,Revenue,Corona Energy Retail 4 Limited,Gas
Peterborough,http://opendatacommunities.org/id/unitary-authority/peterborough,Peterborough City Council,Education,PFI,Energy Costs,02/02/2018 00:00,30163655,711.25,Revenue,Corona Energy Retail 4 Limited,Gas
Peterborough,http://opendatacommunities.org/id/unitary-authority/peterborough,Peterborough City Council,Education,PFI,Energy Costs,02/02/2018 00:00,30163655,779.47,Revenue,Corona Energy Retail 4 Limited,Gas
Peterborough,http://opendatacommunities.org/id/unitary-authority/peterborough,Peterborough City Council,Education,PFI,Energy Costs,02/02/2018 00:00,30163658,2819.33,Revenue,Corona Energy Retail 4 Limited,Gas
Peterborough,http://opendatacommunities.org/id/unitary-authority/peterborough,Peterborough City Council,Education,PFI,Energy Costs,02/02/2018 00:00,30163660,2910.14,Revenue,Corona Energy Retail 4 Limited,Gas
Peterborough,http://opendatacommunities.org/id/unitary-authority/peterborough,Peterborough City Council,Education,PFI,Energy Costs,02/02/2018 00:00,30163664,1557.05,Revenue,Corona Energy Retail 4 Limited,Gas
Peterborough,http://opendatacommunities.org/id/unitary-authority/peterborough,Peterborough City Council,Education,PFI,Energy Costs,02/02/2018 00:00,30163664,599.29,Revenue,Corona Energy Retail 4 Limited,Gas
Peterborough,http://opendatacommunities.org/id/unitary-authority/peterborough,Peterborough City Council,Education,Special Educational Needs / Inclusion,Services,02/02/2018 00:00,30163668,4760,Revenue,Lind Associates,Consultants Fees
Peterborough,http://opendatacommunities.org/id/unitary-authority/peterborough,Peterborough City Council,Education,PFI,Energy Costs,02/02/2018 00:00,30163669,2324.23,Revenue,Corona Energy Retail 4 Limited,Gas
Peterborough,http://opendatacommunities.org/id/unitary-authority/peterborough,Peterborough City Council,Children's & Safeguarding,Children's Social Care,Agency Staff,02/02/2018 00:00,30163704,6991.66,Revenue,Eden Brown Ltd,External Temporary Staff
Peterborough,http://opendatacommunities.org/id/unitary-authority/peterborough,Peterborough City Council,Communities,Housing,Services,02/02/2018 00:00,30163816,507.5,Revenue,Eastfield Guesthouse,Homelessness Bed & Breakfast Costs
Peterborough,http://opendatacommunities.org/id/unitary-authority/peterborough,Peterborough City Council,Communities,Housing,Services,02/02/2018 00:00,30163818,507.5,Revenue,Eastfield Guesthouse,Homelessness Bed & Breakfast Costs
Peterborough,http://opendatacommunities.org/id/unitary-authority/peterborough,Peterborough City Council,Communities,Housing,Services,02/02/2018 00:00,30163820,507.5,Revenue,Eastfield Guesthouse,Homelessness Bed & Breakfast Costs
Peterborough,http://opendatacommunities.org/id/unitary-authority/peterborough,Peterborough City Council,Communities,Housing,Services,02/02/2018 00:00,30163821,525,Revenue,Eastfield Guesthouse,Homelessness Bed & Breakfast Costs
Peterborough,http://opendatacommunities.org/id/unitary-authority/peterborough,Peterborough City Council,Communities,Housing,Services,02/02/2018 00:00,30163822,525,Revenue,Eastfield Guesthouse,Homelessness Bed & Breakfast Costs
Peterborough,http://opendatacommunities.org/id/unitary-authority/peterborough,Peterborough City Council,Communities,Housing,Services,02/02/2018 00:00,30163824,525,Revenue,Eastfield Guesthouse,Homelessness Bed & Breakfast Costs
Peterborough,http://opendatacommunities.org/id/unitary-authority/peterborough,Peterborough City Council,Adults,Independent Sector Placements,Services,02/02/2018 00:00,30163844,1071,Revenue,THE HELPING HANDS GROUP,Day Care
Peterborough,http://opendatacommunities.org/id/unitary-authority/peterborough,Peterborough City Council,Adults,Independent Sector Placements,Services,02/02/2018 00:00,30163875,557.87,Revenue,Sagecare,Home Care
Peterborough,http://opendatacommunities.org/id/unitary-authority/peterborough,Peterborough City Council,Communities,Housing,Services,02/02/2018 00:00,30163887,816.62,Revenue,DA Rosalia Hotel,Homelessness Bed & Breakfast Costs
Peterborough,http://opendatacommunities.org/id/unitary-authority/peterborough,Peterborough City Council,Communities,Housing,Services,02/02/2018 00:00,30163888,816.62,Revenue,DA Rosalia Hotel,Homelessness Bed & Breakfast Costs
Peterborough,http://opendatacommunities.org/id/unitary-authority/peterborough,Peterborough City Council,Communities,Housing,Services,02/02/2018 00:00,30163889,816.62,Revenue,DA Rosalia Hotel,Homelessness Bed & Breakfast Costs
Peterborough,http://opendatacommunities.org/id/unitary-authority/peterborough,Peterborough City Council,Communities,Housing,Services,02/02/2018 00:00,30163890,1310.12,Revenue,DA Rosalia Hotel,Homelessness Bed & Breakfast Costs
Peterborough,http://opendatacommunities.org/id/unitary-authority/peterborough,Peterborough City Council,City Servs & Communications,Parking Services,Services,02/02/2018 00:00,30163934,525,Revenue,C N SECURITY,Security
Peterborough,http://opendatacommunities.org/id/unitary-authority/peterborough,Peterborough City Council,Children's & Safeguarding,External Education Placements,Services,02/02/2018 00:00,30163937,30000,Revenue,Wilds Lodge School,Boarding Out Allowances
Peterborough,http://opendatacommunities.org/id/unitary-authority/peterborough,Peterborough City Council,Children's & Safeguarding,External Education Placements,Services,02/02/2018 00:00,30163938,30000,Revenue,Wilds Lodge School,Boarding Out Allowances
Peterborough,http://opendatacommunities.org/id/unitary-authority/peterborough,Peterborough City Council,Children's & Safeguarding,Children's Social Care,Agency Staff,02/02/2018 00:00,30163949,5301.88,Revenue,Caritas Recruitment,External Temporary Staff
Peterborough,http://opendatacommunities.org/id/unitary-authority/peterborough,Peterborough City Council,Communities,Service Director - Adults & Communities,Third Party Payments,02/02/2018 00:00,30163954,4300,Revenue,Rainbow Savers Anglia Credit Union Ltd,Grant-Third Party
Peterborough,http://opendatacommunities.org/id/unitary-authority/peterborough,Peterborough City Council,Adults,Independent Sector Placements,Services,02/02/2018 00:00,30163993,780.3,Revenue,MEARS GROUP,Home Care
Peterborough,http://opendatacommunities.org/id/unitary-authority/peterborough,Peterborough City Council,Corporate,Corporate,Non Revenue,02/02/2018 00:00,30164073,1335,Capital,NPS Peterborough Ltd,Consultants Fees
Peterborough,http://opendatacommunities.org/id/unitary-authority/peterborough,Peterborough City Council,Vivacity/Cultural Services,Cultural Services,Services,02/02/2018 00:00,30164087,620,Revenue,Peterborough Centre for Young Musicians,Hired Services
Peterborough,http://opendatacommunities.org/id/unitary-authority/peterborough,Peterborough City Council,Communities,Housing,Services,02/02/2018 00:00,30164093,525,Revenue,Eastfield Guesthouse,Homelessness Bed & Breakfast Costs
Peterborough,http://opendatacommunities.org/id/unitary-authority/peterborough,Peterborough City Council,Communities,Housing,Services,02/02/2018 00:00,30164097,525,Revenue,Eastfield Guesthouse,Homelessness Bed & Breakfast Costs
Peterborough,http://opendatacommunities.org/id/unitary-authority/peterborough,Peterborough City Council,Communities,Housing,Services,02/02/2018 00:00,30164100,525,Revenue,Eastfield Guesthouse,Homelessness Bed & Breakfast Costs
Peterborough,http://opendatacommunities.org/id/unitary-authority/peterborough,Peterborough City Council,Adults,Independent Sector Placements,Services,02/02/2018 00:00,30164195,1384.04,Revenue,Park Vista Care Home,Residential Care
Peterborough,http://opendatacommunities.org/id/unitary-authority/peterborough,Peterborough City Council,Adults,Independent Sector Placements,Services,02/02/2018 00:00,30164220,641.16,Revenue,Sense,Day Care
Peterborough,http://opendatacommunities.org/id/unitary-authority/peterborough,Peterborough City Council,Adults,Independent Sector Placements,Services,02/02/2018 00:00,30164221,7641.72,Revenue,Sense,Residential Care
Peterborough,http://opendatacommunities.org/id/unitary-authority/peterborough,Peterborough City Council,Adults,Independent Sector Placements,Services,02/02/2018 00:00,30164222,5722.32,Revenue,Sense,Residential Care
Peterborough,http://opendatacommunities.org/id/unitary-authority/peterborough,Peterborough City Council,Adults,Independent Sector Placements,Services,02/02/2018 00:00,30164223,5511.4,Revenue,Sense,Residential Care
Peterborough,http://opendatacommunities.org/id/unitary-authority/peterborough,Peterborough City Council,Adults,Independent Sector Placements,Services,02/02/2018 00:00,30164224,5722.32,Revenue,Sense,Residential Care
Peterborough,http://opendatacommunities.org/id/unitary-authority/peterborough,Peterborough City Council,Adults,Independent Sector Placements,Services,02/02/2018 00:00,30164225,7641.72,Revenue,Sense,Residential Care
Peterborough,http://opendatacommunities.org/id/unitary-authority/peterborough,Peterborough City Council,Adults,Independent Sector Placements,Services,02/02/2018 00:00,30164226,5511.4,Revenue,Sense,Residential Care
Peterborough,http://opendatacommunities.org/id/unitary-authority/peterborough,Peterborough City Council,Commissioning and Commercial Operations,Clare Lodge,Agency Staff,02/02/2018 00:00,30164233,1624,Revenue,Wrixon Care Services,External Temporary Staff
Peterborough,http://opendatacommunities.org/id/unitary-authority/peterborough,Peterborough City Council,Adults,Independent Sector Placements,Services,02/02/2018 00:00,30164241,2448.6,Revenue,Benell Care Services Ltd,Residential Care
Peterborough,http://opendatacommunities.org/id/unitary-authority/peterborough,Peterborough City Council,Commissioning and Commercial Operations,Clare Lodge,Agency Staff,02/02/2018 00:00,30164243,512,Revenue,Wrixon Care Services,External Temporary Staff
Peterborough,http://opendatacommunities.org/id/unitary-authority/peterborough,Peterborough City Council,Commissioning and Commercial Operations,Clare Lodge,Agency Staff,02/02/2018 00:00,30164244,2144,Revenue,Wrixon Care Services,External Temporary Staff
Peterborough,http://opendatacommunities.org/id/unitary-authority/peterborough,Peterborough City Council,Adults,Independent Sector Placements,Services,02/02/2018 00:00,30164247,641.16,Revenue,Sense,Day Care
Peterborough,http://opendatacommunities.org/id/unitary-authority/peterborough,Peterborough City Council,Adults,Independent Sector Placements,Services,02/02/2018 00:00,30164248,1282.32,Revenue,Sense,Day Care
Peterborough,http://opendatacommunities.org/id/unitary-authority/peterborough,Peterborough City Council,Adults,Independent Sector Placements,Services,02/02/2018 00:00,30164250,11322.82,Revenue,Sense,Day Care
Peterborough,http://opendatacommunities.org/id/unitary-authority/peterborough,Peterborough City Council,Adults,Independent Sector Placements,Services,02/02/2018 00:00,30164251,1856.2,Revenue,Sense,Day Care
Peterborough,http://opendatacommunities.org/id/unitary-authority/peterborough,Peterborough City Council,Adults,Independent Sector Placements,Services,02/02/2018 00:00,30164252,1838.08,Revenue,Sense,Day Care
Peterborough,http://opendatacommunities.org/id/unitary-authority/peterborough,Peterborough City Council,Adults,Independent Sector Placements,Services,02/02/2018 00:00,30164253,1838.08,Revenue,Sense,Day Care
Peterborough,http://opendatacommunities.org/id/unitary-authority/peterborough,Peterborough City Council,Adults,Independent Sector Placements,Services,02/02/2018 00:00,30164254,3676.16,Revenue,Sense,Day Care
Peterborough,http://opendatacommunities.org/id/unitary-authority/peterborough,Peterborough City Council,Adults,Independent Sector Placements,Services,02/02/2018 00:00,30164255,641.16,Revenue,Sense,Day Care
Peterborough,http://opendatacommunities.org/id/unitary-authority/peterborough,Peterborough City Council,Adults,Independent Sector Placements,Services,02/02/2018 00:00,30164256,641.16,Revenue,Sense,Day Care
Peterborough,http://opendatacommunities.org/id/unitary-authority/peterborough,Peterborough City Council,Adults,Independent Sector Placements,Services,02/02/2018 00:00,30164257,641.16,Revenue,Sense,Day Care
Peterborough,http://opendatacommunities.org/id/unitary-authority/peterborough,Peterborough City Council,Adults,Independent Sector Placements,Services,02/02/2018 00:00,30164258,641.16,Revenue,Sense,Day Care
Peterborough,http://opendatacommunities.org/id/unitary-authority/peterborough,Peterborough City Council,Adults,Independent Sector Placements,Services,02/02/2018 00:00,30164259,641.16,Revenue,Sense,Day Care
Peterborough,http://opendatacommunities.org/id/unitary-authority/peterborough,Peterborough City Council,Adults,Independent Sector Placements,Services,02/02/2018 00:00,30164260,641.16,Revenue,Sense,Day Care
Peterborough,http://opendatacommunities.org/id/unitary-authority/peterborough,Peterborough City Council,Adults,Independent Sector Placements,Services,02/02/2018 00:00,30164261,641.16,Revenue,Sense,Day Care
Peterborough,http://opendatacommunities.org/id/unitary-authority/peterborough,Peterborough City Council,Adults,Home Services Delivery Model,Third Party Payments,02/02/2018 00:00,30164278,5017.14,Revenue,Peterborough Womens Aid,Grant-Third Party
Peterborough,http://opendatacommunities.org/id/unitary-authority/peterborough,Peterborough City Council,Adults,Independent Sector Placements,Services,02/02/2018 00:00,30164290,1768.92,Revenue,Ashmere,Residential Care
Peterborough,http://opendatacommunities.org/id/unitary-authority/peterborough,Peterborough City Council,Adults,Independent Sector Placements,Services,02/02/2018 00:00,30164293,1768.92,Revenue,Ashmere,Residential Care
Peterborough,http://opendatacommunities.org/id/unitary-authority/peterborough,Peterborough City Council,Adults,Independent Sector Placements,Services,02/02/2018 00:00,30164306,534.25,Revenue,Hales Group Ltd,Home Care
Peterborough,http://opendatacommunities.org/id/unitary-authority/peterborough,Peterborough City Council,Adults,Independent Sector Placements,Services,02/02/2018 00:00,30164323,634,Revenue,HEADWAY CAMBRIDGESHIRE,Day Care
Peterborough,http://opendatacommunities.org/id/unitary-authority/peterborough,Peterborough City Council,Vivacity/Cultural Services,Cultural Services,Services,02/02/2018 00:00,30164333,500,Revenue,Peterborough Centre for Young Musicians,Hired Services
Peterborough,http://opendatacommunities.org/id/unitary-authority/peterborough,Peterborough City Council,Vivacity/Cultural Services,Cultural Services,Services,02/02/2018 00:00,30164336,1520,Revenue,Peterborough Centre for Young Musicians,Hired Services
Peterborough,http://opendatacommunities.org/id/unitary-authority/peterborough,Peterborough City Council,Adults,Independent Sector Placements,Services,02/02/2018 00:00,8000106745,630,Revenue,Cambridgeshirehomecare,Home Care
Peterborough,http://opendatacommunities.org/id/unitary-authority/peterborough,Peterborough City Council,Adults,Independent Sector Placements,Services,02/02/2018 00:00,8000106746,1005,Revenue,Cambridgeshirehomecare,Home Care
Peterborough,http://opendatacommunities.org/id/unitary-authority/peterborough,Peterborough City Council,Adults,Independent Sector Placements,Services,02/02/2018 00:00,8000106747,540,Revenue,Cambridgeshirehomecare,Home Care
Peterborough,http://opendatacommunities.org/id/unitary-authority/peterborough,Peterborough City Council,Adults,Independent Sector Placements,Services,02/02/2018 00:00,8000106749,11148.69,Revenue,Cambridgeshirehomecare,Home Care
Peterborough,http://opendatacommunities.org/id/unitary-authority/peterborough,Peterborough City Council,Adults,Independent Sector Placements,Services,02/02/2018 00:00,8000106751,828.75,Revenue,Cambridgeshirehomecare,Home Care
Peterborough,http://opendatacommunities.org/id/unitary-authority/peterborough,Peterborough City Council,Adults,Independent Sector Placements,Services,02/02/2018 00:00,8000106753,526.73,Revenue,Hales Group Ltd,Home Care
Peterborough,http://opendatacommunities.org/id/unitary-authority/peterborough,Peterborough City Council,Adults,Independent Sector Placements,Services,02/02/2018 00:00,8000106759,673.48,Revenue,Hales Group Ltd,Home Care
Peterborough,http://opendatacommunities.org/id/unitary-authority/peterborough,Peterborough City Council,Adults,Independent Sector Placements,Services,02/02/2018 00:00,8000106761,2580.75,Revenue,Hales Group Ltd,Home Care
Peterborough,http://opendatacommunities.org/id/unitary-authority/peterborough,Peterborough City Council,Adults,Independent Sector Placements,Services,02/02/2018 00:00,8000106762,574.27,Revenue,Hales Group Ltd,Home Care
Peterborough,http://opendatacommunities.org/id/unitary-authority/peterborough,Peterborough City Council,Adults,Independent Sector Placements,Services,02/02/2018 00:00,8000106807,659.79,Revenue,Hales Group Ltd,Home Care
Peterborough,http://opendatacommunities.org/id/unitary-authority/peterborough,Peterborough City Council,Adults,Independent Sector Placements,Services,02/02/2018 00:00,8000106808,1273.7,Revenue,Hales Group Ltd,Home Care
Peterborough,http://opendatacommunities.org/id/unitary-authority/peterborough,Peterborough City Council,Adults,Independent Sector Placements,Services,02/02/2018 00:00,8000106816,822.67,Revenue,Hales Group Ltd,Home Care
Peterborough,http://opendatacommunities.org/id/unitary-authority/peterborough,Peterborough City Council,Adults,Independent Sector Placements,Services,02/02/2018 00:00,8000106817,626.82,Revenue,Hales Group Ltd,Home Care
Peterborough,http://opendatacommunities.org/id/unitary-authority/peterborough,Peterborough City Council,Adults,Independent Sector Placements,Services,02/02/2018 00:00,8000106818,669.99,Revenue,Hales Group Ltd,Home Care
Peterborough,http://opendatacommunities.org/id/unitary-authority/peterborough,Peterborough City Council,Adults,Independent Sector Placements,Services,02/02/2018 00:00,8000106821,1125.67,Revenue,Hales Group Ltd,Home Care
Peterborough,http://opendatacommunities.org/id/unitary-authority/peterborough,Peterborough City Council,Adults,Independent Sector Placements,Services,02/02/2018 00:00,8000106822,619.93,Revenue,Hales Group Ltd,Home Care
Peterborough,http://opendatacommunities.org/id/unitary-authority/peterborough,Peterborough City Council,Adults,Independent Sector Placements,Services,02/02/2018 00:00,8000106824,821.95,Revenue,Hales Group Ltd,Home Care
Peterborough,http://opendatacommunities.org/id/unitary-authority/peterborough,Peterborough City Council,Adults,Independent Sector Placements,Services,02/02/2018 00:00,8000106829,1818.48,Revenue,Hales Group Ltd,Home Care
Peterborough,http://opendatacommunities.org/id/unitary-authority/peterborough,Peterborough City Council,Adults,Independent Sector Placements,Services,02/02/2018 00:00,8000106831,1744.55,Revenue,Hales Group Ltd,Home Care
Peterborough,http://opendatacommunities.org/id/unitary-authority/peterborough,Peterborough City Council,Adults,Independent Sector Placements,Services,02/02/2018 00:00,8000106834,599.3,Revenue,Hales Group Ltd,Home Care
Peterborough,http://opendatacommunities.org/id/unitary-authority/peterborough,Peterborough City Council,Adults,Independent Sector Placements,Services,02/02/2018 00:00,8000106837,2239.2,Revenue,Hales Group Ltd,Home Care
Peterborough,http://opendatacommunities.org/id/unitary-authority/peterborough,Peterborough City Council,Adults,Independent Sector Placements,Services,02/02/2018 00:00,8000106838,561.6,Revenue,Hales Group Ltd,Home Care
Peterborough,http://opendatacommunities.org/id/unitary-authority/peterborough,Peterborough City Council,Adults,Independent Sector Placements,Services,02/02/2018 00:00,8000106840,776.29,Revenue,Hales Group Ltd,Home Care
Peterborough,http://opendatacommunities.org/id/unitary-authority/peterborough,Peterborough City Council,Adults,Independent Sector Placements,Services,02/02/2018 00:00,8000106841,798.06,Revenue,Hales Group Ltd,Home Care
Peterborough,http://opendatacommunities.org/id/unitary-authority/peterborough,Peterborough City Council,Adults,Independent Sector Placements,Services,02/02/2018 00:00,8000106842,1997.88,Revenue,Hales Group Ltd,Home Care
Peterborough,http://opendatacommunities.org/id/unitary-authority/peterborough,Peterborough City Council,Adults,Independent Sector Placements,Services,02/02/2018 00:00,8000106843,844.83,Revenue,Hales Group Ltd,Home Care
Peterborough,http://opendatacommunities.org/id/unitary-authority/peterborough,Peterborough City Council,Adults,Independent Sector Placements,Services,02/02/2018 00:00,8000106844,1124.49,Revenue,Hales Group Ltd,Home Care
Peterborough,http://opendatacommunities.org/id/unitary-authority/peterborough,Peterborough City Council,Adults,Independent Sector Placements,Services,02/02/2018 00:00,8000106845,527.03,Revenue,Hales Group Ltd,Home Care
Peterborough,http://opendatacommunities.org/id/unitary-authority/peterborough,Peterborough City Council,Adults,Independent Sector Placements,Services,02/02/2018 00:00,8000106847,512.5,Revenue,Hales Group Ltd,Home Care
Peterborough,http://opendatacommunities.org/id/unitary-authority/peterborough,Peterborough City Council,Adults,Independent Sector Placements,Services,02/02/2018 00:00,8000106849,1852.73,Revenue,Hales Group Ltd,Home Care
Peterborough,http://opendatacommunities.org/id/unitary-authority/peterborough,Peterborough City Council,Adults,Independent Sector Placements,Services,02/02/2018 00:00,8000106850,719.26,Revenue,Hales Group Ltd,Home Care
Peterborough,http://opendatacommunities.org/id/unitary-authority/peterborough,Peterborough City Council,Adults,Independent Sector Placements,Services,02/02/2018 00:00,8000106851,888.62,Revenue,Hales Group Ltd,Home Care
Peterborough,http://opendatacommunities.org/id/unitary-authority/peterborough,Peterborough City Council,Adults,Independent Sector Placements,Services,02/02/2018 00:00,8000106853,1858.58,Revenue,Hales Group Ltd,Home Care
Peterborough,http://opendatacommunities.org/id/unitary-authority/peterborough,Peterborough City Council,Adults,Independent Sector Placements,Services,02/02/2018 00:00,8000106856,1884.27,Revenue,Hales Group Ltd,Home Care
Peterborough,http://opendatacommunities.org/id/unitary-authority/peterborough,Peterborough City Council,Adults,Independent Sector Placements,Services,02/02/2018 00:00,8000106859,537.11,Revenue,Hales Group Ltd,Home Care
Peterborough,http://opendatacommunities.org/id/unitary-authority/peterborough,Peterborough City Council,Adults,Independent Sector Placements,Services,02/02/2018 00:00,8000106861,1391.77,Revenue,Hales Group Ltd,Home Care
Peterborough,http://opendatacommunities.org/id/unitary-authority/peterborough,Peterborough City Council,Adults,Independent Sector Placements,Services,02/02/2018 00:00,8000106862,589.95,Revenue,Hales Group Ltd,Home Care
Peterborough,http://opendatacommunities.org/id/unitary-authority/peterborough,Peterborough City Council,Adults,Independent Sector Placements,Services,02/02/2018 00:00,8000106865,834.62,Revenue,Hales Group Ltd,Home Care
Peterborough,http://opendatacommunities.org/id/unitary-authority/peterborough,Peterborough City Council,Adults,Independent Sector Placements,Services,02/02/2018 00:00,8000106866,3243.75,Revenue,Hales Group Ltd,Home Care
Peterborough,http://opendatacommunities.org/id/unitary-authority/peterborough,Peterborough City Council,Adults,Independent Sector Placements,Services,02/02/2018 00:00,8000106867,778.59,Revenue,Hales Group Ltd,Home Care
Peterborough,http://opendatacommunities.org/id/unitary-authority/peterborough,Peterborough City Council,Adults,Independent Sector Placements,Services,02/02/2018 00:00,8000106868,1806.66,Revenue,Hales Group Ltd,Home Care
Peterborough,http://opendatacommunities.org/id/unitary-authority/peterborough,Peterborough City Council,Adults,Independent Sector Placements,Services,02/02/2018 00:00,8000106869,974.29,Revenue,Hales Group Ltd,Home Care
Peterborough,http://opendatacommunities.org/id/unitary-authority/peterborough,Peterborough City Council,Adults,Independent Sector Placements,Services,02/02/2018 00:00,8000106870,833.18,Revenue,Hales Group Ltd,Home Care
Peterborough,http://opendatacommunities.org/id/unitary-authority/peterborough,Peterborough City Council,Adults,Independent Sector Placements,Services,02/02/2018 00:00,8000106876,806.27,Revenue,Hales Group Ltd,Home Care
Peterborough,http://opendatacommunities.org/id/unitary-authority/peterborough,Peterborough City Council,Adults,Independent Sector Placements,Services,02/02/2018 00:00,8000106877,566.79,Revenue,Hales Group Ltd,Home Care
Peterborough,http://opendatacommunities.org/id/unitary-authority/peterborough,Peterborough City Council,Adults,Independent Sector Placements,Services,02/02/2018 00:00,8000106879,693.9,Revenue,Hales Group Ltd,Home Care
Peterborough,http://opendatacommunities.org/id/unitary-authority/peterborough,Peterborough City Council,Adults,Independent Sector Placements,Services,02/02/2018 00:00,8000106882,595.44,Revenue,Hales Group Ltd,Home Care
Peterborough,http://opendatacommunities.org/id/unitary-authority/peterborough,Peterborough City Council,Adults,Independent Sector Placements,Services,02/02/2018 00:00,8000106884,704.89,Revenue,Hales Group Ltd,Home Care
Peterborough,http://opendatacommunities.org/id/unitary-authority/peterborough,Peterborough City Council,Adults,Independent Sector Placements,Services,02/02/2018 00:00,8000106889,888.21,Revenue,Hales Group Ltd,Home Care
Peterborough,http://opendatacommunities.org/id/unitary-authority/peterborough,Peterborough City Council,Adults,Independent Sector Placements,Services,02/02/2018 00:00,8000106893,890.36,Revenue,Hales Group Ltd,Home Care
Peterborough,http://opendatacommunities.org/id/unitary-authority/peterborough,Peterborough City Council,Adults,Independent Sector Placements,Services,02/02/2018 00:00,8000106894,714.39,Revenue,Hales Group Ltd,Home Care
Peterborough,http://opendatacommunities.org/id/unitary-authority/peterborough,Peterborough City Council,Adults,Independent Sector Placements,Services,02/02/2018 00:00,8000106895,729.22,Revenue,Hales Group Ltd,Home Care
Peterborough,http://opendatacommunities.org/id/unitary-authority/peterborough,Peterborough City Council,Adults,Independent Sector Placements,Services,02/02/2018 00:00,8000106898,1146.53,Revenue,Hales Group Ltd,Home Care
Peterborough,http://opendatacommunities.org/id/unitary-authority/peterborough,Peterborough City Council,Adults,Independent Sector Placements,Services,02/02/2018 00:00,8000106899,694.52,Revenue,Hales Group Ltd,Home Care
Peterborough,http://opendatacommunities.org/id/unitary-authority/peterborough,Peterborough City Council,Adults,Independent Sector Placements,Services,02/02/2018 00:00,8000106901,1242.59,Revenue,Hales Group Ltd,Home Care
Peterborough,http://opendatacommunities.org/id/unitary-authority/peterborough,Peterborough City Council,Adults,Independent Sector Placements,Services,02/02/2018 00:00,8000106902,1330.73,Revenue,Hales Group Ltd,Home Care
Peterborough,http://opendatacommunities.org/id/unitary-authority/peterborough,Peterborough City Council,Adults,Independent Sector Placements,Services,02/02/2018 00:00,8000106903,542.75,Revenue,Hales Group Ltd,Home Care
Peterborough,http://opendatacommunities.org/id/unitary-authority/peterborough,Peterborough City Council,Adults,Independent Sector Placements,Services,02/02/2018 00:00,8000106904,731.67,Revenue,Hales Group Ltd,Home Care
Peterborough,http://opendatacommunities.org/id/unitary-authority/peterborough,Peterborough City Council,Adults,Independent Sector Placements,Services,02/02/2018 00:00,8000106905,690.3,Revenue,Sagecare,Home Care
Peterborough,http://opendatacommunities.org/id/unitary-authority/peterborough,Peterborough City Council,Adults,Independent Sector Placements,Services,02/02/2018 00:00,8000106906,695.1,Revenue,Sagecare,Home Care
Peterborough,http://opendatacommunities.org/id/unitary-authority/peterborough,Peterborough City Council,Adults,Independent Sector Placements,Services,02/02/2018 00:00,8000106938,658.35,Revenue,MEARS GROUP,Home Care
Peterborough,http://opendatacommunities.org/id/unitary-authority/peterborough,Peterborough City Council,Adults,Independent Sector Placements,Services,02/02/2018 00:00,8000107024,1427.38,Revenue,Merit Homecare Ltd,Home Care
Peterborough,http://opendatacommunities.org/id/unitary-authority/peterborough,Peterborough City Council,Adults,Independent Sector Placements,Services,02/02/2018 00:00,8000107062,655.2,Revenue,Hales Group Ltd,Home Care
Peterborough,http://opendatacommunities.org/id/unitary-authority/peterborough,Peterborough City Council,Adults,Independent Sector Placements,Services,02/02/2018 00:00,8000107065,3588.33,Revenue,Hales Group Ltd,Home Care
Peterborough,http://opendatacommunities.org/id/unitary-authority/peterborough,Peterborough City Council,Adults,Independent Sector Placements,Services,02/02/2018 00:00,8000107066,908.93,Revenue,Hales Group Ltd,Home Care
Peterborough,http://opendatacommunities.org/id/unitary-authority/peterborough,Peterborough City Council,Adults,Independent Sector Placements,Services,02/02/2018 00:00,8000107067,675.21,Revenue,Hales Group Ltd,Home Care
Peterborough,http://opendatacommunities.org/id/unitary-authority/peterborough,Peterborough City Council,Adults,Independent Sector Placements,Services,02/02/2018 00:00,8000107069,746.48,Revenue,Hales Group Ltd,Home Care
Peterborough,http://opendatacommunities.org/id/unitary-authority/peterborough,Peterborough City Council,Adults,Independent Sector Placements,Services,02/02/2018 00:00,8000107072,1943.85,Revenue,Hales Group Ltd,Home Care
Peterborough,http://opendatacommunities.org/id/unitary-authority/peterborough,Peterborough City Council,Adults,Independent Sector Placements,Services,02/02/2018 00:00,8000107073,589.82,Revenue,Hales Group Ltd,Home Care
Peterborough,http://opendatacommunities.org/id/unitary-authority/peterborough,Peterborough City Council,Adults,Independent Sector Placements,Services,02/02/2018 00:00,8000107074,691.2,Revenue,Hales Group Ltd,Home Care
Peterborough,http://opendatacommunities.org/id/unitary-authority/peterborough,Peterborough City Council,Adults,Independent Sector Placements,Services,02/02/2018 00:00,8000107076,707.47,Revenue,Hales Group Ltd,Home Care
Peterborough,http://opendatacommunities.org/id/unitary-authority/peterborough,Peterborough City Council,Adults,Independent Sector Placements,Services,02/02/2018 00:00,8000107077,1337.45,Revenue,Hales Group Ltd,Home Care
Peterborough,http://opendatacommunities.org/id/unitary-authority/peterborough,Peterborough City Council,Adults,Independent Sector Placements,Services,02/02/2018 00:00,8000107085,906.6,Revenue,Hales Group Ltd,Home Care
Peterborough,http://opendatacommunities.org/id/unitary-authority/peterborough,Peterborough City Council,Adults,Independent Sector Placements,Services,02/02/2018 00:00,8000107086,684.15,Revenue,Hales Group Ltd,Home Care
Peterborough,http://opendatacommunities.org/id/unitary-authority/peterborough,Peterborough City Council,Adults,Independent Sector Placements,Services,02/02/2018 00:00,8000107087,734.95,Revenue,Hales Group Ltd,Home Care
Peterborough,http://opendatacommunities.org/id/unitary-authority/peterborough,Peterborough City Council,Adults,Independent Sector Placements,Services,02/02/2018 00:00,8000107090,1154.61,Revenue,Hales Group Ltd,Home Care
Peterborough,http://opendatacommunities.org/id/unitary-authority/peterborough,Peterborough City Council,Adults,Independent Sector Placements,Services,02/02/2018 00:00,8000107091,701.7,Revenue,Hales Group Ltd,Home Care
Peterborough,http://opendatacommunities.org/id/unitary-authority/peterborough,Peterborough City Council,Adults,Independent Sector Placements,Services,02/02/2018 00:00,8000107092,1200.36,Revenue,Hales Group Ltd,Home Care
Peterborough,http://opendatacommunities.org/id/unitary-authority/peterborough,Peterborough City Council,Adults,Independent Sector Placements,Services,02/02/2018 00:00,8000107093,887.07,Revenue,Hales Group Ltd,Home Care
Peterborough,http://opendatacommunities.org/id/unitary-authority/peterborough,Peterborough City Council,Adults,Independent Sector Placements,Services,02/02/2018 00:00,8000107097,764.2,Revenue,Hales Group Ltd,Home Care
Peterborough,http://opendatacommunities.org/id/unitary-authority/peterborough,Peterborough City Council,Corporate,Corporate,Non Revenue,05/02/2018 00:00,30160770,1562,Capital,NPS Peterborough Ltd,Consultants Fees
Peterborough,http://opendatacommunities.org/id/unitary-authority/peterborough,Peterborough City Council,Adults,Block Contracts,Third Party Payments,05/02/2018 00:00,30160847,6837.36,Revenue,Axiom Housing Association,Third Party Payments - Contract
Peterborough,http://opendatacommunities.org/id/unitary-authority/peterborough,Peterborough City Council,Education,Schools Finance,Services,05/02/2018 00:00,30160865,14287.65,Revenue,Orovia Ltd,Computer Software
Peterborough,http://opendatacommunities.org/id/unitary-authority/peterborough,Peterborough City Council,Children's & Safeguarding,External Education Placements,Services,05/02/2018 00:00,30161045,20393.33,Revenue,Knossington Grange School Ltd,Boarding Out Allowances
Peterborough,http://opendatacommunities.org/id/unitary-authority/peterborough,Peterborough City Council,Vivacity/Cultural Services,Cultural Services,Services,05/02/2018 00:00,30161050,24145,Revenue,Maber Associates Limited,Consultants Fees
Peterborough,http://opendatacommunities.org/id/unitary-authority/peterborough,Peterborough City Council,Financial Services,Finance,Services,05/02/2018 00:00,30161053,3409.08,Revenue,Allen Lane Recruitment,Consultants Fees
Peterborough,http://opendatacommunities.org/id/unitary-authority/peterborough,Peterborough City Council,Children's & Safeguarding,Children's Social Care,Agency Staff,05/02/2018 00:00,30161147,1124.8,Revenue,NonStop Recruitment Ltd,External Temporary Staff
Peterborough,http://opendatacommunities.org/id/unitary-authority/peterborough,Peterborough City Council,Corporate Property,Commercial Propety,Third Party Payments,05/02/2018 00:00,30161151,16750,Revenue,Opportunity Peterborough T/A OP Ltd,Third Party Payments - Contract
Peterborough,http://opendatacommunities.org/id/unitary-authority/peterborough,Peterborough City Council,Corporate Items,Corporate Services,Services,05/02/2018 00:00,30161198,-37500,Revenue,East of England LGA,Consultants Fees
Peterborough,http://opendatacommunities.org/id/unitary-authority/peterborough,Peterborough City Council,Legal & Democratic,Legal Services,Services,05/02/2018 00:00,30161338,1200,Revenue,"Cassidy, Mr Francis",Legal Costs
Peterborough,http://opendatacommunities.org/id/unitary-authority/peterborough,Peterborough City Council,Legal & Democratic,Legal Services,Services,05/02/2018 00:00,30161349,600,Revenue,Mr L J Deegan,Legal Costs
Peterborough,http://opendatacommunities.org/id/unitary-authority/peterborough,Peterborough City Council,Corporate Items,Corporate Services,Services,05/02/2018 00:00,30161420,35700,Revenue,East of England LGA,Consultants Fees
Peterborough,http://opendatacommunities.org/id/unitary-authority/peterborough,Peterborough City Council,Children's & Safeguarding,External Education Placements,Services,05/02/2018 00:00,30161642,30000,Revenue,Wilds Lodge School,Boarding Out Allowances
Peterborough,http://opendatacommunities.org/id/unitary-authority/peterborough,Peterborough City Council,Adults,Therapy/Reablement/Community Equipment,"Tools, Equipment, Furniture & Materials",05/02/2018 00:00,30161916,128637.36,Revenue,NRS Healthcare,Occupational Therapy Equipment
Peterborough,http://opendatacommunities.org/id/unitary-authority/peterborough,Peterborough City Council,Corporate Items,Corporate Services,Services,05/02/2018 00:00,30161930,37500,Revenue,East of England LGA,Consultants Fees
Peterborough,http://opendatacommunities.org/id/unitary-authority/peterborough,Peterborough City Council,Adults,Therapy/Reablement/Community Equipment,"Tools, Equipment, Furniture & Materials",05/02/2018 00:00,30161955,1491.38,Revenue,NRS Healthcare,Occupational Therapy Equipment
Peterborough,http://opendatacommunities.org/id/unitary-authority/peterborough,Peterborough City Council,Education,HTS & CSC Transport,Contract Hire and Operating Leases,05/02/2018 00:00,30162201,2835,Revenue,Shropshire County Council,Hired Transport
Peterborough,http://opendatacommunities.org/id/unitary-authority/peterborough,Peterborough City Council,Commissioning and Commercial Operations,Clare Lodge,Agency Staff,05/02/2018 00:00,30162771,1888,Revenue,Wrixon Care Services,External Temporary Staff
Peterborough,http://opendatacommunities.org/id/unitary-authority/peterborough,Peterborough City Council,Commissioning and Commercial Operations,Clare Lodge,Agency Staff,05/02/2018 00:00,30162773,896,Revenue,Wrixon Care Services,External Temporary Staff
Peterborough,http://opendatacommunities.org/id/unitary-authority/peterborough,Peterborough City Council,Commissioning and Commercial Operations,Clare Lodge,Agency Staff,05/02/2018 00:00,30162774,2008,Revenue,Wrixon Care Services,External Temporary Staff
Peterborough,http://opendatacommunities.org/id/unitary-authority/peterborough,Peterborough City Council,Commissioning and Commercial Operations,Clare Lodge,Agency Staff,05/02/2018 00:00,30162780,2032,Revenue,Wrixon Care Services,External Temporary Staff
Peterborough,http://opendatacommunities.org/id/unitary-authority/peterborough,Peterborough City Council,Commissioning and Commercial Operations,Clare Lodge,Agency Staff,05/02/2018 00:00,30162783,1008,Revenue,Wrixon Care Services,External Temporary Staff
Peterborough,http://opendatacommunities.org/id/unitary-authority/peterborough,Peterborough City Council,Corporate Items,Corporate Services,Services,05/02/2018 00:00,30162788,7572.6,Revenue,East of England LGA,Consultants Fees
Peterborough,http://opendatacommunities.org/id/unitary-authority/peterborough,Peterborough City Council,Commissioning and Commercial Operations,Clare Lodge,Agency Staff,05/02/2018 00:00,30162815,1472,Revenue,Wrixon Care Services,External Temporary Staff
Peterborough,http://opendatacommunities.org/id/unitary-authority/peterborough,Peterborough City Council,Commissioning and Commercial Operations,Clare Lodge,Agency Staff,05/02/2018 00:00,30162816,544,Revenue,Wrixon Care Services,External Temporary Staff
Peterborough,http://opendatacommunities.org/id/unitary-authority/peterborough,Peterborough City Council,Adults,Independent Sector Placements,Services,05/02/2018 00:00,30162968,1140.08,Revenue,Oakhouse Homecare Cambs Ltd,Residential Care
Peterborough,http://opendatacommunities.org/id/unitary-authority/peterborough,Peterborough City Council,City Servs & Communications,"Markets, Tourism & Events",Services,05/02/2018 00:00,30163120,997,Revenue,Performance Art Ventures CIC t/a The Broadway (Peterborough),Tickets
Peterborough,http://opendatacommunities.org/id/unitary-authority/peterborough,Peterborough City Council,Corporate,Corporate,Non Revenue,05/02/2018 00:00,30163531,159567.78,Capital,Southview Building Solutions Ltd,Building And Site Works
Peterborough,http://opendatacommunities.org/id/unitary-authority/peterborough,Peterborough City Council,Communities,Housing,Services,05/02/2018 00:00,30164103,1120,Revenue,DA Rosalia Hotel,Homelessness Bed & Breakfast Costs
Peterborough,http://opendatacommunities.org/id/unitary-authority/peterborough,Peterborough City Council,Communities,Housing,Services,05/02/2018 00:00,30164104,714.56,Revenue,DA Rosalia Hotel,Homelessness Bed & Breakfast Costs
Peterborough,http://opendatacommunities.org/id/unitary-authority/peterborough,Peterborough City Council,Communities,Housing,Services,05/02/2018 00:00,30164105,714.56,Revenue,DA Rosalia Hotel,Homelessness Bed & Breakfast Costs
Peterborough,http://opendatacommunities.org/id/unitary-authority/peterborough,Peterborough City Council,Communities,Housing,Services,05/02/2018 00:00,30164106,1834.56,Revenue,DA Rosalia Hotel,Homelessness Bed & Breakfast Costs
Peterborough,http://opendatacommunities.org/id/unitary-authority/peterborough,Peterborough City Council,Communities,Housing,Services,05/02/2018 00:00,30164108,714.56,Revenue,DA Rosalia Hotel,Homelessness Bed & Breakfast Costs
Peterborough,http://opendatacommunities.org/id/unitary-authority/peterborough,Peterborough City Council,Communities,Housing,Services,05/02/2018 00:00,30164109,595.56,Revenue,DA Rosalia Hotel,Homelessness Bed & Breakfast Costs
Peterborough,http://opendatacommunities.org/id/unitary-authority/peterborough,Peterborough City Council,Communities,Housing,Services,05/02/2018 00:00,30164110,595.56,Revenue,DA Rosalia Hotel,Homelessness Bed & Breakfast Costs
Peterborough,http://opendatacommunities.org/id/unitary-authority/peterborough,Peterborough City Council,Communities,Housing,Services,05/02/2018 00:00,30164111,595.56,Revenue,DA Rosalia Hotel,Homelessness Bed & Breakfast Costs
Peterborough,http://opendatacommunities.org/id/unitary-authority/peterborough,Peterborough City Council,Communities,Housing,Services,05/02/2018 00:00,30164112,714.56,Revenue,DA Rosalia Hotel,Homelessness Bed & Breakfast Costs
Peterborough,http://opendatacommunities.org/id/unitary-authority/peterborough,Peterborough City Council,Communities,Housing,Services,05/02/2018 00:00,30164113,595.56,Revenue,DA Rosalia Hotel,Homelessness Bed & Breakfast Costs
Peterborough,http://opendatacommunities.org/id/unitary-authority/peterborough,Peterborough City Council,Communities,Housing,Services,05/02/2018 00:00,30164114,595.56,Revenue,DA Rosalia Hotel,Homelessness Bed & Breakfast Costs
Peterborough,http://opendatacommunities.org/id/unitary-authority/peterborough,Peterborough City Council,Communities,Housing,Services,05/02/2018 00:00,30164115,1310.12,Revenue,DA Rosalia Hotel,Homelessness Bed & Breakfast Costs
Peterborough,http://opendatacommunities.org/id/unitary-authority/peterborough,Peterborough City Council,Communities,Housing,Services,05/02/2018 00:00,30164116,595.56,Revenue,DA Rosalia Hotel,Homelessness Bed & Breakfast Costs
Peterborough,http://opendatacommunities.org/id/unitary-authority/peterborough,Peterborough City Council,Communities,Housing,Services,05/02/2018 00:00,30164117,714.56,Revenue,DA Rosalia Hotel,Homelessness Bed & Breakfast Costs
Peterborough,http://opendatacommunities.org/id/unitary-authority/peterborough,Peterborough City Council,Communities,Housing,Services,05/02/2018 00:00,30164118,714.56,Revenue,DA Rosalia Hotel,Homelessness Bed & Breakfast Costs
Peterborough,http://opendatacommunities.org/id/unitary-authority/peterborough,Peterborough City Council,Communities,Housing,Services,05/02/2018 00:00,30164119,595.56,Revenue,DA Rosalia Hotel,Homelessness Bed & Breakfast Costs
Peterborough,http://opendatacommunities.org/id/unitary-authority/peterborough,Peterborough City Council,Communities,Housing,Services,05/02/2018 00:00,30164120,1061.62,Revenue,DA Rosalia Hotel,Homelessness Bed & Breakfast Costs
Peterborough,http://opendatacommunities.org/id/unitary-authority/peterborough,Peterborough City Council,Communities,Housing,Services,05/02/2018 00:00,30164122,1120,Revenue,DA Rosalia Hotel,Homelessness Bed & Breakfast Costs
Peterborough,http://opendatacommunities.org/id/unitary-authority/peterborough,Peterborough City Council,Communities,Housing,Services,05/02/2018 00:00,30164123,714.56,Revenue,DA Rosalia Hotel,Homelessness Bed & Breakfast Costs
Peterborough,http://opendatacommunities.org/id/unitary-authority/peterborough,Peterborough City Council,Communities,Housing,Services,05/02/2018 00:00,30164124,595.56,Revenue,DA Rosalia Hotel,Homelessness Bed & Breakfast Costs
Peterborough,http://opendatacommunities.org/id/unitary-authority/peterborough,Peterborough City Council,Communities,Housing,Services,05/02/2018 00:00,30164125,595.56,Revenue,DA Rosalia Hotel,Homelessness Bed & Breakfast Costs
Peterborough,http://opendatacommunities.org/id/unitary-authority/peterborough,Peterborough City Council,Communities,Housing,Services,05/02/2018 00:00,30164127,714.56,Revenue,DA Rosalia Hotel,Homelessness Bed & Breakfast Costs
Peterborough,http://opendatacommunities.org/id/unitary-authority/peterborough,Peterborough City Council,Communities,Housing,Services,05/02/2018 00:00,30164128,524.44,Revenue,DA Rosalia Hotel,Homelessness Bed & Breakfast Costs
Peterborough,http://opendatacommunities.org/id/unitary-authority/peterborough,Peterborough City Council,Communities,Housing,Services,05/02/2018 00:00,30164130,595.56,Revenue,DA Rosalia Hotel,Homelessness Bed & Breakfast Costs
Peterborough,http://opendatacommunities.org/id/unitary-authority/peterborough,Peterborough City Council,Vivacity/Cultural Services,Cultural Services,Energy Costs,05/02/2018 00:00,30164153,6451.32,Revenue,Corona Energy Retail 4 Limited,Gas
Peterborough,http://opendatacommunities.org/id/unitary-authority/peterborough,Peterborough City Council,Education,Pupil Referral Unit,Energy Costs,05/02/2018 00:00,30164153,563.27,Revenue,Corona Energy Retail 4 Limited,Gas
Peterborough,http://opendatacommunities.org/id/unitary-authority/peterborough,Peterborough City Council,Vivacity/Cultural Services,Cultural Services,Energy Costs,05/02/2018 00:00,30164153,1735.31,Revenue,Corona Energy Retail 4 Limited,Gas
Peterborough,http://opendatacommunities.org/id/unitary-authority/peterborough,Peterborough City Council,Education,School Standards & Effectiveness,Services,05/02/2018 00:00,30164280,3600,Revenue,Cooper& Jordan CofE Voluntary Aided Endowed School,Grant Payment
Peterborough,http://opendatacommunities.org/id/unitary-authority/peterborough,Peterborough City Council,Vivacity/Cultural Services,Cultural Services,Energy Costs,05/02/2018 00:00,30164308,2082.44,Revenue,Corona Energy Retail 4 Limited,Gas
Peterborough,http://opendatacommunities.org/id/unitary-authority/peterborough,Peterborough City Council,Adults,Independent Sector Placements,Services,05/02/2018 00:00,30164345,1161.24,Revenue,THE CLAIR FRANCIS RETIREMENT HOME,Residential Care
Peterborough,http://opendatacommunities.org/id/unitary-authority/peterborough,Peterborough City Council,Adults,Independent Sector Placements,Services,05/02/2018 00:00,30164346,1821.88,Revenue,THE CLAIR FRANCIS RETIREMENT HOME,Residential Care
Peterborough,http://opendatacommunities.org/id/unitary-authority/peterborough,Peterborough City Council,Adults,Independent Sector Placements,Services,05/02/2018 00:00,30164347,1284.08,Revenue,THE CLAIR FRANCIS RETIREMENT HOME,Residential Care
Peterborough,http://opendatacommunities.org/id/unitary-authority/peterborough,Peterborough City Council,Adults,Independent Sector Placements,Services,05/02/2018 00:00,30164348,921.72,Revenue,THE CLAIR FRANCIS RETIREMENT HOME,Residential Care
Peterborough,http://opendatacommunities.org/id/unitary-authority/peterborough,Peterborough City Council,Adults,Independent Sector Placements,Services,05/02/2018 00:00,30164349,1821.88,Revenue,THE CLAIR FRANCIS RETIREMENT HOME,Residential Care
Peterborough,http://opendatacommunities.org/id/unitary-authority/peterborough,Peterborough City Council,Adults,Independent Sector Placements,Services,05/02/2018 00:00,30164351,938.32,Revenue,THE CLAIR FRANCIS RETIREMENT HOME,Residential Care
Peterborough,http://opendatacommunities.org/id/unitary-authority/peterborough,Peterborough City Council,Adults,Independent Sector Placements,Services,05/02/2018 00:00,30164352,2845.47,Revenue,THE CLAIR FRANCIS RETIREMENT HOME,Residential Care
Peterborough,http://opendatacommunities.org/id/unitary-authority/peterborough,Peterborough City Council,Adults,Independent Sector Placements,Services,05/02/2018 00:00,30164353,965.64,Revenue,THE CLAIR FRANCIS RETIREMENT HOME,Residential Care
Peterborough,http://opendatacommunities.org/id/unitary-authority/peterborough,Peterborough City Council,Adults,Independent Sector Placements,Services,05/02/2018 00:00,30164354,2959.88,Revenue,THE CLAIR FRANCIS RETIREMENT HOME,Residential Care
Peterborough,http://opendatacommunities.org/id/unitary-authority/peterborough,Peterborough City Council,Corporate,Corporate,Non Revenue,05/02/2018 00:00,30164363,776445.96,Balance Sheet,Teachers Pensions,Pensions
Peterborough,http://opendatacommunities.org/id/unitary-authority/peterborough,Peterborough City Council,Adults,Independent Sector Placements,Services,05/02/2018 00:00,30164365,5061.84,Revenue,Turning Point Services Ltd,Residential Care
Peterborough,http://opendatacommunities.org/id/unitary-authority/peterborough,Peterborough City Council,Adults,Independent Sector Placements,Services,05/02/2018 00:00,30164366,6172.88,Revenue,Turning Point Services Ltd,Residential Care
Peterborough,http://opendatacommunities.org/id/unitary-authority/peterborough,Peterborough City Council,Adults,Independent Sector Placements,Services,05/02/2018 00:00,30164367,5635.2,Revenue,Turning Point Services Ltd,Residential Care
Peterborough,http://opendatacommunities.org/id/unitary-authority/peterborough,Peterborough City Council,Adults,Independent Sector Placements,Services,05/02/2018 00:00,30164368,5449.76,Revenue,Turning Point Services Ltd,Residential Care
Peterborough,http://opendatacommunities.org/id/unitary-authority/peterborough,Peterborough City Council,Adults,Independent Sector Placements,Services,05/02/2018 00:00,30164369,5635.2,Revenue,Turning Point Services Ltd,Residential Care
Peterborough,http://opendatacommunities.org/id/unitary-authority/peterborough,Peterborough City Council,Adults,Independent Sector Placements,Services,05/02/2018 00:00,30164370,5078.04,Revenue,Turning Point Services Ltd,Residential Care
Peterborough,http://opendatacommunities.org/id/unitary-authority/peterborough,Peterborough City Council,Adults,Independent Sector Placements,Services,05/02/2018 00:00,30164371,797.96,Revenue,THE CLAIR FRANCIS RETIREMENT HOME,Residential Care
Peterborough,http://opendatacommunities.org/id/unitary-authority/peterborough,Peterborough City Council,Adults,Independent Sector Placements,Services,05/02/2018 00:00,30164372,6167.28,Revenue,Turning Point Services Ltd,Residential Care
Peterborough,http://opendatacommunities.org/id/unitary-authority/peterborough,Peterborough City Council,Adults,Independent Sector Placements,Services,05/02/2018 00:00,30164373,1284.08,Revenue,THE CLAIR FRANCIS RETIREMENT HOME,Residential Care
Peterborough,http://opendatacommunities.org/id/unitary-authority/peterborough,Peterborough City Council,Adults,Independent Sector Placements,Services,05/02/2018 00:00,30164374,1821.88,Revenue,THE CLAIR FRANCIS RETIREMENT HOME,Residential Care
Peterborough,http://opendatacommunities.org/id/unitary-authority/peterborough,Peterborough City Council,Adults,Independent Sector Placements,Services,05/02/2018 00:00,30164375,4101.64,Revenue,Turning Point Services Ltd,Residential Care
Peterborough,http://opendatacommunities.org/id/unitary-authority/peterborough,Peterborough City Council,Adults,Independent Sector Placements,Services,05/02/2018 00:00,30164376,1038.44,Revenue,THE CLAIR FRANCIS RETIREMENT HOME,Residential Care
Peterborough,http://opendatacommunities.org/id/unitary-authority/peterborough,Peterborough City Council,Adults,Independent Sector Placements,Services,05/02/2018 00:00,30164377,1281.84,Revenue,THE CLAIR FRANCIS RETIREMENT HOME,Residential Care
Peterborough,http://opendatacommunities.org/id/unitary-authority/peterborough,Peterborough City Council,Adults,Independent Sector Placements,Services,05/02/2018 00:00,30164378,5046.2,Revenue,Turning Point Services Ltd,Residential Care
Peterborough,http://opendatacommunities.org/id/unitary-authority/peterborough,Peterborough City Council,Adults,Independent Sector Placements,Services,05/02/2018 00:00,30164379,1237.16,Revenue,THE CLAIR FRANCIS RETIREMENT HOME,Residential Care
Peterborough,http://opendatacommunities.org/id/unitary-authority/peterborough,Peterborough City Council,Adults,Independent Sector Placements,Services,05/02/2018 00:00,30164380,6886.68,Revenue,Turning Point Services Ltd,Residential Care
Peterborough,http://opendatacommunities.org/id/unitary-authority/peterborough,Peterborough City Council,Adults,Independent Sector Placements,Services,05/02/2018 00:00,30164382,1192.8,Revenue,Voyage,Home Care
Peterborough,http://opendatacommunities.org/id/unitary-authority/peterborough,Peterborough City Council,Adults,Independent Sector Placements,Services,05/02/2018 00:00,30164383,1505.2,Revenue,Voyage,Home Care
Peterborough,http://opendatacommunities.org/id/unitary-authority/peterborough,Peterborough City Council,Adults,Independent Sector Placements,Services,05/02/2018 00:00,30164384,1505.2,Revenue,Voyage,Home Care
Peterborough,http://opendatacommunities.org/id/unitary-authority/peterborough,Peterborough City Council,Adults,Independent Sector Placements,Services,05/02/2018 00:00,30164386,1192.8,Revenue,Voyage,Home Care
Peterborough,http://opendatacommunities.org/id/unitary-authority/peterborough,Peterborough City Council,Amey Peterborough & Waste Management,Waste & Operational Svs Mgmt,Water Services,05/02/2018 00:00,30164388,1883.9,Revenue,Anglian Water,Water
Peterborough,http://opendatacommunities.org/id/unitary-authority/peterborough,Peterborough City Council,Adults,Independent Sector Placements,Services,05/02/2018 00:00,30164393,1779.12,Revenue,Voyage,Home Care
Peterborough,http://opendatacommunities.org/id/unitary-authority/peterborough,Peterborough City Council,Adults,Independent Sector Placements,Services,05/02/2018 00:00,30164396,1779.12,Revenue,Voyage,Home Care
Peterborough,http://opendatacommunities.org/id/unitary-authority/peterborough,Peterborough City Council,Adults,Independent Sector Placements,Services,05/02/2018 00:00,30164398,1779.12,Revenue,Voyage,Home Care
Peterborough,http://opendatacommunities.org/id/unitary-authority/peterborough,Peterborough City Council,Communities,Community Capacity,Energy Costs,05/02/2018 00:00,30164413,712.43,Revenue,EDF Energy Networks Ltd,Electricity
Peterborough,http://opendatacommunities.org/id/unitary-authority/peterborough,Peterborough City Council,Communities,Community Capacity,Energy Costs,05/02/2018 00:00,30164413,533.07,Revenue,EDF Energy Networks Ltd,Electricity
Peterborough,http://opendatacommunities.org/id/unitary-authority/peterborough,Peterborough City Council,Adults,Independent Sector Placements,Services,05/02/2018 00:00,30164426,2540,Revenue,EXCELCARE GLENNFIELD HOUSE,Residential Care
Peterborough,http://opendatacommunities.org/id/unitary-authority/peterborough,Peterborough City Council,Adults,Independent Sector Placements,Contract Hire and Operating Leases,05/02/2018 00:00,30164427,1650,Revenue,King Carz Ltd,Hired Transport
Peterborough,http://opendatacommunities.org/id/unitary-authority/peterborough,Peterborough City Council,Adults,Independent Sector Placements,Contract Hire and Operating Leases,05/02/2018 00:00,30164428,1125,Revenue,King Carz Ltd,Hired Transport
Peterborough,http://opendatacommunities.org/id/unitary-authority/peterborough,Peterborough City Council,Adults,Independent Sector Placements,Services,05/02/2018 00:00,30164429,6985,Revenue,EXCELCARE GLENNFIELD HOUSE,Residential Care
Peterborough,http://opendatacommunities.org/id/unitary-authority/peterborough,Peterborough City Council,Adults,Independent Sector Placements,Services,05/02/2018 00:00,30164444,1103.04,Revenue,THE CLAIR FRANCIS RETIREMENT HOME,Residential Care
Peterborough,http://opendatacommunities.org/id/unitary-authority/peterborough,Peterborough City Council,Adults,Independent Sector Placements,Services,05/02/2018 00:00,30164448,6473.88,Revenue,Turning Point Services Ltd,Residential Care
Peterborough,http://opendatacommunities.org/id/unitary-authority/peterborough,Peterborough City Council,Adults,Independent Sector Placements,Services,05/02/2018 00:00,30164449,500.8,Revenue,Turning Point Services Ltd,Residential Care
Peterborough,http://opendatacommunities.org/id/unitary-authority/peterborough,Peterborough City Council,Adults,Independent Sector Placements,Services,05/02/2018 00:00,30164450,16651.6,Revenue,Turning Point Services Ltd,Residential Care
Peterborough,http://opendatacommunities.org/id/unitary-authority/peterborough,Peterborough City Council,Adults,Independent Sector Placements,Services,05/02/2018 00:00,30164451,11632.6,Revenue,Turning Point Services Ltd,Residential Care
Peterborough,http://opendatacommunities.org/id/unitary-authority/peterborough,Peterborough City Council,Adults,Independent Sector Placements,Services,05/02/2018 00:00,30164452,6473.88,Revenue,Turning Point Services Ltd,Residential Care
Peterborough,http://opendatacommunities.org/id/unitary-authority/peterborough,Peterborough City Council,Adults,Independent Sector Placements,Services,05/02/2018 00:00,30164453,6939.08,Revenue,Turning Point Services Ltd,Residential Care
Peterborough,http://opendatacommunities.org/id/unitary-authority/peterborough,Peterborough City Council,Adults,Independent Sector Placements,Services,05/02/2018 00:00,30164454,4677.96,Revenue,Turning Point Services Ltd,Residential Care
Peterborough,http://opendatacommunities.org/id/unitary-authority/peterborough,Peterborough City Council,HR,HR,Services,05/02/2018 00:00,30164457,19892.62,Revenue,Edenred,Childcare
Peterborough,http://opendatacommunities.org/id/unitary-authority/peterborough,Peterborough City Council,Adults,Independent Sector Placements,Services,05/02/2018 00:00,30164482,2181.6,Revenue,Southwark Park Nursing Homes - Blenheim Care Centre,Residential Care
Peterborough,http://opendatacommunities.org/id/unitary-authority/peterborough,Peterborough City Council,Adults,Independent Sector Placements,Services,05/02/2018 00:00,30164487,3439.29,Revenue,Transitions Supported Living Ltd,Residential Care
Peterborough,http://opendatacommunities.org/id/unitary-authority/peterborough,Peterborough City Council,Adults,Independent Sector Placements,Services,05/02/2018 00:00,30164499,-3183.26,Revenue,Voyage,Home Care
Peterborough,http://opendatacommunities.org/id/unitary-authority/peterborough,Peterborough City Council,Adults,Independent Sector Placements,Services,05/02/2018 00:00,30164502,13869.19,Revenue,Anchor Homes,Residential Care
Peterborough,http://opendatacommunities.org/id/unitary-authority/peterborough,Peterborough City Council,Amey Peterborough & Waste Management,Waste & Operational Svs Mgmt,Advertising,05/02/2018 00:00,30164515,2000,Revenue,Codename Media Ltd,Advertising
Peterborough,http://opendatacommunities.org/id/unitary-authority/peterborough,Peterborough City Council,Children's & Safeguarding,Children's Social Care,Agency Staff,05/02/2018 00:00,30164524,2675.8,Revenue,Eden Brown Ltd,External Temporary Staff
Peterborough,http://opendatacommunities.org/id/unitary-authority/peterborough,Peterborough City Council,Adults,Therapy/Reablement/Community Equipment,"Tools, Equipment, Furniture & Materials",05/02/2018 00:00,30164530,2911,Revenue,P F S Builders & Contractors,Occupational Therapy Equipment
Peterborough,http://opendatacommunities.org/id/unitary-authority/peterborough,Peterborough City Council,Education,HTS & CSC Transport,Contract Hire and Operating Leases,05/02/2018 00:00,30164537,1662.5,Revenue,Staffordshire County Council,Hired Transport
Peterborough,http://opendatacommunities.org/id/unitary-authority/peterborough,Peterborough City Council,Communities,Targeted Youth Service,Services,05/02/2018 00:00,30164563,3076.92,Revenue,The Froglife Trust,Special Projects
Peterborough,http://opendatacommunities.org/id/unitary-authority/peterborough,Peterborough City Council,Adults,Independent Sector Placements,Services,05/02/2018 00:00,8000107233,623.93,Revenue,Sagecare,Home Care
Peterborough,http://opendatacommunities.org/id/unitary-authority/peterborough,Peterborough City Council,Adults,Independent Sector Placements,Services,05/02/2018 00:00,8000107235,915.68,Revenue,Sagecare,Home Care
Peterborough,http://opendatacommunities.org/id/unitary-authority/peterborough,Peterborough City Council,Adults,Independent Sector Placements,Services,05/02/2018 00:00,8000107238,934.75,Revenue,Sagecare,Home Care
Peterborough,http://opendatacommunities.org/id/unitary-authority/peterborough,Peterborough City Council,Adults,Independent Sector Placements,Services,05/02/2018 00:00,8000107245,727.25,Revenue,Sagecare,Home Care
Peterborough,http://opendatacommunities.org/id/unitary-authority/peterborough,Peterborough City Council,Adults,Independent Sector Placements,Services,05/02/2018 00:00,8000107247,539,Revenue,Sagecare,Home Care
Peterborough,http://opendatacommunities.org/id/unitary-authority/peterborough,Peterborough City Council,Adults,Independent Sector Placements,Services,05/02/2018 00:00,8000107251,1889.25,Revenue,Sagecare,Home Care
Peterborough,http://opendatacommunities.org/id/unitary-authority/peterborough,Peterborough City Council,Adults,Independent Sector Placements,Services,05/02/2018 00:00,8000107252,945,Revenue,Sagecare,Home Care
Peterborough,http://opendatacommunities.org/id/unitary-authority/peterborough,Peterborough City Council,Adults,Independent Sector Placements,Services,05/02/2018 00:00,8000107253,615.5,Revenue,Sagecare,Home Care
Peterborough,http://opendatacommunities.org/id/unitary-authority/peterborough,Peterborough City Council,Adults,Independent Sector Placements,Services,05/02/2018 00:00,8000107258,883.34,Revenue,Sagecare,Home Care
Peterborough,http://opendatacommunities.org/id/unitary-authority/peterborough,Peterborough City Council,Adults,Independent Sector Placements,Services,05/02/2018 00:00,8000107259,2538,Revenue,Sagecare,Home Care
Peterborough,http://opendatacommunities.org/id/unitary-authority/peterborough,Peterborough City Council,Adults,Independent Sector Placements,Services,05/02/2018 00:00,8000107262,583.51,Revenue,Sagecare,Home Care
Peterborough,http://opendatacommunities.org/id/unitary-authority/peterborough,Peterborough City Council,Adults,Independent Sector Placements,Services,05/02/2018 00:00,8000107263,1562.72,Revenue,Sagecare,Home Care
Peterborough,http://opendatacommunities.org/id/unitary-authority/peterborough,Peterborough City Council,Adults,Independent Sector Placements,Services,05/02/2018 00:00,8000107265,592.05,Revenue,Sagecare,Home Care
Peterborough,http://opendatacommunities.org/id/unitary-authority/peterborough,Peterborough City Council,Adults,Independent Sector Placements,Services,05/02/2018 00:00,8000107268,977.13,Revenue,Sagecare,Home Care
Peterborough,http://opendatacommunities.org/id/unitary-authority/peterborough,Peterborough City Council,Adults,Independent Sector Placements,Services,05/02/2018 00:00,8000107269,1067.22,Revenue,Sagecare,Home Care
Peterborough,http://opendatacommunities.org/id/unitary-authority/peterborough,Peterborough City Council,Adults,Independent Sector Placements,Services,05/02/2018 00:00,8000107272,675.91,Revenue,Sagecare,Home Care
Peterborough,http://opendatacommunities.org/id/unitary-authority/peterborough,Peterborough City Council,Adults,Independent Sector Placements,Services,05/02/2018 00:00,8000107277,2855.62,Revenue,Sagecare,Home Care
Peterborough,http://opendatacommunities.org/id/unitary-authority/peterborough,Peterborough City Council,Adults,Independent Sector Placements,Services,05/02/2018 00:00,8000107278,679.14,Revenue,Sagecare,Home Care
Peterborough,http://opendatacommunities.org/id/unitary-authority/peterborough,Peterborough City Council,Adults,Independent Sector Placements,Services,05/02/2018 00:00,8000107279,598.06,Revenue,Sagecare,Home Care
Peterborough,http://opendatacommunities.org/id/unitary-authority/peterborough,Peterborough City Council,Adults,Independent Sector Placements,Services,05/02/2018 00:00,8000107281,942.48,Revenue,Sagecare,Home Care
Peterborough,http://opendatacommunities.org/id/unitary-authority/peterborough,Peterborough City Council,Adults,Independent Sector Placements,Services,05/02/2018 00:00,8000107283,848.93,Revenue,Sagecare,Home Care
Peterborough,http://opendatacommunities.org/id/unitary-authority/peterborough,Peterborough City Council,Adults,Independent Sector Placements,Services,05/02/2018 00:00,8000107287,761.15,Revenue,Sagecare,Home Care
Peterborough,http://opendatacommunities.org/id/unitary-authority/peterborough,Peterborough City Council,Adults,Independent Sector Placements,Services,05/02/2018 00:00,8000107288,574.27,Revenue,Sagecare,Home Care
Peterborough,http://opendatacommunities.org/id/unitary-authority/peterborough,Peterborough City Council,Adults,Independent Sector Placements,Services,05/02/2018 00:00,8000107293,670.13,Revenue,Sagecare,Home Care
Peterborough,http://opendatacommunities.org/id/unitary-authority/peterborough,Peterborough City Council,Adults,Independent Sector Placements,Services,05/02/2018 00:00,8000107294,1095.63,Revenue,Sagecare,Home Care
Peterborough,http://opendatacommunities.org/id/unitary-authority/peterborough,Peterborough City Council,Adults,Independent Sector Placements,Services,05/02/2018 00:00,8000107296,568.72,Revenue,Sagecare,Home Care
Peterborough,http://opendatacommunities.org/id/unitary-authority/peterborough,Peterborough City Council,Adults,Independent Sector Placements,Services,05/02/2018 00:00,8000107297,579.35,Revenue,Sagecare,Home Care
Peterborough,http://opendatacommunities.org/id/unitary-authority/peterborough,Peterborough City Council,Adults,Independent Sector Placements,Services,05/02/2018 00:00,8000107298,686.99,Revenue,Sagecare,Home Care
Peterborough,http://opendatacommunities.org/id/unitary-authority/peterborough,Peterborough City Council,Adults,Independent Sector Placements,Services,05/02/2018 00:00,8000107301,554.4,Revenue,Sagecare,Home Care
Peterborough,http://opendatacommunities.org/id/unitary-authority/peterborough,Peterborough City Council,Adults,Independent Sector Placements,Services,05/02/2018 00:00,8000107302,1098.64,Revenue,Sagecare,Home Care
Peterborough,http://opendatacommunities.org/id/unitary-authority/peterborough,Peterborough City Council,Adults,Independent Sector Placements,Services,05/02/2018 00:00,8000107304,815.2,Revenue,Sagecare,Home Care
Peterborough,http://opendatacommunities.org/id/unitary-authority/peterborough,Peterborough City Council,Adults,Independent Sector Placements,Services,05/02/2018 00:00,8000107308,675.68,Revenue,Sagecare,Home Care
Peterborough,http://opendatacommunities.org/id/unitary-authority/peterborough,Peterborough City Council,Adults,Independent Sector Placements,Services,05/02/2018 00:00,8000107309,516.29,Revenue,Sagecare,Home Care
Peterborough,http://opendatacommunities.org/id/unitary-authority/peterborough,Peterborough City Council,Adults,Independent Sector Placements,Services,05/02/2018 00:00,8000107312,508.2,Revenue,Sagecare,Home Care
Peterborough,http://opendatacommunities.org/id/unitary-authority/peterborough,Peterborough City Council,Adults,Independent Sector Placements,Services,05/02/2018 00:00,8000107313,1206.74,Revenue,Sagecare,Home Care
Peterborough,http://opendatacommunities.org/id/unitary-authority/peterborough,Peterborough City Council,Adults,Independent Sector Placements,Services,05/02/2018 00:00,8000107315,1552.78,Revenue,Sagecare,Home Care
Peterborough,http://opendatacommunities.org/id/unitary-authority/peterborough,Peterborough City Council,Adults,Independent Sector Placements,Services,05/02/2018 00:00,8000107318,1940,Revenue,Sagecare,Home Care
Peterborough,http://opendatacommunities.org/id/unitary-authority/peterborough,Peterborough City Council,Adults,Independent Sector Placements,Services,05/02/2018 00:00,8000107319,1329.87,Revenue,Sagecare,Home Care
Peterborough,http://opendatacommunities.org/id/unitary-authority/peterborough,Peterborough City Council,Adults,Independent Sector Placements,Services,05/02/2018 00:00,8000107321,884.27,Revenue,Sagecare,Home Care
Peterborough,http://opendatacommunities.org/id/unitary-authority/peterborough,Peterborough City Council,Adults,Independent Sector Placements,Services,05/02/2018 00:00,8000107322,1347.89,Revenue,Sagecare,Home Care
Peterborough,http://opendatacommunities.org/id/unitary-authority/peterborough,Peterborough City Council,Adults,Independent Sector Placements,Services,05/02/2018 00:00,8000107323,543.31,Revenue,Sagecare,Home Care
Peterborough,http://opendatacommunities.org/id/unitary-authority/peterborough,Peterborough City Council,Adults,Independent Sector Placements,Services,05/02/2018 00:00,8000107324,776.16,Revenue,Sagecare,Home Care
Peterborough,http://opendatacommunities.org/id/unitary-authority/peterborough,Peterborough City Council,Adults,Independent Sector Placements,Services,05/02/2018 00:00,8000107329,1272.58,Revenue,Sagecare,Home Care
Peterborough,http://opendatacommunities.org/id/unitary-authority/peterborough,Peterborough City Council,Adults,Independent Sector Placements,Services,05/02/2018 00:00,8000107331,792.56,Revenue,Sagecare,Home Care
Peterborough,http://opendatacommunities.org/id/unitary-authority/peterborough,Peterborough City Council,Adults,Independent Sector Placements,Services,05/02/2018 00:00,8000107332,956.8,Revenue,Sagecare,Home Care
Peterborough,http://opendatacommunities.org/id/unitary-authority/peterborough,Peterborough City Council,Adults,Independent Sector Placements,Services,05/02/2018 00:00,8000107333,1592.98,Revenue,Sagecare,Home Care
Peterborough,http://opendatacommunities.org/id/unitary-authority/peterborough,Peterborough City Council,Adults,Independent Sector Placements,Services,05/02/2018 00:00,8000107334,1940.4,Revenue,Sagecare,Home Care
Peterborough,http://opendatacommunities.org/id/unitary-authority/peterborough,Peterborough City Council,Adults,Independent Sector Placements,Services,05/02/2018 00:00,8000107335,1747.98,Revenue,Sagecare,Home Care
Peterborough,http://opendatacommunities.org/id/unitary-authority/peterborough,Peterborough City Council,Adults,Independent Sector Placements,Services,05/02/2018 00:00,8000107337,680.06,Revenue,Sagecare,Home Care
Peterborough,http://opendatacommunities.org/id/unitary-authority/peterborough,Peterborough City Council,Adults,Independent Sector Placements,Services,05/02/2018 00:00,8000107339,746.82,Revenue,Sagecare,Home Care
Peterborough,http://opendatacommunities.org/id/unitary-authority/peterborough,Peterborough City Council,Adults,Independent Sector Placements,Services,05/02/2018 00:00,8000107340,1746.36,Revenue,Sagecare,Home Care
Peterborough,http://opendatacommunities.org/id/unitary-authority/peterborough,Peterborough City Council,Adults,Independent Sector Placements,Services,05/02/2018 00:00,8000107343,872.72,Revenue,Sagecare,Home Care
Peterborough,http://opendatacommunities.org/id/unitary-authority/peterborough,Peterborough City Council,Adults,Independent Sector Placements,Services,05/02/2018 00:00,8000107344,516.75,Revenue,Sagecare,Home Care
Peterborough,http://opendatacommunities.org/id/unitary-authority/peterborough,Peterborough City Council,Adults,Independent Sector Placements,Services,05/02/2018 00:00,8000107349,629.24,Revenue,Sagecare,Home Care
Peterborough,http://opendatacommunities.org/id/unitary-authority/peterborough,Peterborough City Council,Adults,Independent Sector Placements,Services,05/02/2018 00:00,8000107350,617.23,Revenue,Sagecare,Home Care
Peterborough,http://opendatacommunities.org/id/unitary-authority/peterborough,Peterborough City Council,Adults,Independent Sector Placements,Services,05/02/2018 00:00,8000107356,1940.4,Revenue,Sagecare,Home Care
Peterborough,http://opendatacommunities.org/id/unitary-authority/peterborough,Peterborough City Council,Adults,Independent Sector Placements,Services,05/02/2018 00:00,8000107362,2106.72,Revenue,Sagecare,Home Care
Peterborough,http://opendatacommunities.org/id/unitary-authority/peterborough,Peterborough City Council,Adults,Independent Sector Placements,Services,05/02/2018 00:00,8000107365,2324.32,Revenue,Sagecare,Home Care
Peterborough,http://opendatacommunities.org/id/unitary-authority/peterborough,Peterborough City Council,Adults,Independent Sector Placements,Services,05/02/2018 00:00,8000107368,565.95,Revenue,Sagecare,Home Care
Peterborough,http://opendatacommunities.org/id/unitary-authority/peterborough,Peterborough City Council,Adults,Independent Sector Placements,Services,05/02/2018 00:00,8000107371,751.56,Revenue,Hales Group Ltd,Home Care
Peterborough,http://opendatacommunities.org/id/unitary-authority/peterborough,Peterborough City Council,Adults,Independent Sector Placements,Services,05/02/2018 00:00,8000107374,2266.35,Revenue,Hales Group Ltd,Home Care
Peterborough,http://opendatacommunities.org/id/unitary-authority/peterborough,Peterborough City Council,Adults,Independent Sector Placements,Services,05/02/2018 00:00,8000107376,583.1,Revenue,Axiom Care Ltd,Home Care
Peterborough,http://opendatacommunities.org/id/unitary-authority/peterborough,Peterborough City Council,Adults,Independent Sector Placements,Services,05/02/2018 00:00,8000107380,1335.78,Revenue,Axiom Care Ltd,Home Care
Peterborough,http://opendatacommunities.org/id/unitary-authority/peterborough,Peterborough City Council,Adults,Independent Sector Placements,Services,05/02/2018 00:00,8000107381,1124.55,Revenue,Axiom Care Ltd,Home Care
Peterborough,http://opendatacommunities.org/id/unitary-authority/peterborough,Peterborough City Council,Adults,Independent Sector Placements,Services,05/02/2018 00:00,8000107382,525,Revenue,Axiom Care Ltd,Home Care
Peterborough,http://opendatacommunities.org/id/unitary-authority/peterborough,Peterborough City Council,Adults,Independent Sector Placements,Services,05/02/2018 00:00,8000107384,2461,Revenue,Augusta Care Ltd,Home Care
Peterborough,http://opendatacommunities.org/id/unitary-authority/peterborough,Peterborough City Council,Adults,Independent Sector Placements,Services,05/02/2018 00:00,8000107385,2461,Revenue,Augusta Care Ltd,Home Care
Peterborough,http://opendatacommunities.org/id/unitary-authority/peterborough,Peterborough City Council,Adults,Independent Sector Placements,Services,05/02/2018 00:00,8000107387,2399.76,Revenue,Augusta Care Ltd,Home Care
Peterborough,http://opendatacommunities.org/id/unitary-authority/peterborough,Peterborough City Council,Adults,Independent Sector Placements,Services,05/02/2018 00:00,8000107389,823.6,Revenue,Augusta Care Ltd,Home Care
Peterborough,http://opendatacommunities.org/id/unitary-authority/peterborough,Peterborough City Council,Adults,Independent Sector Placements,Services,05/02/2018 00:00,8000107441,520.98,Revenue,Hales Group Ltd,Home Care
Peterborough,http://opendatacommunities.org/id/unitary-authority/peterborough,Peterborough City Council,Adults,Independent Sector Placements,Services,05/02/2018 00:00,8000107442,1878.71,Revenue,Hales Group Ltd,Home Care
Peterborough,http://opendatacommunities.org/id/unitary-authority/peterborough,Peterborough City Council,Adults,Independent Sector Placements,Services,05/02/2018 00:00,8000107443,711.85,Revenue,Hales Group Ltd,Home Care
Peterborough,http://opendatacommunities.org/id/unitary-authority/peterborough,Peterborough City Council,Adults,Independent Sector Placements,Services,05/02/2018 00:00,8000107444,578.5,Revenue,Hales Group Ltd,Home Care
Peterborough,http://opendatacommunities.org/id/unitary-authority/peterborough,Peterborough City Council,Adults,Independent Sector Placements,Services,05/02/2018 00:00,8000107445,1524.13,Revenue,Hales Group Ltd,Home Care
Peterborough,http://opendatacommunities.org/id/unitary-authority/peterborough,Peterborough City Council,Adults,Independent Sector Placements,Services,05/02/2018 00:00,8000107446,518.81,Revenue,Hales Group Ltd,Home Care
Peterborough,http://opendatacommunities.org/id/unitary-authority/peterborough,Peterborough City Council,Adults,Independent Sector Placements,Services,05/02/2018 00:00,8000107447,870.06,Revenue,Hales Group Ltd,Home Care
Peterborough,http://opendatacommunities.org/id/unitary-authority/peterborough,Peterborough City Council,Adults,Independent Sector Placements,Services,05/02/2018 00:00,8000107449,1317.12,Revenue,Hales Group Ltd,Home Care
Peterborough,http://opendatacommunities.org/id/unitary-authority/peterborough,Peterborough City Council,Adults,Independent Sector Placements,Services,05/02/2018 00:00,8000107452,846.61,Revenue,Hales Group Ltd,Home Care
Peterborough,http://opendatacommunities.org/id/unitary-authority/peterborough,Peterborough City Council,Adults,Independent Sector Placements,Services,05/02/2018 00:00,8000107453,806.01,Revenue,Hales Group Ltd,Home Care
Peterborough,http://opendatacommunities.org/id/unitary-authority/peterborough,Peterborough City Council,Adults,Independent Sector Placements,Services,05/02/2018 00:00,8000107455,627.69,Revenue,Hales Group Ltd,Home Care
Peterborough,http://opendatacommunities.org/id/unitary-authority/peterborough,Peterborough City Council,Adults,Independent Sector Placements,Services,05/02/2018 00:00,8000107456,1107.04,Revenue,Hales Group Ltd,Home Care
Peterborough,http://opendatacommunities.org/id/unitary-authority/peterborough,Peterborough City Council,Adults,Independent Sector Placements,Services,05/02/2018 00:00,8000107457,755.79,Revenue,Hales Group Ltd,Home Care
Peterborough,http://opendatacommunities.org/id/unitary-authority/peterborough,Peterborough City Council,Adults,Independent Sector Placements,Services,05/02/2018 00:00,8000107458,896.7,Revenue,Hales Group Ltd,Home Care
Peterborough,http://opendatacommunities.org/id/unitary-authority/peterborough,Peterborough City Council,Adults,Independent Sector Placements,Services,05/02/2018 00:00,8000107459,736.58,Revenue,Hales Group Ltd,Home Care
Peterborough,http://opendatacommunities.org/id/unitary-authority/peterborough,Peterborough City Council,Adults,Independent Sector Placements,Services,05/02/2018 00:00,8000107461,616,Revenue,COMFORCARE SENIOR SERVICES,Home Care
Peterborough,http://opendatacommunities.org/id/unitary-authority/peterborough,Peterborough City Council,Adults,Independent Sector Placements,Services,05/02/2018 00:00,8000107462,1482.75,Revenue,COMFORCARE SENIOR SERVICES,Home Care
Peterborough,http://opendatacommunities.org/id/unitary-authority/peterborough,Peterborough City Council,Adults,Independent Sector Placements,Services,05/02/2018 00:00,8000107463,2014.25,Revenue,COMFORCARE SENIOR SERVICES,Home Care
Peterborough,http://opendatacommunities.org/id/unitary-authority/peterborough,Peterborough City Council,Adults,Independent Sector Placements,Services,05/02/2018 00:00,8000107508,2676.37,Revenue,Sagecare,Home Care
Peterborough,http://opendatacommunities.org/id/unitary-authority/peterborough,Peterborough City Council,Adults,Independent Sector Placements,Services,05/02/2018 00:00,8000107510,552,Revenue,Cozy Care,Home Care
Peterborough,http://opendatacommunities.org/id/unitary-authority/peterborough,Peterborough City Council,Adults,Independent Sector Placements,Services,05/02/2018 00:00,8000107515,1173,Revenue,Cozy Care,Home Care
Peterborough,http://opendatacommunities.org/id/unitary-authority/peterborough,Peterborough City Council,Education,HTS & CSC Transport,Contract Hire and Operating Leases,05/02/2018 00:00,8000107947,2380.99,Revenue,Goldstar Cabs Ltd,Hired Transport
Peterborough,http://opendatacommunities.org/id/unitary-authority/peterborough,Peterborough City Council,Education,HTS & CSC Transport,Contract Hire and Operating Leases,05/02/2018 00:00,8000107949,607.6,Revenue,Redacted Personal Information,Hired Transport
Peterborough,http://opendatacommunities.org/id/unitary-authority/peterborough,Peterborough City Council,Children's & Safeguarding,Children's Social Care,"Tools, Equipment, Furniture & Materials",07/02/2018 00:00,30124976,555,Revenue,Millwill Furnishers,Furniture And Equipment Purchase
Peterborough,http://opendatacommunities.org/id/unitary-authority/peterborough,Peterborough City Council,Education,Financing - Resources,Services,07/02/2018 00:00,30157317,-96000,Revenue,Peterborough Regional College,Education Expenses
Peterborough,http://opendatacommunities.org/id/unitary-authority/peterborough,Peterborough City Council,Communities,Service Director - Adults & Communities,Interview & Training Expenses,07/02/2018 00:00,30157507,2500,Revenue,Peterborough Regional College,Training
Peterborough,http://opendatacommunities.org/id/unitary-authority/peterborough,Peterborough City Council,Commissioning and Commercial Operations,Early Years & Quality Improvement,Services,07/02/2018 00:00,30157891,30492.99,Revenue,Peterborough Regional College,Grant Payment
Peterborough,http://opendatacommunities.org/id/unitary-authority/peterborough,Peterborough City Council,Development and Construction,Development Management,Services,07/02/2018 00:00,30160185,1080,Revenue,WYG,Consultants Fees
Peterborough,http://opendatacommunities.org/id/unitary-authority/peterborough,Peterborough City Council,Vivacity/Cultural Services,Cultural Services,Repair & Maintenance of Buildings,07/02/2018 00:00,30160315,1636.66,Revenue,Honeywell Control Systems Ltd,Premises Maintenance
Peterborough,http://opendatacommunities.org/id/unitary-authority/peterborough,Peterborough City Council,Children's & Safeguarding,Early Help ASC/CSC,Interview & Training Expenses,07/02/2018 00:00,30160695,7500,Revenue,The Ministry of Parenting,Training
Peterborough,http://opendatacommunities.org/id/unitary-authority/peterborough,Peterborough City Council,Vivacity/Cultural Services,Cultural Services,Services,07/02/2018 00:00,30160849,1450,Revenue,Peterborough Regional College,Hired Services
Peterborough,http://opendatacommunities.org/id/unitary-authority/peterborough,Peterborough City Council,Public Health,PH Commissioning,Third Party Payments,07/02/2018 00:00,30161142,641564.15,Revenue,"CGL - Change, Grow, Live",Third Party Payments - Contract
Peterborough,http://opendatacommunities.org/id/unitary-authority/peterborough,Peterborough City Council,Commissioning and Commercial Operations,Early Years & Quality Improvement,Interview & Training Expenses,07/02/2018 00:00,30161329,834,Revenue,Fenland First Aid Services Ltd,Training
Peterborough,http://opendatacommunities.org/id/unitary-authority/peterborough,Peterborough City Council,Adults,Home Services Delivery Model,Services,07/02/2018 00:00,30161354,3927,Revenue,Casbon Building Services,Special Projects
Peterborough,http://opendatacommunities.org/id/unitary-authority/peterborough,Peterborough City Council,Adults,Home Services Delivery Model,Services,07/02/2018 00:00,30161355,4328,Revenue,A W Morley T/A Morley Building Services,Special Projects
Peterborough,http://opendatacommunities.org/id/unitary-authority/peterborough,Peterborough City Council,Peterborough Highway Services,Highway & Drainage Control,Agency Staff,07/02/2018 00:00,30161489,1326.6,Revenue,Matchtech,External Temporary Staff
Peterborough,http://opendatacommunities.org/id/unitary-authority/peterborough,Peterborough City Council,Adults,Home Services Delivery Model,Services,07/02/2018 00:00,30161491,1440.75,Revenue,Handyman Steve,Contractors
Peterborough,http://opendatacommunities.org/id/unitary-authority/peterborough,Peterborough City Council,Development and Construction,Development Management,Advertising,07/02/2018 00:00,30161564,718.42,Revenue,Johnston Press Midlands Division,Advertising
Peterborough,http://opendatacommunities.org/id/unitary-authority/peterborough,Peterborough City Council,Legal & Democratic,Legal Services,Agency Staff,07/02/2018 00:00,30161570,1288,Revenue,Venn Group Ltd,External Temporary Staff
Peterborough,http://opendatacommunities.org/id/unitary-authority/peterborough,Peterborough City Council,Children's & Safeguarding,Children's Social Care,Agency Staff,07/02/2018 00:00,30161582,5571.6,Revenue,Swim Recruitment,External Temporary Staff
Peterborough,http://opendatacommunities.org/id/unitary-authority/peterborough,Peterborough City Council,Adults,Day opportunities - Older People,Agency Staff,07/02/2018 00:00,30161631,976.8,Revenue,Medicare First,External Temporary Staff
Peterborough,http://opendatacommunities.org/id/unitary-authority/peterborough,Peterborough City Council,Education,School Standards & Effectiveness,Services,07/02/2018 00:00,30161633,2199.28,Revenue,Mindstretchers Ltd,Consultants Fees
Peterborough,http://opendatacommunities.org/id/unitary-authority/peterborough,Peterborough City Council,Communities,Targeted Youth Service,Rents,07/02/2018 00:00,30161669,693,Revenue,TDA Development Ltd,Hire Of Premises
Peterborough,http://opendatacommunities.org/id/unitary-authority/peterborough,Peterborough City Council,Education,Special Educational Needs / Inclusion,Services,07/02/2018 00:00,30161685,836.4,Revenue,Ewing Foundation,Hired Services
Peterborough,http://opendatacommunities.org/id/unitary-authority/peterborough,Peterborough City Council,Commissioning and Commercial Operations,Clare Lodge,Repair & Maintenance of Buildings,07/02/2018 00:00,30161687,1650,Revenue,B & H Projects Ltd,Premises Repairs
Peterborough,http://opendatacommunities.org/id/unitary-authority/peterborough,Peterborough City Council,Peterborough Highway Services,Network and Traffic Management,Services,07/02/2018 00:00,30161692,3743.86,Revenue,Dynniq UK Ltd,Contractors
Peterborough,http://opendatacommunities.org/id/unitary-authority/peterborough,Peterborough City Council,Peterborough Highway Services,Network and Traffic Management,Services,07/02/2018 00:00,30161693,3677,Revenue,Dynniq UK Ltd,Contractors
Peterborough,http://opendatacommunities.org/id/unitary-authority/peterborough,Peterborough City Council,Education,Special Educational Needs / Inclusion,Services,07/02/2018 00:00,30161716,3839.44,Revenue,Tripod Learning Ltd,Education Expenses
Peterborough,http://opendatacommunities.org/id/unitary-authority/peterborough,Peterborough City Council,Adults,Independent Sector Placements,Services,07/02/2018 00:00,30161835,3880.88,Revenue,Bandrum Nursing Home Ltd,Residential Care
Peterborough,http://opendatacommunities.org/id/unitary-authority/peterborough,Peterborough City Council,Adults,Independent Sector Placements,Services,07/02/2018 00:00,30161839,3880.88,Revenue,Bandrum Nursing Home Ltd,Residential Care
Peterborough,http://opendatacommunities.org/id/unitary-authority/peterborough,Peterborough City Council,Adults,Independent Sector Placements,Services,07/02/2018 00:00,30161859,2182.2,Revenue,HEREWARD CARE SERVICES LIMITED,Residential Care
Peterborough,http://opendatacommunities.org/id/unitary-authority/peterborough,Peterborough City Council,Adults,Independent Sector Placements,Services,07/02/2018 00:00,30161860,3187.48,Revenue,HEREWARD CARE SERVICES LIMITED,Residential Care
Peterborough,http://opendatacommunities.org/id/unitary-authority/peterborough,Peterborough City Council,Adults,Independent Sector Placements,Services,07/02/2018 00:00,30161861,3437.52,Revenue,HEREWARD CARE SERVICES LIMITED,Residential Care
Peterborough,http://opendatacommunities.org/id/unitary-authority/peterborough,Peterborough City Council,Adults,Independent Sector Placements,Services,07/02/2018 00:00,30161863,2678.24,Revenue,HEREWARD CARE SERVICES LIMITED,Residential Care
Peterborough,http://opendatacommunities.org/id/unitary-authority/peterborough,Peterborough City Council,Adults,Independent Sector Placements,Services,07/02/2018 00:00,30161864,2677.32,Revenue,HEREWARD CARE SERVICES LIMITED,Residential Care
Peterborough,http://opendatacommunities.org/id/unitary-authority/peterborough,Peterborough City Council,Adults,Independent Sector Placements,Services,07/02/2018 00:00,30161865,4497.76,Revenue,HEREWARD CARE SERVICES LIMITED,Residential Care
Peterborough,http://opendatacommunities.org/id/unitary-authority/peterborough,Peterborough City Council,Adults,Independent Sector Placements,Services,07/02/2018 00:00,30161866,2621.6,Revenue,HEREWARD CARE SERVICES LIMITED,Residential Care
Peterborough,http://opendatacommunities.org/id/unitary-authority/peterborough,Peterborough City Council,Adults,Independent Sector Placements,Services,07/02/2018 00:00,30161873,2808.64,Revenue,HEREWARD CARE SERVICES LIMITED,Residential Care
Peterborough,http://opendatacommunities.org/id/unitary-authority/peterborough,Peterborough City Council,Adults,Block Contracts,Third Party Payments,07/02/2018 00:00,30161879,60548.12,Revenue,HEREWARD CARE SERVICES LIMITED,Third Party Payments - Contract
Peterborough,http://opendatacommunities.org/id/unitary-authority/peterborough,Peterborough City Council,Children's & Safeguarding,Early Help ASC/CSC,Services,07/02/2018 00:00,30161889,2250,Revenue,BDP Social Care Ltd,Hired Services
Peterborough,http://opendatacommunities.org/id/unitary-authority/peterborough,Peterborough City Council,Adults,Mental Capacity Act & DoLs,Services,07/02/2018 00:00,30161898,1162,Revenue,Raj Medical Consultancy Limited,Hired Services
Peterborough,http://opendatacommunities.org/id/unitary-authority/peterborough,Peterborough City Council,Adults,Independent Sector Placements,Services,07/02/2018 00:00,30161985,18461.39,Revenue,Maxey House Res Home,Residential Care
Peterborough,http://opendatacommunities.org/id/unitary-authority/peterborough,Peterborough City Council,Education,Special Educational Needs / Inclusion,Services,07/02/2018 00:00,30161987,11912.16,Revenue,Sonova UK Ltd,Education Expenses
Peterborough,http://opendatacommunities.org/id/unitary-authority/peterborough,Peterborough City Council,Adults,Independent Sector Placements,Services,07/02/2018 00:00,30161992,2017.08,Revenue,Bestcare Ltd,Residential Care
Peterborough,http://opendatacommunities.org/id/unitary-authority/peterborough,Peterborough City Council,"Cemeteries, Cremation & Registrars",Bereavement Service,Services,07/02/2018 00:00,30162106,1133,Revenue,Anglia Co-operative Funerals,Contract Funerals
Peterborough,http://opendatacommunities.org/id/unitary-authority/peterborough,Peterborough City Council,Adults,Independent Sector Placements,Services,07/02/2018 00:00,30162116,955.76,Revenue,FIELD HOUSE (EYE) LTD,Residential Care
Peterborough,http://opendatacommunities.org/id/unitary-authority/peterborough,Peterborough City Council,Commissioning and Commercial Operations,Commissioning,Services,07/02/2018 00:00,30162184,2130,Revenue,BDP Social Care Ltd,Hired Services
Peterborough,http://opendatacommunities.org/id/unitary-authority/peterborough,Peterborough City Council,Commissioning and Commercial Operations,Commissioning,Services,07/02/2018 00:00,30162188,800,Revenue,BDP Social Care Ltd,Hired Services
Peterborough,http://opendatacommunities.org/id/unitary-authority/peterborough,Peterborough City Council,Corporate Property,Office Accomodation,Repair & Maintenance of Buildings,07/02/2018 00:00,30162510,5274.78,Revenue,Baker Perkins Ltd,Service Charges - Premises
Peterborough,http://opendatacommunities.org/id/unitary-authority/peterborough,Peterborough City Council,Adults,Independent Sector Placements,Services,07/02/2018 00:00,30162631,1614.32,Revenue,BUPA Care Homes,Residential Care
Peterborough,http://opendatacommunities.org/id/unitary-authority/peterborough,Peterborough City Council,Corporate Property,Office Accomodation,Repair & Maintenance of Buildings,07/02/2018 00:00,30162700,5784.22,Revenue,Baker Perkins Ltd,Service Charges - Premises
Peterborough,http://opendatacommunities.org/id/unitary-authority/peterborough,Peterborough City Council,Communities,Targeted Youth Service,Rents,07/02/2018 00:00,30162721,606.3,Revenue,Peterborough Regional College,Hire Of Premises
Peterborough,http://opendatacommunities.org/id/unitary-authority/peterborough,Peterborough City Council,Adults,Independent Sector Placements,Services,07/02/2018 00:00,30162729,534.17,Revenue,LEONARD CHESHIRE DISABILITY,Residential Care
Peterborough,http://opendatacommunities.org/id/unitary-authority/peterborough,Peterborough City Council,Performance & Information,Coroners Service,Third Party Payments,07/02/2018 00:00,30162890,153695.3,Revenue,Cambridgeshire County Council,Third Party Payments - Contract
Peterborough,http://opendatacommunities.org/id/unitary-authority/peterborough,Peterborough City Council,Adults,Other Services,Third Party Payments,07/02/2018 00:00,30162909,10000,Revenue,P'Boro Council For Voluntary Srvs (PCVS),Third Party Payments - Contract
Peterborough,http://opendatacommunities.org/id/unitary-authority/peterborough,Peterborough City Council,Adults,Other Services,Third Party Payments,07/02/2018 00:00,30162910,10000,Revenue,P'Boro Council For Voluntary Srvs (PCVS),Third Party Payments - Contract
Peterborough,http://opendatacommunities.org/id/unitary-authority/peterborough,Peterborough City Council,Adults,Independent Sector Placements,Services,07/02/2018 00:00,30163164,3460.44,Revenue,Alysia Caring Ltd T/a Cherry Blossom care Home,Residential Care
Peterborough,http://opendatacommunities.org/id/unitary-authority/peterborough,Peterborough City Council,Adults,Independent Sector Placements,Services,07/02/2018 00:00,30163165,2739.2,Revenue,Alysia Caring Ltd T/a Cherry Blossom care Home,Residential Care
Peterborough,http://opendatacommunities.org/id/unitary-authority/peterborough,Peterborough City Council,Adults,Independent Sector Placements,Services,07/02/2018 00:00,30163166,1862.2,Revenue,Alysia Caring Ltd T/a Cherry Blossom care Home,Residential Care
Peterborough,http://opendatacommunities.org/id/unitary-authority/peterborough,Peterborough City Council,Adults,Independent Sector Placements,Services,07/02/2018 00:00,30163167,1900.52,Revenue,Alysia Caring Ltd T/a Cherry Blossom care Home,Residential Care
Peterborough,http://opendatacommunities.org/id/unitary-authority/peterborough,Peterborough City Council,Adults,Independent Sector Placements,Services,07/02/2018 00:00,30163170,3600,Revenue,Alysia Caring Ltd T/a Cherry Blossom care Home,Residential Care
Peterborough,http://opendatacommunities.org/id/unitary-authority/peterborough,Peterborough City Council,Adults,Independent Sector Placements,Services,07/02/2018 00:00,30163172,3100,Revenue,Alysia Caring Ltd T/a Cherry Blossom care Home,Residential Care
Peterborough,http://opendatacommunities.org/id/unitary-authority/peterborough,Peterborough City Council,Adults,Independent Sector Placements,Services,07/02/2018 00:00,30163178,2909.28,Revenue,Alysia Caring Ltd T/a Cherry Blossom care Home,Residential Care
Peterborough,http://opendatacommunities.org/id/unitary-authority/peterborough,Peterborough City Council,Adults,Independent Sector Placements,Services,07/02/2018 00:00,30163179,2827.2,Revenue,Alysia Caring Ltd T/a Cherry Blossom care Home,Residential Care
Peterborough,http://opendatacommunities.org/id/unitary-authority/peterborough,Peterborough City Council,Adults,Independent Sector Placements,Services,07/02/2018 00:00,30163180,1010.44,Revenue,Alysia Caring Ltd T/a Cherry Blossom care Home,Residential Care
Peterborough,http://opendatacommunities.org/id/unitary-authority/peterborough,Peterborough City Council,Adults,Independent Sector Placements,Services,07/02/2018 00:00,30163181,2128.92,Revenue,Alysia Caring Ltd T/a Cherry Blossom care Home,Residential Care
Peterborough,http://opendatacommunities.org/id/unitary-authority/peterborough,Peterborough City Council,Adults,Independent Sector Placements,Services,07/02/2018 00:00,30163186,2467.48,Revenue,Alysia Caring Ltd T/a Cherry Blossom care Home,Residential Care
Peterborough,http://opendatacommunities.org/id/unitary-authority/peterborough,Peterborough City Council,Adults,Independent Sector Placements,Services,07/02/2018 00:00,30163189,1775.76,Revenue,Alysia Caring Ltd T/a Cherry Blossom care Home,Residential Care
Peterborough,http://opendatacommunities.org/id/unitary-authority/peterborough,Peterborough City Council,Adults,Independent Sector Placements,Services,07/02/2018 00:00,30163190,3100,Revenue,Alysia Caring Ltd T/a Cherry Blossom care Home,Residential Care
Peterborough,http://opendatacommunities.org/id/unitary-authority/peterborough,Peterborough City Council,Adults,Independent Sector Placements,Services,07/02/2018 00:00,30163191,2952.8,Revenue,Alysia Caring Ltd T/a Cherry Blossom care Home,Residential Care
Peterborough,http://opendatacommunities.org/id/unitary-authority/peterborough,Peterborough City Council,Education,Special Educational Needs / Inclusion,Agency Staff,07/02/2018 00:00,30163219,3445,Revenue,Permanent Futures Ltd,External Temporary Staff
Peterborough,http://opendatacommunities.org/id/unitary-authority/peterborough,Peterborough City Council,Commissioning and Commercial Operations,Early Years & Quality Improvement,Services,07/02/2018 00:00,30163283,893.75,Revenue,Peterborough Regional College,Grant Payment
Peterborough,http://opendatacommunities.org/id/unitary-authority/peterborough,Peterborough City Council,City Servs & Communications,Marketing & Communications,Advertising,07/02/2018 00:00,30163361,6000,Revenue,Codename Media Ltd,Advertising
Peterborough,http://opendatacommunities.org/id/unitary-authority/peterborough,Peterborough City Council,Corporate,Corporate,Non Revenue,07/02/2018 00:00,30163404,17325.6,Capital,Warics Ltd,Grant Payment
Peterborough,http://opendatacommunities.org/id/unitary-authority/peterborough,Peterborough City Council,Westcombe Engineering,Westcombe Engineering,"Tools, Equipment, Furniture & Materials",07/02/2018 00:00,30163450,982,Revenue,Barron Clark Castings Ltd,Items For Resale
Peterborough,http://opendatacommunities.org/id/unitary-authority/peterborough,Peterborough City Council,Communities,Targeted Youth Service,Services,07/02/2018 00:00,30163567,2981.25,Revenue,Kingswood Learning & Leisure Grp Ltd,Programmes
Peterborough,http://opendatacommunities.org/id/unitary-authority/peterborough,Peterborough City Council,Communities,Targeted Youth Service,Services,07/02/2018 00:00,30163568,2981.25,Revenue,Kingswood Learning & Leisure Grp Ltd,Programmes
Peterborough,http://opendatacommunities.org/id/unitary-authority/peterborough,Peterborough City Council,Public Health,PH Commissioning,Third Party Payments,07/02/2018 00:00,30163577,69949,Revenue,Solutions 4 Health Ltd,Third Party Payments - Contract
Peterborough,http://opendatacommunities.org/id/unitary-authority/peterborough,Peterborough City Council,Children's & Safeguarding,External Education Placements,Services,07/02/2018 00:00,30163589,15500,Revenue,Barford Children's Services,Boarding Out Allowances
Peterborough,http://opendatacommunities.org/id/unitary-authority/peterborough,Peterborough City Council,Children's & Safeguarding,External Education Placements,Services,07/02/2018 00:00,30163590,16828.57,Revenue,Barford Children's Services,Boarding Out Allowances
Peterborough,http://opendatacommunities.org/id/unitary-authority/peterborough,Peterborough City Council,Children's & Safeguarding,External Education Placements,Services,07/02/2018 00:00,30163591,15500,Revenue,Barford Children's Services,Boarding Out Allowances
Peterborough,http://opendatacommunities.org/id/unitary-authority/peterborough,Peterborough City Council,Commissioning and Commercial Operations,Clare Lodge,Agency Staff,07/02/2018 00:00,30163596,694.04,Revenue,Reed Specialist Recruitment Limited,External Temporary Staff
Peterborough,http://opendatacommunities.org/id/unitary-authority/peterborough,Peterborough City Council,Corporate,Corporate,Non Revenue,07/02/2018 00:00,30163616,27702.58,Capital,Serco Ltd,IT Equipment
Peterborough,http://opendatacommunities.org/id/unitary-authority/peterborough,Peterborough City Council,Legal & Democratic,Legal Services,Agency Staff,07/02/2018 00:00,30163621,944.13,Revenue,Giant Professional Limited,External Temporary Staff
Peterborough,http://opendatacommunities.org/id/unitary-authority/peterborough,Peterborough City Council,Communities,Housing,Services,07/02/2018 00:00,30163891,816.62,Revenue,DA Rosalia Hotel,Homelessness Bed & Breakfast Costs
Peterborough,http://opendatacommunities.org/id/unitary-authority/peterborough,Peterborough City Council,Communities,Housing,Services,07/02/2018 00:00,30163892,524.44,Revenue,DA Rosalia Hotel,Homelessness Bed & Breakfast Costs
Peterborough,http://opendatacommunities.org/id/unitary-authority/peterborough,Peterborough City Council,Communities,Housing,Services,07/02/2018 00:00,30163893,1310.12,Revenue,DA Rosalia Hotel,Homelessness Bed & Breakfast Costs
Peterborough,http://opendatacommunities.org/id/unitary-authority/peterborough,Peterborough City Council,Communities,Housing,Services,07/02/2018 00:00,30163894,561.48,Revenue,DA Rosalia Hotel,Homelessness Bed & Breakfast Costs
Peterborough,http://opendatacommunities.org/id/unitary-authority/peterborough,Peterborough City Council,Communities,Housing,Services,07/02/2018 00:00,30163895,595.56,Revenue,DA Rosalia Hotel,Homelessness Bed & Breakfast Costs
Peterborough,http://opendatacommunities.org/id/unitary-authority/peterborough,Peterborough City Council,Communities,Housing,Services,07/02/2018 00:00,30163896,816.62,Revenue,DA Rosalia Hotel,Homelessness Bed & Breakfast Costs
Peterborough,http://opendatacommunities.org/id/unitary-authority/peterborough,Peterborough City Council,Communities,Housing,Services,07/02/2018 00:00,30163897,816.62,Revenue,DA Rosalia Hotel,Homelessness Bed & Breakfast Costs
Peterborough,http://opendatacommunities.org/id/unitary-authority/peterborough,Peterborough City Council,Communities,Housing,Services,07/02/2018 00:00,30163899,714.56,Revenue,DA Rosalia Hotel,Homelessness Bed & Breakfast Costs
Peterborough,http://opendatacommunities.org/id/unitary-authority/peterborough,Peterborough City Council,Communities,Housing,Services,07/02/2018 00:00,30163902,816.62,Revenue,DA Rosalia Hotel,Homelessness Bed & Breakfast Costs
Peterborough,http://opendatacommunities.org/id/unitary-authority/peterborough,Peterborough City Council,Communities,Housing,Services,07/02/2018 00:00,30164092,595.56,Revenue,DA Rosalia Hotel,Homelessness Bed & Breakfast Costs
Peterborough,http://opendatacommunities.org/id/unitary-authority/peterborough,Peterborough City Council,Communities,Housing,Services,07/02/2018 00:00,30164094,802.04,Revenue,DA Rosalia Hotel,Homelessness Bed & Breakfast Costs
Peterborough,http://opendatacommunities.org/id/unitary-authority/peterborough,Peterborough City Council,Communities,Housing,Services,07/02/2018 00:00,30164099,816.62,Revenue,DA Rosalia Hotel,Homelessness Bed & Breakfast Costs
Peterborough,http://opendatacommunities.org/id/unitary-authority/peterborough,Peterborough City Council,Communities,Housing,Services,07/02/2018 00:00,30164101,816.62,Revenue,DA Rosalia Hotel,Homelessness Bed & Breakfast Costs
Peterborough,http://opendatacommunities.org/id/unitary-authority/peterborough,Peterborough City Council,Communities,Housing,Services,07/02/2018 00:00,30164102,595.56,Revenue,DA Rosalia Hotel,Homelessness Bed & Breakfast Costs
Peterborough,http://opendatacommunities.org/id/unitary-authority/peterborough,Peterborough City Council,Adults,Independent Sector Placements,Services,07/02/2018 00:00,30164269,590.61,Revenue,Park Vista Care Home,Residential Care
Peterborough,http://opendatacommunities.org/id/unitary-authority/peterborough,Peterborough City Council,Adults,Independent Sector Placements,Services,07/02/2018 00:00,30164381,-881.59,Revenue,Sense,Day Care
Peterborough,http://opendatacommunities.org/id/unitary-authority/peterborough,Peterborough City Council,Adults,Independent Sector Placements,Services,07/02/2018 00:00,30164387,-953.06,Revenue,Sense,Day Care
Peterborough,http://opendatacommunities.org/id/unitary-authority/peterborough,Peterborough City Council,Corporate Property,Commercial Propety,Repair & Maintenance of Buildings,07/02/2018 00:00,30164390,1000,Revenue,Stanground Community Space CIC,Service Charges - Premises
Peterborough,http://opendatacommunities.org/id/unitary-authority/peterborough,Peterborough City Council,Adults,Independent Sector Placements,Services,07/02/2018 00:00,30164480,1079.56,Revenue,Sanctuary Care Limited,Residential Care
Peterborough,http://opendatacommunities.org/id/unitary-authority/peterborough,Peterborough City Council,Adults,Independent Sector Placements,Services,07/02/2018 00:00,30164488,6420,Revenue,Transitions Supported Living Ltd,Residential Care
Peterborough,http://opendatacommunities.org/id/unitary-authority/peterborough,Peterborough City Council,City Servs & Communications,Regulatory Services,Services,07/02/2018 00:00,30164491,1266,Revenue,Redacted Personal Information,Refunds
Peterborough,http://opendatacommunities.org/id/unitary-authority/peterborough,Peterborough City Council,Adults,Independent Sector Placements,Services,07/02/2018 00:00,30164571,2357.14,Revenue,Linkage Community Trust Limited,Residential Care
Peterborough,http://opendatacommunities.org/id/unitary-authority/peterborough,Peterborough City Council,Adults,Independent Sector Placements,Services,07/02/2018 00:00,30164572,2383.06,Revenue,Linkage Community Trust Limited,Residential Care
Peterborough,http://opendatacommunities.org/id/unitary-authority/peterborough,Peterborough City Council,Peterborough Serco Strategic Partnership,Peterborough Serco Strategic Partnership,Services,07/02/2018 00:00,30164589,15000,Revenue,Postage By Phone - Pitney Bowes Ltd,Postage
Peterborough,http://opendatacommunities.org/id/unitary-authority/peterborough,Peterborough City Council,Financial Services,Finance,Agency Staff,07/02/2018 00:00,30164625,1471.6,Revenue,Reed Specialist Recruitment Limited,External Temporary Staff
Peterborough,http://opendatacommunities.org/id/unitary-authority/peterborough,Peterborough City Council,Legal & Democratic,Legal Services,Agency Staff,07/02/2018 00:00,30164627,761.61,Revenue,Reed Specialist Recruitment Limited,External Temporary Staff
Peterborough,http://opendatacommunities.org/id/unitary-authority/peterborough,Peterborough City Council,Adults,Finance,Agency Staff,07/02/2018 00:00,30164630,1308.42,Revenue,Reed Specialist Recruitment Limited,External Temporary Staff
Peterborough,http://opendatacommunities.org/id/unitary-authority/peterborough,Peterborough City Council,Children's & Safeguarding,Early Help ASC/CSC,Agency Staff,07/02/2018 00:00,30164633,533.64,Revenue,Reed Specialist Recruitment Limited,External Temporary Staff
Peterborough,http://opendatacommunities.org/id/unitary-authority/peterborough,Peterborough City Council,Commissioning and Commercial Operations,Commissioning Team,Agency Staff,07/02/2018 00:00,30164634,2243.6,Revenue,Reed Specialist Recruitment Limited,External Temporary Staff
Peterborough,http://opendatacommunities.org/id/unitary-authority/peterborough,Peterborough City Council,Financial Services,Finance,Agency Staff,07/02/2018 00:00,30164636,731.48,Revenue,Reed Specialist Recruitment Limited,External Temporary Staff
Peterborough,http://opendatacommunities.org/id/unitary-authority/peterborough,Peterborough City Council,Legal & Democratic,Legal Services,Agency Staff,07/02/2018 00:00,30164638,793.6,Revenue,Reed Specialist Recruitment Limited,External Temporary Staff
Peterborough,http://opendatacommunities.org/id/unitary-authority/peterborough,Peterborough City Council,Adults,Home Services Delivery Model,Services,07/02/2018 00:00,30164643,1028.5,Revenue,Nightingale Services,Contractors
Peterborough,http://opendatacommunities.org/id/unitary-authority/peterborough,Peterborough City Council,Legal & Democratic,Legal Services,Services,07/02/2018 00:00,30164650,641.25,Revenue,Professor Stephen S Nussey,Hired Services
Peterborough,http://opendatacommunities.org/id/unitary-authority/peterborough,Peterborough City Council,Education,Financing - Resources,Services,07/02/2018 00:00,30164748,2591.04,Revenue,Sense,Education Expenses
Peterborough,http://opendatacommunities.org/id/unitary-authority/peterborough,Peterborough City Council,Education,Financing - Resources,Services,07/02/2018 00:00,30164756,84000,Revenue,Peterborough Regional College,Education Expenses
Peterborough,http://opendatacommunities.org/id/unitary-authority/peterborough,Peterborough City Council,Education,Financing - Resources,Services,07/02/2018 00:00,30164759,165150,Revenue,Peterborough Regional College,Education Expenses
Peterborough,http://opendatacommunities.org/id/unitary-authority/peterborough,Peterborough City Council,Adults,Independent Sector Placements,Services,07/02/2018 00:00,30164782,715.74,Revenue,Pilgrim Havens,Residential Care
Peterborough,http://opendatacommunities.org/id/unitary-authority/peterborough,Peterborough City Council,Education,Service Director Education,Employee Costs,07/02/2018 00:00,30164806,26641.68,Revenue,Teachers Pensions,Pensions
Peterborough,http://opendatacommunities.org/id/unitary-authority/peterborough,Peterborough City Council,Education,Financing - Resources,Services,07/02/2018 00:00,30164817,2556.72,Revenue,Sense,Education Expenses
Peterborough,http://opendatacommunities.org/id/unitary-authority/peterborough,Peterborough City Council,Education,Financing - Resources,Services,07/02/2018 00:00,30164818,2556.72,Revenue,Sense,Education Expenses
Peterborough,http://opendatacommunities.org/id/unitary-authority/peterborough,Peterborough City Council,Education,Financing - Resources,Services,07/02/2018 00:00,30164820,2556.72,Revenue,Sense,Education Expenses
Peterborough,http://opendatacommunities.org/id/unitary-authority/peterborough,Peterborough City Council,Education,Financing - Resources,Services,07/02/2018 00:00,30164821,2459.97,Revenue,Sense,Education Expenses
Peterborough,http://opendatacommunities.org/id/unitary-authority/peterborough,Peterborough City Council,Education,Financing - Resources,Services,07/02/2018 00:00,30164823,1943.28,Revenue,Sense,Education Expenses
Peterborough,http://opendatacommunities.org/id/unitary-authority/peterborough,Peterborough City Council,Adults,Independent Sector Placements,Services,07/02/2018 00:00,30164834,1803.08,Revenue,Longueville Court (Barchester),Residential Care
Peterborough,http://opendatacommunities.org/id/unitary-authority/peterborough,Peterborough City Council,Adults,Independent Sector Placements,Services,07/02/2018 00:00,30164835,2158.68,Revenue,Longueville Court (Barchester),Residential Care
Peterborough,http://opendatacommunities.org/id/unitary-authority/peterborough,Peterborough City Council,Commissioning and Commercial Operations,Early Years & Quality Improvement,Services,07/02/2018 00:00,30164844,35733.06,Revenue,St Josephs Day Nursery,Grant Payment
Peterborough,http://opendatacommunities.org/id/unitary-authority/peterborough,Peterborough City Council,Legal & Democratic,Legal Services,Services,07/02/2018 00:00,30164851,2300,Revenue,"Sleight, Mr Nigel",Legal Costs
Peterborough,http://opendatacommunities.org/id/unitary-authority/peterborough,Peterborough City Council,Commissioning and Commercial Operations,Early Years & Quality Improvement,Services,07/02/2018 00:00,30164875,2551.72,Revenue,Redacted Personal Information,Grant Payment
Peterborough,http://opendatacommunities.org/id/unitary-authority/peterborough,Peterborough City Council,Commissioning and Commercial Operations,Early Years & Quality Improvement,Services,07/02/2018 00:00,30164877,1522.67,Revenue,Redacted Personal Information,Grant Payment
Peterborough,http://opendatacommunities.org/id/unitary-authority/peterborough,Peterborough City Council,Commissioning and Commercial Operations,Early Years & Quality Improvement,Services,07/02/2018 00:00,30164881,1118.35,Revenue,Little Tykes Childcare,Grant Payment
Peterborough,http://opendatacommunities.org/id/unitary-authority/peterborough,Peterborough City Council,Commissioning and Commercial Operations,Early Years & Quality Improvement,Services,07/02/2018 00:00,30164882,2420.72,Revenue,Redacted Personal Information,Grant Payment
Peterborough,http://opendatacommunities.org/id/unitary-authority/peterborough,Peterborough City Council,Commissioning and Commercial Operations,Early Years & Quality Improvement,Services,07/02/2018 00:00,30164883,685.44,Revenue,Redacted Personal Information,Grant Payment
Peterborough,http://opendatacommunities.org/id/unitary-authority/peterborough,Peterborough City Council,Commissioning and Commercial Operations,Early Years & Quality Improvement,Services,07/02/2018 00:00,30164888,2798.88,Revenue,Redacted Personal Information,Grant Payment
Peterborough,http://opendatacommunities.org/id/unitary-authority/peterborough,Peterborough City Council,Commissioning and Commercial Operations,Early Years & Quality Improvement,Services,07/02/2018 00:00,30164889,1917.67,Revenue,Redacted Personal Information,Grant Payment
Peterborough,http://opendatacommunities.org/id/unitary-authority/peterborough,Peterborough City Council,Commissioning and Commercial Operations,Early Years & Quality Improvement,Services,07/02/2018 00:00,30164890,1165.56,Revenue,Redacted Personal Information,Grant Payment
Peterborough,http://opendatacommunities.org/id/unitary-authority/peterborough,Peterborough City Council,Corporate,Corporate,Non Revenue,07/02/2018 00:00,30164902,1775.2,Balance Sheet,The Prudential Assurance Company Ltd,Pensions
Peterborough,http://opendatacommunities.org/id/unitary-authority/peterborough,Peterborough City Council,Corporate,Corporate,Non Revenue,07/02/2018 00:00,30164903,4717.41,Balance Sheet,The Prudential Assurance Company Ltd,Pensions
Peterborough,http://opendatacommunities.org/id/unitary-authority/peterborough,Peterborough City Council,Commissioning and Commercial Operations,Early Years & Quality Improvement,Services,07/02/2018 00:00,30164905,1072.39,Revenue,Redacted Personal Information,Grant Payment
Peterborough,http://opendatacommunities.org/id/unitary-authority/peterborough,Peterborough City Council,Commissioning and Commercial Operations,Early Years & Quality Improvement,Services,07/02/2018 00:00,30164907,557.57,Revenue,Redacted Personal Information,Grant Payment
Peterborough,http://opendatacommunities.org/id/unitary-authority/peterborough,Peterborough City Council,Commissioning and Commercial Operations,Early Years & Quality Improvement,Services,07/02/2018 00:00,30164908,704.88,Revenue,Redacted Personal Information,Grant Payment
Peterborough,http://opendatacommunities.org/id/unitary-authority/peterborough,Peterborough City Council,Commissioning and Commercial Operations,Early Years & Quality Improvement,Services,07/02/2018 00:00,30164912,610.9,Revenue,Redacted Personal Information,Grant Payment
Peterborough,http://opendatacommunities.org/id/unitary-authority/peterborough,Peterborough City Council,Commissioning and Commercial Operations,Early Years & Quality Improvement,Services,07/02/2018 00:00,30164915,607.96,Revenue,Redacted Personal Information,Grant Payment
Peterborough,http://opendatacommunities.org/id/unitary-authority/peterborough,Peterborough City Council,Commissioning and Commercial Operations,Early Years & Quality Improvement,Services,07/02/2018 00:00,30164918,743.49,Revenue,Redacted Personal Information,Grant Payment
Peterborough,http://opendatacommunities.org/id/unitary-authority/peterborough,Peterborough City Council,Commissioning and Commercial Operations,Early Years & Quality Improvement,Services,07/02/2018 00:00,30164936,2113.78,Revenue,Redacted Personal Information,Grant Payment
Peterborough,http://opendatacommunities.org/id/unitary-authority/peterborough,Peterborough City Council,Commissioning and Commercial Operations,Early Years & Quality Improvement,Services,07/02/2018 00:00,30164937,848.1,Revenue,Redacted Personal Information,Grant Payment
Peterborough,http://opendatacommunities.org/id/unitary-authority/peterborough,Peterborough City Council,Commissioning and Commercial Operations,Early Years & Quality Improvement,Services,07/02/2018 00:00,30164940,638.88,Revenue,Redacted Personal Information,Grant Payment
Peterborough,http://opendatacommunities.org/id/unitary-authority/peterborough,Peterborough City Council,Commissioning and Commercial Operations,Early Years & Quality Improvement,Services,07/02/2018 00:00,30164941,1020.34,Revenue,Redacted Personal Information,Grant Payment
Peterborough,http://opendatacommunities.org/id/unitary-authority/peterborough,Peterborough City Council,Commissioning and Commercial Operations,Early Years & Quality Improvement,Services,07/02/2018 00:00,30164942,553.7,Revenue,Redacted Personal Information,Grant Payment
Peterborough,http://opendatacommunities.org/id/unitary-authority/peterborough,Peterborough City Council,Commissioning and Commercial Operations,Early Years & Quality Improvement,Services,07/02/2018 00:00,30164943,566.44,Revenue,Redacted Personal Information,Grant Payment
Peterborough,http://opendatacommunities.org/id/unitary-authority/peterborough,Peterborough City Council,Corporate,Corporate,Non Revenue,07/02/2018 00:00,30164945,672,Capital,Enterprise Managed Services Limited,Building And Site Works
Peterborough,http://opendatacommunities.org/id/unitary-authority/peterborough,Peterborough City Council,Corporate,Corporate,Non Revenue,07/02/2018 00:00,30164957,6822.08,Capital,Enterprise Managed Services Limited,Consultants Fees
Peterborough,http://opendatacommunities.org/id/unitary-authority/peterborough,Peterborough City Council,Corporate,Corporate,Non Revenue,07/02/2018 00:00,30164958,6023.92,Capital,Enterprise Managed Services Limited,Consultants Fees
Peterborough,http://opendatacommunities.org/id/unitary-authority/peterborough,Peterborough City Council,Education,HTS & CSC Transport,Contract Hire and Operating Leases,07/02/2018 00:00,8000107975,937.12,Revenue,Redacted Personal Information,Hired Transport
Peterborough,http://opendatacommunities.org/id/unitary-authority/peterborough,Peterborough City Council,Education,HTS & CSC Transport,Contract Hire and Operating Leases,07/02/2018 00:00,8000107976,1701.75,Revenue,Redacted Personal Information,Hired Transport
Peterborough,http://opendatacommunities.org/id/unitary-authority/peterborough,Peterborough City Council,Education,HTS & CSC Transport,Contract Hire and Operating Leases,07/02/2018 00:00,8000107980,2217,Revenue,Redacted Personal Information,Hired Transport
Peterborough,http://opendatacommunities.org/id/unitary-authority/peterborough,Peterborough City Council,Education,HTS & CSC Transport,Contract Hire and Operating Leases,07/02/2018 00:00,8000107981,863.62,Revenue,Redacted Personal Information,Hired Transport
Peterborough,http://opendatacommunities.org/id/unitary-authority/peterborough,Peterborough City Council,Education,HTS & CSC Transport,Contract Hire and Operating Leases,07/02/2018 00:00,8000107982,672.75,Revenue,Redacted Personal Information,Hired Transport
Peterborough,http://opendatacommunities.org/id/unitary-authority/peterborough,Peterborough City Council,Children's & Safeguarding,Commissioning - CSC,Services,07/02/2018 00:00,8000107993,851.5,Revenue,Redacted Personal Information,Financial Assistance
Peterborough,http://opendatacommunities.org/id/unitary-authority/peterborough,Peterborough City Council,Children's & Safeguarding,Commissioning - CSC,Services,07/02/2018 00:00,8000107993,940.85,Revenue,Redacted Personal Information,Financial Assistance
Peterborough,http://opendatacommunities.org/id/unitary-authority/peterborough,Peterborough City Council,Children's & Safeguarding,Commissioning - CSC,Services,07/02/2018 00:00,8000107993,1716.42,Revenue,Redacted Personal Information,Financial Assistance
Peterborough,http://opendatacommunities.org/id/unitary-authority/peterborough,Peterborough City Council,Children's & Safeguarding,Commissioning - CSC,Services,07/02/2018 00:00,8000107993,1716.42,Revenue,Redacted Personal Information,Financial Assistance
Peterborough,http://opendatacommunities.org/id/unitary-authority/peterborough,Peterborough City Council,Children's & Safeguarding,Access to Resources & Specialist Commissioning,Services,09/02/2018 00:00,30123344,618.45,Revenue,IAS TACT,Boarding Out Allowances
Peterborough,http://opendatacommunities.org/id/unitary-authority/peterborough,Peterborough City Council,Children's & Safeguarding,Children's Social Care,Services,09/02/2018 00:00,30149064,20751,Revenue,Tavistock & Portman NHS FT,Purchased Social Care Services
Peterborough,http://opendatacommunities.org/id/unitary-authority/peterborough,Peterborough City Council,Children's & Safeguarding,Child Health,Services,09/02/2018 00:00,30158545,11638.5,Revenue,Vivacity Culture and Leisure,Purchased Social Care Services
Peterborough,http://opendatacommunities.org/id/unitary-authority/peterborough,Peterborough City Council,Education,Pupil Referral Unit,Contract Hire and Operating Leases,09/02/2018 00:00,30159226,-1416,Revenue,A2B Euro Cars,Hired Transport
Peterborough,http://opendatacommunities.org/id/unitary-authority/peterborough,Peterborough City Council,Corporate,Corporate,Non Revenue,09/02/2018 00:00,30161712,1232,Capital,Vix Technology UK Ltd,Infrastructure
Peterborough,http://opendatacommunities.org/id/unitary-authority/peterborough,Peterborough City Council,City Servs & Communications,Regulatory Services,Interview & Training Expenses,09/02/2018 00:00,30161767,555,Revenue,TSI SE Midlands Branch,Training
Peterborough,http://opendatacommunities.org/id/unitary-authority/peterborough,Peterborough City Council,Commissioning and Commercial Operations,Clare Lodge,Services,09/02/2018 00:00,30161768,573.26,Revenue,B & H Projects Ltd,Security
Peterborough,http://opendatacommunities.org/id/unitary-authority/peterborough,Peterborough City Council,"Cemeteries, Cremation & Registrars",Bereavement Service,"Tools, Equipment, Furniture & Materials",09/02/2018 00:00,30161878,1026,Revenue,Hereward Stationers & Printers Ltd,Furniture And Equipment Purchase
Peterborough,http://opendatacommunities.org/id/unitary-authority/peterborough,Peterborough City Council,ICT,ICT,Agency Staff,09/02/2018 00:00,30161880,4500,Revenue,Cranford Solutions (UK) Ltd,External Temporary Staff
Peterborough,http://opendatacommunities.org/id/unitary-authority/peterborough,Peterborough City Council,Adults,Therapy/Reablement/Community Equipment,Agency Staff,09/02/2018 00:00,30161882,3663,Revenue,HCL Social Care,External Temporary Staff
Peterborough,http://opendatacommunities.org/id/unitary-authority/peterborough,Peterborough City Council,Adults,Independent Sector Placements,Services,09/02/2018 00:00,30161904,1320.08,Revenue,Pilgrim Havens,Residential Care
Peterborough,http://opendatacommunities.org/id/unitary-authority/peterborough,Peterborough City Council,Adults,Independent Sector Placements,Services,09/02/2018 00:00,30161905,926.64,Revenue,Pilgrim Havens,Residential Care
Peterborough,http://opendatacommunities.org/id/unitary-authority/peterborough,Peterborough City Council,Adults,Independent Sector Placements,Services,09/02/2018 00:00,30161906,1631.76,Revenue,Pilgrim Havens,Residential Care
Peterborough,http://opendatacommunities.org/id/unitary-authority/peterborough,Peterborough City Council,Adults,Independent Sector Placements,Services,09/02/2018 00:00,30161907,889.12,Revenue,Pilgrim Havens,Residential Care
Peterborough,http://opendatacommunities.org/id/unitary-authority/peterborough,Peterborough City Council,Adults,Home Services Delivery Model,Services,09/02/2018 00:00,30161908,12362,Revenue,Gaswise Services Ltd,Special Projects
Peterborough,http://opendatacommunities.org/id/unitary-authority/peterborough,Peterborough City Council,Adults,Home Services Delivery Model,Third Party Payments,09/02/2018 00:00,30161911,2933.36,Revenue,NACRO,Grant-Third Party
Peterborough,http://opendatacommunities.org/id/unitary-authority/peterborough,Peterborough City Council,Corporate,Corporate,Non Revenue,09/02/2018 00:00,30161912,2500,Capital,Opex Consulting,Consultants Fees
Peterborough,http://opendatacommunities.org/id/unitary-authority/peterborough,Peterborough City Council,Adults,Independent Sector Placements,Services,09/02/2018 00:00,30161915,1284.08,Revenue,Pilgrim Havens,Residential Care
Peterborough,http://opendatacommunities.org/id/unitary-authority/peterborough,Peterborough City Council,Adults,Independent Sector Placements,Services,09/02/2018 00:00,30161937,916.08,Revenue,Pilgrim Havens,Residential Care
Peterborough,http://opendatacommunities.org/id/unitary-authority/peterborough,Peterborough City Council,Adults,Independent Sector Placements,Services,09/02/2018 00:00,30161938,1585.2,Revenue,Pilgrim Havens,Residential Care
Peterborough,http://opendatacommunities.org/id/unitary-authority/peterborough,Peterborough City Council,Adults,Home Services Delivery Model,Services,09/02/2018 00:00,30161952,871.25,Revenue,Nightingale Services,Contractors
Peterborough,http://opendatacommunities.org/id/unitary-authority/peterborough,Peterborough City Council,Adults,Independent Sector Placements,Services,09/02/2018 00:00,30161986,619.24,Revenue,Pilgrim Havens,Residential Care
Peterborough,http://opendatacommunities.org/id/unitary-authority/peterborough,Peterborough City Council,Financial Services,Finance,Agency Staff,09/02/2018 00:00,30162195,982.24,Revenue,Morgan Hunt UK Ltd,External Temporary Staff
Peterborough,http://opendatacommunities.org/id/unitary-authority/peterborough,Peterborough City Council,Westcombe Engineering,Westcombe Engineering,"Tools, Equipment, Furniture & Materials",09/02/2018 00:00,30162202,954.13,Revenue,Carillon Industrial Services Ltd,Furniture And Equipment Purchase
Peterborough,http://opendatacommunities.org/id/unitary-authority/peterborough,Peterborough City Council,Adults,Independent Sector Placements,Services,09/02/2018 00:00,30162220,1624.12,Revenue,Athena (Ashlynn Grange),Residential Care
Peterborough,http://opendatacommunities.org/id/unitary-authority/peterborough,Peterborough City Council,Adults,Independent Sector Placements,Services,09/02/2018 00:00,30162224,1796.12,Revenue,Athena (Ashlynn Grange),Residential Care
Peterborough,http://opendatacommunities.org/id/unitary-authority/peterborough,Peterborough City Council,Adults,Independent Sector Placements,Services,09/02/2018 00:00,30162225,920.8,Revenue,Athena (Ashlynn Grange),Residential Care
Peterborough,http://opendatacommunities.org/id/unitary-authority/peterborough,Peterborough City Council,Adults,Independent Sector Placements,Services,09/02/2018 00:00,30162226,1768.12,Revenue,Athena (Ashlynn Grange),Residential Care
Peterborough,http://opendatacommunities.org/id/unitary-authority/peterborough,Peterborough City Council,Adults,Independent Sector Placements,Services,09/02/2018 00:00,30162227,973.96,Revenue,Athena (Ashlynn Grange),Residential Care
Peterborough,http://opendatacommunities.org/id/unitary-authority/peterborough,Peterborough City Council,Adults,Independent Sector Placements,Services,09/02/2018 00:00,30162248,1821.88,Revenue,Athena (Ashlynn Grange),Residential Care
Peterborough,http://opendatacommunities.org/id/unitary-authority/peterborough,Peterborough City Council,Adults,Independent Sector Placements,Services,09/02/2018 00:00,30162252,944.16,Revenue,Athena (Ashlynn Grange),Residential Care
Peterborough,http://opendatacommunities.org/id/unitary-authority/peterborough,Peterborough City Council,Adults,Independent Sector Placements,Services,09/02/2018 00:00,30162255,2305.92,Revenue,Athena (Ashlynn Grange),Residential Care
Peterborough,http://opendatacommunities.org/id/unitary-authority/peterborough,Peterborough City Council,Adults,Independent Sector Placements,Services,09/02/2018 00:00,30162312,1594.12,Revenue,Athena (Ashlynn Grange),Residential Care
Peterborough,http://opendatacommunities.org/id/unitary-authority/peterborough,Peterborough City Council,Adults,Independent Sector Placements,Services,09/02/2018 00:00,30162313,1821.88,Revenue,Athena (Ashlynn Grange),Residential Care
Peterborough,http://opendatacommunities.org/id/unitary-authority/peterborough,Peterborough City Council,Adults,Independent Sector Placements,Services,09/02/2018 00:00,30162315,1054.4,Revenue,Athena (Ashlynn Grange),Residential Care
Peterborough,http://opendatacommunities.org/id/unitary-authority/peterborough,Peterborough City Council,Adults,Independent Sector Placements,Services,09/02/2018 00:00,30162316,1002.4,Revenue,Athena (Ashlynn Grange),Residential Care
Peterborough,http://opendatacommunities.org/id/unitary-authority/peterborough,Peterborough City Council,Adults,Independent Sector Placements,Services,09/02/2018 00:00,30162317,1472.4,Revenue,Athena (Ashlynn Grange),Residential Care
Peterborough,http://opendatacommunities.org/id/unitary-authority/peterborough,Peterborough City Council,Adults,Independent Sector Placements,Services,09/02/2018 00:00,30162318,974.4,Revenue,Athena (Ashlynn Grange),Residential Care
Peterborough,http://opendatacommunities.org/id/unitary-authority/peterborough,Peterborough City Council,Adults,Independent Sector Placements,Services,09/02/2018 00:00,30162320,1209.28,Revenue,Athena (Ashlynn Grange),Residential Care
Peterborough,http://opendatacommunities.org/id/unitary-authority/peterborough,Peterborough City Council,Adults,Independent Sector Placements,Services,09/02/2018 00:00,30162324,1703.28,Revenue,Athena (Ashlynn Grange),Residential Care
Peterborough,http://opendatacommunities.org/id/unitary-authority/peterborough,Peterborough City Council,Adults,Independent Sector Placements,Services,09/02/2018 00:00,30162373,1980,Revenue,Athena (Ashlynn Grange),Residential Care
Peterborough,http://opendatacommunities.org/id/unitary-authority/peterborough,Peterborough City Council,Adults,Independent Sector Placements,Services,09/02/2018 00:00,30162374,1579.84,Revenue,Athena (Ashlynn Grange),Residential Care
Peterborough,http://opendatacommunities.org/id/unitary-authority/peterborough,Peterborough City Council,Adults,Independent Sector Placements,Services,09/02/2018 00:00,30162375,1427.72,Revenue,Athena (Ashlynn Grange),Residential Care
Peterborough,http://opendatacommunities.org/id/unitary-authority/peterborough,Peterborough City Council,Adults,Independent Sector Placements,Services,09/02/2018 00:00,30162379,1729.44,Revenue,Athena (Ashlynn Grange),Residential Care
Peterborough,http://opendatacommunities.org/id/unitary-authority/peterborough,Peterborough City Council,Adults,Independent Sector Placements,Services,09/02/2018 00:00,30162384,1756.12,Revenue,Athena (Ashlynn Grange),Residential Care
Peterborough,http://opendatacommunities.org/id/unitary-authority/peterborough,Peterborough City Council,Adults,Independent Sector Placements,Services,09/02/2018 00:00,30162385,1685.72,Revenue,Athena (Ashlynn Grange),Residential Care
Peterborough,http://opendatacommunities.org/id/unitary-authority/peterborough,Peterborough City Council,Adults,Independent Sector Placements,Services,09/02/2018 00:00,30162387,1302.72,Revenue,Athena (Ashlynn Grange),Residential Care
Peterborough,http://opendatacommunities.org/id/unitary-authority/peterborough,Peterborough City Council,Adults,Independent Sector Placements,Services,09/02/2018 00:00,30162388,1736.76,Revenue,Athena (Ashlynn Grange),Residential Care
Peterborough,http://opendatacommunities.org/id/unitary-authority/peterborough,Peterborough City Council,Adults,Independent Sector Placements,Services,09/02/2018 00:00,30162389,1282.28,Revenue,Athena (Ashlynn Grange),Residential Care
Peterborough,http://opendatacommunities.org/id/unitary-authority/peterborough,Peterborough City Council,Adults,Independent Sector Placements,Services,09/02/2018 00:00,30162390,859.64,Revenue,Athena (Ashlynn Grange),Residential Care
Peterborough,http://opendatacommunities.org/id/unitary-authority/peterborough,Peterborough City Council,Adults,Independent Sector Placements,Services,09/02/2018 00:00,30162391,1152.12,Revenue,Athena (Ashlynn Grange),Residential Care
Peterborough,http://opendatacommunities.org/id/unitary-authority/peterborough,Peterborough City Council,Adults,Independent Sector Placements,Services,09/02/2018 00:00,30162392,1156.84,Revenue,Athena (Ashlynn Grange),Residential Care
Peterborough,http://opendatacommunities.org/id/unitary-authority/peterborough,Peterborough City Council,Adults,Independent Sector Placements,Services,09/02/2018 00:00,30162393,1244.68,Revenue,Athena (Ashlynn Grange),Residential Care
Peterborough,http://opendatacommunities.org/id/unitary-authority/peterborough,Peterborough City Council,Adults,Independent Sector Placements,Services,09/02/2018 00:00,30162394,843.8,Revenue,Athena (Ashlynn Grange),Residential Care
Peterborough,http://opendatacommunities.org/id/unitary-authority/peterborough,Peterborough City Council,Adults,Independent Sector Placements,Services,09/02/2018 00:00,30162395,1672.96,Revenue,Athena (Ashlynn Grange),Residential Care
Peterborough,http://opendatacommunities.org/id/unitary-authority/peterborough,Peterborough City Council,Adults,Independent Sector Placements,Services,09/02/2018 00:00,30162396,1821.88,Revenue,Athena (Ashlynn Grange),Residential Care
Peterborough,http://opendatacommunities.org/id/unitary-authority/peterborough,Peterborough City Council,Adults,Independent Sector Placements,Services,09/02/2018 00:00,30162397,808.88,Revenue,Athena (Ashlynn Grange),Residential Care
Peterborough,http://opendatacommunities.org/id/unitary-authority/peterborough,Peterborough City Council,Adults,Independent Sector Placements,Services,09/02/2018 00:00,30162398,1762.36,Revenue,Athena (Ashlynn Grange),Residential Care
Peterborough,http://opendatacommunities.org/id/unitary-authority/peterborough,Peterborough City Council,Adults,Independent Sector Placements,Services,09/02/2018 00:00,30162399,1804.12,Revenue,Athena (Ashlynn Grange),Residential Care
Peterborough,http://opendatacommunities.org/id/unitary-authority/peterborough,Peterborough City Council,Adults,Independent Sector Placements,Services,09/02/2018 00:00,30162400,1315.92,Revenue,Athena (Ashlynn Grange),Residential Care
Peterborough,http://opendatacommunities.org/id/unitary-authority/peterborough,Peterborough City Council,Adults,Independent Sector Placements,Services,09/02/2018 00:00,30162401,1632.28,Revenue,Athena (Ashlynn Grange),Residential Care
Peterborough,http://opendatacommunities.org/id/unitary-authority/peterborough,Peterborough City Council,Education,Special Educational Needs / Inclusion,Interview & Training Expenses,09/02/2018 00:00,30162412,653.5,Revenue,The Ear Foundation,Training
Peterborough,http://opendatacommunities.org/id/unitary-authority/peterborough,Peterborough City Council,Adults,Independent Sector Placements,Services,09/02/2018 00:00,30162425,988.6,Revenue,Athena (Ashlynn Grange),Residential Care
Peterborough,http://opendatacommunities.org/id/unitary-authority/peterborough,Peterborough City Council,Adults,Independent Sector Placements,Services,09/02/2018 00:00,30162426,1146.32,Revenue,Athena (Ashlynn Grange),Residential Care
Peterborough,http://opendatacommunities.org/id/unitary-authority/peterborough,Peterborough City Council,Adults,Independent Sector Placements,Services,09/02/2018 00:00,30162505,5200,Revenue,Longueville Court (Barchester),Residential Care
Peterborough,http://opendatacommunities.org/id/unitary-authority/peterborough,Peterborough City Council,Children's & Safeguarding,External Education Placements,Services,09/02/2018 00:00,30162509,16739.8,Revenue,Dove Adolescent Services Ltd,Boarding Out Allowances
Peterborough,http://opendatacommunities.org/id/unitary-authority/peterborough,Peterborough City Council,Adults,Independent Sector Placements,Services,09/02/2018 00:00,30162611,1142.56,Revenue,Athena (Ashlynn Grange),Residential Care
Peterborough,http://opendatacommunities.org/id/unitary-authority/peterborough,Peterborough City Council,Adults,Independent Sector Placements,Services,09/02/2018 00:00,30162614,1032.56,Revenue,Athena (Ashlynn Grange),Residential Care
Peterborough,http://opendatacommunities.org/id/unitary-authority/peterborough,Peterborough City Council,Adults,Independent Sector Placements,Services,09/02/2018 00:00,30162615,1164.76,Revenue,Athena (Ashlynn Grange),Residential Care
Peterborough,http://opendatacommunities.org/id/unitary-authority/peterborough,Peterborough City Council,Adults,Independent Sector Placements,Services,09/02/2018 00:00,30162620,926.28,Revenue,Athena (Ashlynn Grange),Residential Care
Peterborough,http://opendatacommunities.org/id/unitary-authority/peterborough,Peterborough City Council,Adults,Independent Sector Placements,Services,09/02/2018 00:00,30162621,2687.2,Revenue,Barchester Healthcare (Werrington Lodge),Residential Care
Peterborough,http://opendatacommunities.org/id/unitary-authority/peterborough,Peterborough City Council,Adults,Independent Sector Placements,Services,09/02/2018 00:00,30162622,1762.88,Revenue,Barchester Healthcare (Werrington Lodge),Residential Care
Peterborough,http://opendatacommunities.org/id/unitary-authority/peterborough,Peterborough City Council,Adults,Independent Sector Placements,Services,09/02/2018 00:00,30162623,2655,Revenue,Barchester Healthcare (Werrington Lodge),Residential Care
Peterborough,http://opendatacommunities.org/id/unitary-authority/peterborough,Peterborough City Council,Adults,Independent Sector Placements,Services,09/02/2018 00:00,30162625,3188,Revenue,Barchester Healthcare (Werrington Lodge),Residential Care
Peterborough,http://opendatacommunities.org/id/unitary-authority/peterborough,Peterborough City Council,Adults,Independent Sector Placements,Services,09/02/2018 00:00,30162642,2549.04,Revenue,Barchester Healthcare (Werrington Lodge),Residential Care
Peterborough,http://opendatacommunities.org/id/unitary-authority/peterborough,Peterborough City Council,Adults,Independent Sector Placements,Services,09/02/2018 00:00,30162643,2305.92,Revenue,Barchester Healthcare (Werrington Lodge),Residential Care
Peterborough,http://opendatacommunities.org/id/unitary-authority/peterborough,Peterborough City Council,Adults,Independent Sector Placements,Services,09/02/2018 00:00,30162644,2840.32,Revenue,Barchester Healthcare (Werrington Lodge),Residential Care
Peterborough,http://opendatacommunities.org/id/unitary-authority/peterborough,Peterborough City Council,Adults,Independent Sector Placements,Services,09/02/2018 00:00,30162645,1509.96,Revenue,Barchester Healthcare (Werrington Lodge),Residential Care
Peterborough,http://opendatacommunities.org/id/unitary-authority/peterborough,Peterborough City Council,Adults,Independent Sector Placements,Services,09/02/2018 00:00,30162646,2642.2,Revenue,Barchester Healthcare (Werrington Lodge),Residential Care
Peterborough,http://opendatacommunities.org/id/unitary-authority/peterborough,Peterborough City Council,Adults,Independent Sector Placements,Services,09/02/2018 00:00,30162647,1944.64,Revenue,Barchester Healthcare (Werrington Lodge),Residential Care
Peterborough,http://opendatacommunities.org/id/unitary-authority/peterborough,Peterborough City Council,Adults,Independent Sector Placements,Services,09/02/2018 00:00,30162648,2442.36,Revenue,Barchester Healthcare (Werrington Lodge),Residential Care
Peterborough,http://opendatacommunities.org/id/unitary-authority/peterborough,Peterborough City Council,Communities,Service Director - Adults & Communities,Third Party Payments,09/02/2018 00:00,30162710,1020,Revenue,Enterprise Managed Services Limited,Grant-Third Party
Peterborough,http://opendatacommunities.org/id/unitary-authority/peterborough,Peterborough City Council,Amey Peterborough & Waste Management,Waste & Operational Svs Mgmt,Third Party Payments,09/02/2018 00:00,30162715,676.41,Revenue,Bainton & Ashton Parish Council,Third Party Payments - Contract
Peterborough,http://opendatacommunities.org/id/unitary-authority/peterborough,Peterborough City Council,Adults,Independent Sector Placements,Services,09/02/2018 00:00,30162808,5600,Revenue,Community Care Solutions Ltd,Residential Care
Peterborough,http://opendatacommunities.org/id/unitary-authority/peterborough,Peterborough City Council,Commissioning and Commercial Operations,Clare Lodge,Agency Staff,09/02/2018 00:00,30162820,952,Revenue,Wrixon Care Services,External Temporary Staff
Peterborough,http://opendatacommunities.org/id/unitary-authority/peterborough,Peterborough City Council,Commissioning and Commercial Operations,Clare Lodge,Agency Staff,09/02/2018 00:00,30162821,1984,Revenue,Wrixon Care Services,External Temporary Staff
Peterborough,http://opendatacommunities.org/id/unitary-authority/peterborough,Peterborough City Council,Commissioning and Commercial Operations,Clare Lodge,Agency Staff,09/02/2018 00:00,30162822,1576,Revenue,Wrixon Care Services,External Temporary Staff
Peterborough,http://opendatacommunities.org/id/unitary-authority/peterborough,Peterborough City Council,Commissioning and Commercial Operations,Clare Lodge,Agency Staff,09/02/2018 00:00,30162824,1192.5,Revenue,Wrixon Care Services,External Temporary Staff
Peterborough,http://opendatacommunities.org/id/unitary-authority/peterborough,Peterborough City Council,Commissioning and Commercial Operations,Clare Lodge,Agency Staff,09/02/2018 00:00,30162826,880,Revenue,Wrixon Care Services,External Temporary Staff
Peterborough,http://opendatacommunities.org/id/unitary-authority/peterborough,Peterborough City Council,Commissioning and Commercial Operations,Clare Lodge,Agency Staff,09/02/2018 00:00,30162828,944,Revenue,Wrixon Care Services,External Temporary Staff
Peterborough,http://opendatacommunities.org/id/unitary-authority/peterborough,Peterborough City Council,Commissioning and Commercial Operations,Clare Lodge,Agency Staff,09/02/2018 00:00,30162829,912,Revenue,Wrixon Care Services,External Temporary Staff
Peterborough,http://opendatacommunities.org/id/unitary-authority/peterborough,Peterborough City Council,Financial Services,Finance,Advertising,09/02/2018 00:00,30162985,800,Revenue,Pure Vision Marketing Ltd,Advertising
Peterborough,http://opendatacommunities.org/id/unitary-authority/peterborough,Peterborough City Council,Various,Various,Services,09/02/2018 00:00,30163084,2131.64,Revenue,Whistl UK Ltd,Postage
Peterborough,http://opendatacommunities.org/id/unitary-authority/peterborough,Peterborough City Council,Westcombe Engineering,Westcombe Engineering,"Tools, Equipment, Furniture & Materials",09/02/2018 00:00,30163457,982,Revenue,Barron Clark Castings Ltd,Items For Resale
Peterborough,http://opendatacommunities.org/id/unitary-authority/peterborough,Peterborough City Council,Westcombe Engineering,Westcombe Engineering,"Tools, Equipment, Furniture & Materials",09/02/2018 00:00,30163459,515.58,Revenue,Barron Clark Castings Ltd,Items For Resale
Peterborough,http://opendatacommunities.org/id/unitary-authority/peterborough,Peterborough City Council,Adults,Independent Sector Placements,Services,09/02/2018 00:00,30164270,1367.25,Revenue,BROADLEIGH NURSING HOME,Residential Care
Peterborough,http://opendatacommunities.org/id/unitary-authority/peterborough,Peterborough City Council,HR,HR,Services,09/02/2018 00:00,30164455,660,Revenue,Disclosure and Barring Service,Criminal Record Check
Peterborough,http://opendatacommunities.org/id/unitary-authority/peterborough,Peterborough City Council,City Servs & Communications,Marketing & Communications,Advertising,09/02/2018 00:00,30164513,1000,Revenue,Codename Media Ltd,Advertising
Peterborough,http://opendatacommunities.org/id/unitary-authority/peterborough,Peterborough City Council,Corporate,Corporate,Non Revenue,09/02/2018 00:00,30164517,10528.02,Capital,UK Power Networks (operations) Ltd,Building And Site Works
Peterborough,http://opendatacommunities.org/id/unitary-authority/peterborough,Peterborough City Council,Development and Construction,Development Management,Agency Staff,09/02/2018 00:00,30164626,1153.75,Revenue,Reed Specialist Recruitment Limited,External Temporary Staff
Peterborough,http://opendatacommunities.org/id/unitary-authority/peterborough,Peterborough City Council,Development and Construction,Development Management,Agency Staff,09/02/2018 00:00,30164628,1000.21,Revenue,Reed Specialist Recruitment Limited,External Temporary Staff
Peterborough,http://opendatacommunities.org/id/unitary-authority/peterborough,Peterborough City Council,Corporate Property,Office Accomodation,Agency Staff,09/02/2018 00:00,30164635,4691.51,Revenue,Reed Specialist Recruitment Limited,External Temporary Staff
Peterborough,http://opendatacommunities.org/id/unitary-authority/peterborough,Peterborough City Council,Communities,Cohesion,Rents,09/02/2018 00:00,30164666,750,Revenue,Redacted Personal Information,Rent
Peterborough,http://opendatacommunities.org/id/unitary-authority/peterborough,Peterborough City Council,Communities,Cohesion,Rents,09/02/2018 00:00,30164668,625,Revenue,Record Property Solutions,Rent
Peterborough,http://opendatacommunities.org/id/unitary-authority/peterborough,Peterborough City Council,Communities,Cohesion,Rents,09/02/2018 00:00,30164672,625,Revenue,Rightroom Lettings Ltd,Rent
Peterborough,http://opendatacommunities.org/id/unitary-authority/peterborough,Peterborough City Council,Communities,Cohesion,Rents,09/02/2018 00:00,30164676,575,Revenue,Record Property Solutions,Rent
Peterborough,http://opendatacommunities.org/id/unitary-authority/peterborough,Peterborough City Council,Communities,Cohesion,Rents,09/02/2018 00:00,30164681,800,Revenue,Hope Into Action,Rent
Peterborough,http://opendatacommunities.org/id/unitary-authority/peterborough,Peterborough City Council,Communities,Cohesion,Rents,09/02/2018 00:00,30164685,625,Revenue,Record Property Solutions,Rent
Peterborough,http://opendatacommunities.org/id/unitary-authority/peterborough,Peterborough City Council,Communities,Cohesion,Rents,09/02/2018 00:00,30164696,800,Revenue,Rightroom Lettings Ltd,Rent
Peterborough,http://opendatacommunities.org/id/unitary-authority/peterborough,Peterborough City Council,Communities,Housing,Water Services,09/02/2018 00:00,30164707,1455.67,Revenue,Anglian Water,Water
Peterborough,http://opendatacommunities.org/id/unitary-authority/peterborough,Peterborough City Council,Vivacity/Cultural Services,Cultural Services,Water Services,09/02/2018 00:00,30164707,7191.18,Revenue,Anglian Water,Water
Peterborough,http://opendatacommunities.org/id/unitary-authority/peterborough,Peterborough City Council,Education,PFI,Water Services,09/02/2018 00:00,30164707,1884.47,Revenue,Anglian Water,Water
Peterborough,http://opendatacommunities.org/id/unitary-authority/peterborough,Peterborough City Council,Corporate Property,Commercial Propety,Energy Costs,09/02/2018 00:00,30164743,757.34,Revenue,British Gas Business,Electricity
Peterborough,http://opendatacommunities.org/id/unitary-authority/peterborough,Peterborough City Council,Amey Peterborough & Waste Management,Waste & Operational Svs Mgmt,Energy Costs,09/02/2018 00:00,30164743,548.78,Revenue,British Gas Business,Electricity
Peterborough,http://opendatacommunities.org/id/unitary-authority/peterborough,Peterborough City Council,Children's & Safeguarding,Child Health,Energy Costs,09/02/2018 00:00,30164743,543.04,Revenue,British Gas Business,Electricity
Peterborough,http://opendatacommunities.org/id/unitary-authority/peterborough,Peterborough City Council,Westcombe Engineering,Westcombe Engineering,Energy Costs,09/02/2018 00:00,30164743,1107.62,Revenue,British Gas Business,Electricity
Peterborough,http://opendatacommunities.org/id/unitary-authority/peterborough,Peterborough City Council,Adults,Independent Sector Placements,Services,09/02/2018 00:00,30164763,1821.88,Revenue,Athena (Ashlynn Grange),Residential Care
Peterborough,http://opendatacommunities.org/id/unitary-authority/peterborough,Peterborough City Council,Adults,Independent Sector Placements,Services,09/02/2018 00:00,30164766,1821.88,Revenue,Athena (Ashlynn Grange),Residential Care
Peterborough,http://opendatacommunities.org/id/unitary-authority/peterborough,Peterborough City Council,Adults,Independent Sector Placements,Services,09/02/2018 00:00,30164767,1821.88,Revenue,Athena (Ashlynn Grange),Residential Care
Peterborough,http://opendatacommunities.org/id/unitary-authority/peterborough,Peterborough City Council,Adults,Independent Sector Placements,Services,09/02/2018 00:00,30164768,-4022.11,Revenue,Athena (Ashlynn Grange),Residential Care
Peterborough,http://opendatacommunities.org/id/unitary-authority/peterborough,Peterborough City Council,Education,Pupil Referral Unit,Energy Costs,09/02/2018 00:00,30164812,669.79,Revenue,British Gas Business,Electricity
Peterborough,http://opendatacommunities.org/id/unitary-authority/peterborough,Peterborough City Council,Amey Peterborough & Waste Management,Waste & Operational Svs Mgmt,Energy Costs,09/02/2018 00:00,30164812,1464.44,Revenue,British Gas Business,Electricity
Peterborough,http://opendatacommunities.org/id/unitary-authority/peterborough,Peterborough City Council,Amey Peterborough & Waste Management,Waste & Operational Svs Mgmt,Energy Costs,09/02/2018 00:00,30164814,771.78,Revenue,British Gas Business,Electricity
Peterborough,http://opendatacommunities.org/id/unitary-authority/peterborough,Peterborough City Council,Peterborough Highway Services,Transport & Infrastructure Commissioning,Services,09/02/2018 00:00,30164850,1860,Revenue,UK Power Networks (operations) Ltd,Contractors
Peterborough,http://opendatacommunities.org/id/unitary-authority/peterborough,Peterborough City Council,Adults,Independent Sector Placements,Services,09/02/2018 00:00,30164859,5199.8,Revenue,Mencap,Home Care
Peterborough,http://opendatacommunities.org/id/unitary-authority/peterborough,Peterborough City Council,Adults,Independent Sector Placements,Services,09/02/2018 00:00,30164860,6928.35,Revenue,Mencap,Home Care
Peterborough,http://opendatacommunities.org/id/unitary-authority/peterborough,Peterborough City Council,Adults,Independent Sector Placements,Services,09/02/2018 00:00,30164861,5985.2,Revenue,Mencap,Home Care
Peterborough,http://opendatacommunities.org/id/unitary-authority/peterborough,Peterborough City Council,Adults,Independent Sector Placements,Services,09/02/2018 00:00,30164865,1999.8,Revenue,Runwood Homes Ltd,Residential Care
Peterborough,http://opendatacommunities.org/id/unitary-authority/peterborough,Peterborough City Council,Adults,Independent Sector Placements,Services,09/02/2018 00:00,30164867,1928.19,Revenue,Mencap,Home Care
Peterborough,http://opendatacommunities.org/id/unitary-authority/peterborough,Peterborough City Council,Amey Peterborough & Waste Management,Waste & Operational Svs Mgmt,Energy Costs,09/02/2018 00:00,30164900,1062.89,Revenue,British Gas Business,Electricity
Peterborough,http://opendatacommunities.org/id/unitary-authority/peterborough,Peterborough City Council,Vivacity/Cultural Services,Cultural Services,Energy Costs,09/02/2018 00:00,30164900,1306.61,Revenue,British Gas Business,Electricity
Peterborough,http://opendatacommunities.org/id/unitary-authority/peterborough,Peterborough City Council,City Servs & Communications,"Markets, Tourism & Events",Energy Costs,09/02/2018 00:00,30164900,818.66,Revenue,British Gas Business,Electricity
Peterborough,http://opendatacommunities.org/id/unitary-authority/peterborough,Peterborough City Council,Vivacity/Cultural Services,Cultural Services,Energy Costs,09/02/2018 00:00,30164900,2005.8,Revenue,British Gas Business,Electricity
Peterborough,http://opendatacommunities.org/id/unitary-authority/peterborough,Peterborough City Council,Vivacity/Cultural Services,Cultural Services,Energy Costs,09/02/2018 00:00,30164901,2318.31,Revenue,British Gas Business,Electricity
Peterborough,http://opendatacommunities.org/id/unitary-authority/peterborough,Peterborough City Council,Corporate Property,Office Accomodation,Energy Costs,09/02/2018 00:00,30164922,1277.75,Revenue,British Gas Business,Electricity
Peterborough,http://opendatacommunities.org/id/unitary-authority/peterborough,Peterborough City Council,Corporate Property,Commercial Propety,Energy Costs,09/02/2018 00:00,30164922,1964.69,Revenue,British Gas Business,Electricity
Peterborough,http://opendatacommunities.org/id/unitary-authority/peterborough,Peterborough City Council,Adults,Independent Sector Placements,Services,09/02/2018 00:00,30164926,1466.92,Revenue,Hales Group Ltd,Home Care
Peterborough,http://opendatacommunities.org/id/unitary-authority/peterborough,Peterborough City Council,Adults,Independent Sector Placements,Services,09/02/2018 00:00,30164927,596.38,Revenue,Hales Group Ltd,Home Care
Peterborough,http://opendatacommunities.org/id/unitary-authority/peterborough,Peterborough City Council,Adults,Independent Sector Placements,Services,09/02/2018 00:00,30164934,1574.2,Revenue,BUPA Care Homes,Residential Care
Peterborough,http://opendatacommunities.org/id/unitary-authority/peterborough,Peterborough City Council,Adults,Independent Sector Placements,Services,09/02/2018 00:00,30164938,1574.2,Revenue,BUPA Care Homes,Residential Care
Peterborough,http://opendatacommunities.org/id/unitary-authority/peterborough,Peterborough City Council,Corporate,Corporate,Non Revenue,09/02/2018 00:00,30164949,2948.56,Capital,Enterprise Managed Services Limited,Infrastructure
Peterborough,http://opendatacommunities.org/id/unitary-authority/peterborough,Peterborough City Council,Vivacity/Cultural Services,Cultural Services,Water Services,09/02/2018 00:00,30164973,951.91,Revenue,Anglian Water,Water
Peterborough,http://opendatacommunities.org/id/unitary-authority/peterborough,Peterborough City Council,Westcombe Engineering,Westcombe Engineering,"Tools, Equipment, Furniture & Materials",09/02/2018 00:00,30165000,798.7,Revenue,Barron Clark Castings Ltd,Items For Resale
Peterborough,http://opendatacommunities.org/id/unitary-authority/peterborough,Peterborough City Council,Corporate,Corporate,Non Revenue,09/02/2018 00:00,30165020,2583.6,Capital,Reed Specialist Recruitment Limited,Consultants Fees
Peterborough,http://opendatacommunities.org/id/unitary-authority/peterborough,Peterborough City Council,Legal & Democratic,Legal Services,Agency Staff,09/02/2018 00:00,30165023,2025.38,Revenue,Reed Specialist Recruitment Limited,External Temporary Staff
Peterborough,http://opendatacommunities.org/id/unitary-authority/peterborough,Peterborough City Council,Commissioning and Commercial Operations,Commissioning Team,Agency Staff,09/02/2018 00:00,30165024,1808.35,Revenue,Reed Specialist Recruitment Limited,External Temporary Staff
Peterborough,http://opendatacommunities.org/id/unitary-authority/peterborough,Peterborough City Council,Legal & Democratic,Legal Services,Agency Staff,09/02/2018 00:00,30165033,1654.1,Revenue,Reed Specialist Recruitment Limited,External Temporary Staff
Peterborough,http://opendatacommunities.org/id/unitary-authority/peterborough,Peterborough City Council,Communities,Performance & Information,Agency Staff,09/02/2018 00:00,30165064,1621.6,Revenue,Reed Specialist Recruitment Limited,External Temporary Staff
Peterborough,http://opendatacommunities.org/id/unitary-authority/peterborough,Peterborough City Council,Commissioning and Commercial Operations,Early Years & Quality Improvement,Services,09/02/2018 00:00,30165074,1014,Revenue,Busy Bunnies Braybrook,Grant Payment
Peterborough,http://opendatacommunities.org/id/unitary-authority/peterborough,Peterborough City Council,Commissioning and Commercial Operations,Early Years & Quality Improvement,Services,09/02/2018 00:00,30165075,1501.5,Revenue,The Voyager Nursery,Grant Payment
Peterborough,http://opendatacommunities.org/id/unitary-authority/peterborough,Peterborough City Council,Commissioning and Commercial Operations,Early Years & Quality Improvement,Services,09/02/2018 00:00,30165082,858,Revenue,Winyates Pre School,Grant Payment
Peterborough,http://opendatacommunities.org/id/unitary-authority/peterborough,Peterborough City Council,Commissioning and Commercial Operations,Early Years & Quality Improvement,Services,09/02/2018 00:00,30165083,536.25,Revenue,Noah's Ark Pre-School,Grant Payment
Peterborough,http://opendatacommunities.org/id/unitary-authority/peterborough,Peterborough City Council,Commissioning and Commercial Operations,Early Years & Quality Improvement,Services,09/02/2018 00:00,30165084,643.5,Revenue,Castor & Ailsworth Pre School,Grant Payment
Peterborough,http://opendatacommunities.org/id/unitary-authority/peterborough,Peterborough City Council,Commissioning and Commercial Operations,Early Years & Quality Improvement,Services,09/02/2018 00:00,30165086,536.25,Revenue,Family Action,Grant Payment
Peterborough,http://opendatacommunities.org/id/unitary-authority/peterborough,Peterborough City Council,Commissioning and Commercial Operations,Early Years & Quality Improvement,Services,09/02/2018 00:00,30165100,858,Revenue,Sunflower Seed Pre-School,Grant Payment
Peterborough,http://opendatacommunities.org/id/unitary-authority/peterborough,Peterborough City Council,Commercial Group,Strategic Client Services,Services,09/02/2018 00:00,30165109,19944.83,Revenue,Konica Minolta,Photocopying
Peterborough,http://opendatacommunities.org/id/unitary-authority/peterborough,Peterborough City Council,Commercial Group,Strategic Client Services,Services,09/02/2018 00:00,30165110,30714.45,Revenue,Konica Minolta,Photocopying
Peterborough,http://opendatacommunities.org/id/unitary-authority/peterborough,Peterborough City Council,Education,Financing - Resources,Services,09/02/2018 00:00,30165138,2488.04,Revenue,Sense,Education Expenses
Peterborough,http://opendatacommunities.org/id/unitary-authority/peterborough,Peterborough City Council,Education,Financing - Resources,Services,09/02/2018 00:00,30165139,2488.04,Revenue,Sense,Education Expenses
Peterborough,http://opendatacommunities.org/id/unitary-authority/peterborough,Peterborough City Council,Education,Financing - Resources,Services,09/02/2018 00:00,30165140,1109.84,Revenue,Sense,Education Expenses
Peterborough,http://opendatacommunities.org/id/unitary-authority/peterborough,Peterborough City Council,Education,Financing - Resources,Services,09/02/2018 00:00,30165141,2488.04,Revenue,Sense,Education Expenses
Peterborough,http://opendatacommunities.org/id/unitary-authority/peterborough,Peterborough City Council,Education,Financing - Resources,Services,09/02/2018 00:00,30165142,2556.72,Revenue,Sense,Education Expenses
Peterborough,http://opendatacommunities.org/id/unitary-authority/peterborough,Peterborough City Council,Education,Financing - Resources,Services,09/02/2018 00:00,30165144,2488.04,Revenue,Sense,Education Expenses
Peterborough,http://opendatacommunities.org/id/unitary-authority/peterborough,Peterborough City Council,Education,Financing - Resources,Services,09/02/2018 00:00,30165145,2556.72,Revenue,Sense,Education Expenses
Peterborough,http://opendatacommunities.org/id/unitary-authority/peterborough,Peterborough City Council,Education,Financing - Resources,Services,09/02/2018 00:00,30165146,2488.04,Revenue,Sense,Education Expenses
Peterborough,http://opendatacommunities.org/id/unitary-authority/peterborough,Peterborough City Council,Adults,Independent Sector Placements,Services,09/02/2018 00:00,30165165,1070.25,Revenue,COMFORCARE SENIOR SERVICES,Home Care
Peterborough,http://opendatacommunities.org/id/unitary-authority/peterborough,Peterborough City Council,Adults,Independent Sector Placements,Services,09/02/2018 00:00,30165172,1709.88,Revenue,Peterborough Care  The Maltings,Residential Care
Peterborough,http://opendatacommunities.org/id/unitary-authority/peterborough,Peterborough City Council,Adults,Independent Sector Placements,Services,09/02/2018 00:00,30165173,1293.96,Revenue,Peterborough Care  The Maltings,Residential Care
Peterborough,http://opendatacommunities.org/id/unitary-authority/peterborough,Peterborough City Council,Adults,Independent Sector Placements,Services,09/02/2018 00:00,30165174,2347.68,Revenue,Country Court Care Homes Ltd (St Johns),Residential Care
Peterborough,http://opendatacommunities.org/id/unitary-authority/peterborough,Peterborough City Council,Communities,Housing,Services,09/02/2018 00:00,30165178,525,Revenue,Eastfield Guesthouse,Homelessness Bed & Breakfast Costs
Peterborough,http://opendatacommunities.org/id/unitary-authority/peterborough,Peterborough City Council,Communities,Housing,Services,09/02/2018 00:00,30165180,525,Revenue,Eastfield Guesthouse,Homelessness Bed & Breakfast Costs
Peterborough,http://opendatacommunities.org/id/unitary-authority/peterborough,Peterborough City Council,Communities,Housing,Services,09/02/2018 00:00,30165185,525,Revenue,Eastfield Guesthouse,Homelessness Bed & Breakfast Costs
Peterborough,http://opendatacommunities.org/id/unitary-authority/peterborough,Peterborough City Council,Communities,Housing,Services,09/02/2018 00:00,30165189,507.5,Revenue,Eastfield Guesthouse,Homelessness Bed & Breakfast Costs
Peterborough,http://opendatacommunities.org/id/unitary-authority/peterborough,Peterborough City Council,Communities,Housing,Services,09/02/2018 00:00,30165196,507.5,Revenue,Eastfield Guesthouse,Homelessness Bed & Breakfast Costs
Peterborough,http://opendatacommunities.org/id/unitary-authority/peterborough,Peterborough City Council,Communities,Housing,Services,09/02/2018 00:00,30165197,507.5,Revenue,Eastfield Guesthouse,Homelessness Bed & Breakfast Costs
Peterborough,http://opendatacommunities.org/id/unitary-authority/peterborough,Peterborough City Council,Communities,Housing,Services,09/02/2018 00:00,30165199,507.5,Revenue,Eastfield Guesthouse,Homelessness Bed & Breakfast Costs
Peterborough,http://opendatacommunities.org/id/unitary-authority/peterborough,Peterborough City Council,Commissioning and Commercial Operations,Early Years & Quality Improvement,Services,09/02/2018 00:00,30165222,12639.33,Revenue,Stepping Stones Day Nursery,Grant Payment
Peterborough,http://opendatacommunities.org/id/unitary-authority/peterborough,Peterborough City Council,Commissioning and Commercial Operations,Early Years & Quality Improvement,Services,09/02/2018 00:00,30165223,19625.1,Revenue,Bright Star's day Nursery,Grant Payment
Peterborough,http://opendatacommunities.org/id/unitary-authority/peterborough,Peterborough City Council,Commissioning and Commercial Operations,Early Years & Quality Improvement,Services,09/02/2018 00:00,30165224,19520.53,Revenue,Belsize Day Nursery,Grant Payment
Peterborough,http://opendatacommunities.org/id/unitary-authority/peterborough,Peterborough City Council,Education,School Standards & Effectiveness,Services,09/02/2018 00:00,30165229,2210,Revenue,The Bluecoat School,Grant Payment
Peterborough,http://opendatacommunities.org/id/unitary-authority/peterborough,Peterborough City Council,Commissioning and Commercial Operations,Early Years & Quality Improvement,Services,09/02/2018 00:00,30165248,1869.64,Revenue,Redacted Personal Information,Grant Payment
Peterborough,http://opendatacommunities.org/id/unitary-authority/peterborough,Peterborough City Council,Commissioning and Commercial Operations,Early Years & Quality Improvement,Services,09/02/2018 00:00,30165249,878.86,Revenue,Redacted Personal Information,Grant Payment
Peterborough,http://opendatacommunities.org/id/unitary-authority/peterborough,Peterborough City Council,Commissioning and Commercial Operations,Early Years & Quality Improvement,Services,09/02/2018 00:00,30165251,1659.58,Revenue,Redacted Personal Information,Grant Payment
Peterborough,http://opendatacommunities.org/id/unitary-authority/peterborough,Peterborough City Council,Commissioning and Commercial Operations,Early Years & Quality Improvement,Services,09/02/2018 00:00,30165255,942.48,Revenue,Redacted Personal Information,Grant Payment
Peterborough,http://opendatacommunities.org/id/unitary-authority/peterborough,Peterborough City Council,Commissioning and Commercial Operations,Early Years & Quality Improvement,Services,09/02/2018 00:00,30165256,670.21,Revenue,Amys Little Tigers,Grant Payment
Peterborough,http://opendatacommunities.org/id/unitary-authority/peterborough,Peterborough City Council,Commissioning and Commercial Operations,Early Years & Quality Improvement,Services,09/02/2018 00:00,30165257,628.32,Revenue,Redacted Personal Information,Grant Payment
Peterborough,http://opendatacommunities.org/id/unitary-authority/peterborough,Peterborough City Council,Commissioning and Commercial Operations,Early Years & Quality Improvement,Services,09/02/2018 00:00,30165258,544.54,Revenue,Redacted Personal Information,Grant Payment
Peterborough,http://opendatacommunities.org/id/unitary-authority/peterborough,Peterborough City Council,Commissioning and Commercial Operations,Early Years & Quality Improvement,Services,09/02/2018 00:00,30165259,1078.07,Revenue,Redacted Personal Information,Grant Payment
Peterborough,http://opendatacommunities.org/id/unitary-authority/peterborough,Peterborough City Council,Children's & Safeguarding,Children's Social Care,Agency Staff,09/02/2018 00:00,30165262,3730.6,Revenue,Sanctuary Personnel Ltd,External Temporary Staff
Peterborough,http://opendatacommunities.org/id/unitary-authority/peterborough,Peterborough City Council,Commissioning and Commercial Operations,Early Years & Quality Improvement,Services,09/02/2018 00:00,30165267,10678.23,Revenue,Bee Bright Day Nursery,Grant Payment
Peterborough,http://opendatacommunities.org/id/unitary-authority/peterborough,Peterborough City Council,Commissioning and Commercial Operations,Early Years & Quality Improvement,Services,09/02/2018 00:00,30165270,8273.4,Revenue,Beeches Pre-School,Grant Payment
Peterborough,http://opendatacommunities.org/id/unitary-authority/peterborough,Peterborough City Council,Commissioning and Commercial Operations,Early Years & Quality Improvement,Services,09/02/2018 00:00,30165271,7113.3,Revenue,"Family Action ,  Birchtree Pre- School",Grant Payment
Peterborough,http://opendatacommunities.org/id/unitary-authority/peterborough,Peterborough City Council,Commissioning and Commercial Operations,Early Years & Quality Improvement,Services,09/02/2018 00:00,30165272,4773.86,Revenue,Bright Bambini  Montessori,Grant Payment
Peterborough,http://opendatacommunities.org/id/unitary-authority/peterborough,Peterborough City Council,Commissioning and Commercial Operations,Early Years & Quality Improvement,Services,09/02/2018 00:00,30165274,17389.77,Revenue,PSLA,Grant Payment
Peterborough,http://opendatacommunities.org/id/unitary-authority/peterborough,Peterborough City Council,Commissioning and Commercial Operations,Early Years & Quality Improvement,Services,09/02/2018 00:00,30165275,24904.84,Revenue,Bretton Community Pre-School,Grant Payment
Peterborough,http://opendatacommunities.org/id/unitary-authority/peterborough,Peterborough City Council,Commissioning and Commercial Operations,Early Years & Quality Improvement,Services,09/02/2018 00:00,30165276,15240.14,Revenue,Discovery Pre School,Grant Payment
Peterborough,http://opendatacommunities.org/id/unitary-authority/peterborough,Peterborough City Council,Commissioning and Commercial Operations,Early Years & Quality Improvement,Services,09/02/2018 00:00,30165278,16791.6,Revenue,Busy Bunnies Braybrook,Grant Payment
Peterborough,http://opendatacommunities.org/id/unitary-authority/peterborough,Peterborough City Council,Commissioning and Commercial Operations,Early Years & Quality Improvement,Services,09/02/2018 00:00,30165281,12277.62,Revenue,Pakistan Comm Ass of PBoro Pre- School,Grant Payment
Peterborough,http://opendatacommunities.org/id/unitary-authority/peterborough,Peterborough City Council,Commissioning and Commercial Operations,Early Years & Quality Improvement,Services,09/02/2018 00:00,30165282,8925.39,Revenue,East Community Playgroup,Grant Payment
Peterborough,http://opendatacommunities.org/id/unitary-authority/peterborough,Peterborough City Council,Commissioning and Commercial Operations,Early Years & Quality Improvement,Services,09/02/2018 00:00,30165284,14855.46,Revenue,PSLA,Grant Payment
Peterborough,http://opendatacommunities.org/id/unitary-authority/peterborough,Peterborough City Council,Commissioning and Commercial Operations,Early Years & Quality Improvement,Services,09/02/2018 00:00,30165286,30890.69,Revenue,Busy Bunnies Nursery,Grant Payment
Peterborough,http://opendatacommunities.org/id/unitary-authority/peterborough,Peterborough City Council,Commissioning and Commercial Operations,Early Years & Quality Improvement,Services,09/02/2018 00:00,30165287,27867.15,Revenue,Kiddi Caru Day Nursery,Grant Payment
Peterborough,http://opendatacommunities.org/id/unitary-authority/peterborough,Peterborough City Council,Commissioning and Commercial Operations,Early Years & Quality Improvement,Services,09/02/2018 00:00,30165288,11208.15,Revenue,Little Bees Pre-School,Grant Payment
Peterborough,http://opendatacommunities.org/id/unitary-authority/peterborough,Peterborough City Council,Commissioning and Commercial Operations,Early Years & Quality Improvement,Services,09/02/2018 00:00,30165289,6162.9,Revenue,Husaini Pre-School,Grant Payment
Peterborough,http://opendatacommunities.org/id/unitary-authority/peterborough,Peterborough City Council,Commissioning and Commercial Operations,Early Years & Quality Improvement,Services,09/02/2018 00:00,30165290,4504.68,Revenue,Happy Days Playgroup,Grant Payment
Peterborough,http://opendatacommunities.org/id/unitary-authority/peterborough,Peterborough City Council,Commissioning and Commercial Operations,Early Years & Quality Improvement,Services,09/02/2018 00:00,30165291,5581.95,Revenue,Little Angels,Grant Payment
Peterborough,http://opendatacommunities.org/id/unitary-authority/peterborough,Peterborough City Council,Commissioning and Commercial Operations,Early Years & Quality Improvement,Services,09/02/2018 00:00,30165292,11020.5,Revenue,Millfield Pre-School,Grant Payment
Peterborough,http://opendatacommunities.org/id/unitary-authority/peterborough,Peterborough City Council,Commissioning and Commercial Operations,Early Years & Quality Improvement,Services,09/02/2018 00:00,30165293,9678.71,Revenue,Orton Wistow Under Fives,Grant Payment
Peterborough,http://opendatacommunities.org/id/unitary-authority/peterborough,Peterborough City Council,Commissioning and Commercial Operations,Early Years & Quality Improvement,Services,09/02/2018 00:00,30165294,7718.01,Revenue,Little Poppets Day Nursery,Grant Payment
Peterborough,http://opendatacommunities.org/id/unitary-authority/peterborough,Peterborough City Council,Commissioning and Commercial Operations,Early Years & Quality Improvement,Services,09/02/2018 00:00,30165295,43047.52,Revenue,Little Stars Day Nursery,Grant Payment
Peterborough,http://opendatacommunities.org/id/unitary-authority/peterborough,Peterborough City Council,Commissioning and Commercial Operations,Early Years & Quality Improvement,Services,09/02/2018 00:00,30165296,11174.01,Revenue,Shining Stars Pre-School Nursery,Grant Payment
Peterborough,http://opendatacommunities.org/id/unitary-authority/peterborough,Peterborough City Council,Commissioning and Commercial Operations,Early Years & Quality Improvement,Services,09/02/2018 00:00,30165297,16986.66,Revenue,Family Action,Grant Payment
Peterborough,http://opendatacommunities.org/id/unitary-authority/peterborough,Peterborough City Council,Commissioning and Commercial Operations,Early Years & Quality Improvement,Services,09/02/2018 00:00,30165298,6841.05,Revenue,Shiny Stars Pre-School,Grant Payment
Peterborough,http://opendatacommunities.org/id/unitary-authority/peterborough,Peterborough City Council,Commissioning and Commercial Operations,Early Years & Quality Improvement,Services,09/02/2018 00:00,30165299,13914.35,Revenue,Smart Start Nursery Peterborough Ltd,Grant Payment
Peterborough,http://opendatacommunities.org/id/unitary-authority/peterborough,Peterborough City Council,Commissioning and Commercial Operations,Early Years & Quality Improvement,Services,09/02/2018 00:00,30165300,8917.02,Revenue,Family Action,Grant Payment
Peterborough,http://opendatacommunities.org/id/unitary-authority/peterborough,Peterborough City Council,Commissioning and Commercial Operations,Early Years & Quality Improvement,Services,09/02/2018 00:00,30165301,11802.6,Revenue,Stanground St Johns Pre-School,Grant Payment
Peterborough,http://opendatacommunities.org/id/unitary-authority/peterborough,Peterborough City Council,Commissioning and Commercial Operations,Early Years & Quality Improvement,Services,09/02/2018 00:00,30165302,15341.52,Revenue,South Bretton Pre School,Grant Payment
Peterborough,http://opendatacommunities.org/id/unitary-authority/peterborough,Peterborough City Council,Commissioning and Commercial Operations,Early Years & Quality Improvement,Services,09/02/2018 00:00,30165303,12819.13,Revenue,Family Action,Grant Payment
Peterborough,http://opendatacommunities.org/id/unitary-authority/peterborough,Peterborough City Council,Commissioning and Commercial Operations,Early Years & Quality Improvement,Services,09/02/2018 00:00,30165304,32811.06,Revenue,The Day Nursery Peterborough Ltd,Grant Payment
Peterborough,http://opendatacommunities.org/id/unitary-authority/peterborough,Peterborough City Council,Commissioning and Commercial Operations,Early Years & Quality Improvement,Services,09/02/2018 00:00,30165305,40463.5,Revenue,Peterborough Regional College,Grant Payment
Peterborough,http://opendatacommunities.org/id/unitary-authority/peterborough,Peterborough City Council,Commissioning and Commercial Operations,Early Years & Quality Improvement,Services,09/02/2018 00:00,30165316,8951.17,Revenue,The Owls' Nest Pre-School,Grant Payment
Peterborough,http://opendatacommunities.org/id/unitary-authority/peterborough,Peterborough City Council,Adults,Therapy/Reablement/Community Equipment,"Tools, Equipment, Furniture & Materials",09/02/2018 00:00,30165317,2279,Revenue,P F S Builders & Contractors,Occupational Therapy Equipment
Peterborough,http://opendatacommunities.org/id/unitary-authority/peterborough,Peterborough City Council,Commissioning and Commercial Operations,Early Years & Quality Improvement,Services,09/02/2018 00:00,30165319,26550.51,Revenue,Stars Pre-School Welland,Grant Payment
Peterborough,http://opendatacommunities.org/id/unitary-authority/peterborough,Peterborough City Council,Adults,Therapy/Reablement/Community Equipment,"Tools, Equipment, Furniture & Materials",09/02/2018 00:00,30165320,2848,Revenue,P F S Builders & Contractors,Occupational Therapy Equipment
Peterborough,http://opendatacommunities.org/id/unitary-authority/peterborough,Peterborough City Council,Commissioning and Commercial Operations,Early Years & Quality Improvement,Services,09/02/2018 00:00,30165322,10663.32,Revenue,Family Action,Grant Payment
Peterborough,http://opendatacommunities.org/id/unitary-authority/peterborough,Peterborough City Council,Commissioning and Commercial Operations,Early Years & Quality Improvement,Services,09/02/2018 00:00,30165323,15726.22,Revenue,The Teddy Bears inn Day Nursery Ltd,Grant Payment
Peterborough,http://opendatacommunities.org/id/unitary-authority/peterborough,Peterborough City Council,Commissioning and Commercial Operations,Early Years & Quality Improvement,Services,09/02/2018 00:00,30165324,11038.29,Revenue,Young Generation Playgroup,Grant Payment
Peterborough,http://opendatacommunities.org/id/unitary-authority/peterborough,Peterborough City Council,Adults,Finance,Agency Staff,09/02/2018 00:00,30165372,2433.6,Revenue,Reed Specialist Recruitment Limited,External Temporary Staff
Peterborough,http://opendatacommunities.org/id/unitary-authority/peterborough,Peterborough City Council,Adults,Home Services Delivery Model,Third Party Payments,09/02/2018 00:00,30165390,8259.09,Revenue,Cross Keys Homes,Grant-Third Party
Peterborough,http://opendatacommunities.org/id/unitary-authority/peterborough,Peterborough City Council,Public Health,PH Commissioning,Services,09/02/2018 00:00,30165579,543.6,Revenue,Chapter of Peterborough Cathedral,Tickets
Peterborough,http://opendatacommunities.org/id/unitary-authority/peterborough,Peterborough City Council,Education,HTS & CSC Transport,Contract Hire and Operating Leases,09/02/2018 00:00,8000106678,952,Revenue,A2B Euro Cars,Hired Transport
Peterborough,http://opendatacommunities.org/id/unitary-authority/peterborough,Peterborough City Council,Adults,Independent Sector Placements,Services,09/02/2018 00:00,8000106763,813.45,Revenue,MEARS GROUP,Home Care
Peterborough,http://opendatacommunities.org/id/unitary-authority/peterborough,Peterborough City Council,Adults,Independent Sector Placements,Services,09/02/2018 00:00,8000107104,509.7,Revenue,MEARS GROUP,Home Care
Peterborough,http://opendatacommunities.org/id/unitary-authority/peterborough,Peterborough City Council,Adults,Independent Sector Placements,Services,09/02/2018 00:00,8000107106,1018.2,Revenue,MEARS GROUP,Home Care
Peterborough,http://opendatacommunities.org/id/unitary-authority/peterborough,Peterborough City Council,Adults,Independent Sector Placements,Services,09/02/2018 00:00,8000107107,736.26,Revenue,MEARS GROUP,Home Care
Peterborough,http://opendatacommunities.org/id/unitary-authority/peterborough,Peterborough City Council,Adults,Independent Sector Placements,Services,09/02/2018 00:00,8000107110,684.6,Revenue,MEARS GROUP,Home Care
Peterborough,http://opendatacommunities.org/id/unitary-authority/peterborough,Peterborough City Council,Adults,Independent Sector Placements,Services,09/02/2018 00:00,8000107117,1051.2,Revenue,MEARS GROUP,Home Care
Peterborough,http://opendatacommunities.org/id/unitary-authority/peterborough,Peterborough City Council,Adults,Independent Sector Placements,Services,09/02/2018 00:00,8000107118,509.55,Revenue,MEARS GROUP,Home Care
Peterborough,http://opendatacommunities.org/id/unitary-authority/peterborough,Peterborough City Council,Adults,Independent Sector Placements,Services,09/02/2018 00:00,8000107119,871.8,Revenue,MEARS GROUP,Home Care
Peterborough,http://opendatacommunities.org/id/unitary-authority/peterborough,Peterborough City Council,Adults,Independent Sector Placements,Services,09/02/2018 00:00,8000107120,788.85,Revenue,MEARS GROUP,Home Care
Peterborough,http://opendatacommunities.org/id/unitary-authority/peterborough,Peterborough City Council,Adults,Independent Sector Placements,Services,09/02/2018 00:00,8000107121,591.75,Revenue,MEARS GROUP,Home Care
Peterborough,http://opendatacommunities.org/id/unitary-authority/peterborough,Peterborough City Council,Adults,Independent Sector Placements,Services,09/02/2018 00:00,8000107122,625.5,Revenue,MEARS GROUP,Home Care
Peterborough,http://opendatacommunities.org/id/unitary-authority/peterborough,Peterborough City Council,Adults,Independent Sector Placements,Services,09/02/2018 00:00,8000107124,829.2,Revenue,MEARS GROUP,Home Care
Peterborough,http://opendatacommunities.org/id/unitary-authority/peterborough,Peterborough City Council,Adults,Independent Sector Placements,Services,09/02/2018 00:00,8000107134,947.1,Revenue,MEARS GROUP,Home Care
Peterborough,http://opendatacommunities.org/id/unitary-authority/peterborough,Peterborough City Council,Adults,Independent Sector Placements,Services,09/02/2018 00:00,8000107137,759.75,Revenue,MEARS GROUP,Home Care
Peterborough,http://opendatacommunities.org/id/unitary-authority/peterborough,Peterborough City Council,Adults,Independent Sector Placements,Services,09/02/2018 00:00,8000107146,962.1,Revenue,MEARS GROUP,Home Care
Peterborough,http://opendatacommunities.org/id/unitary-authority/peterborough,Peterborough City Council,Adults,Independent Sector Placements,Services,09/02/2018 00:00,8000107149,1750.05,Revenue,MEARS GROUP,Home Care
Peterborough,http://opendatacommunities.org/id/unitary-authority/peterborough,Peterborough City Council,Adults,Independent Sector Placements,Services,09/02/2018 00:00,8000107152,648.45,Revenue,MEARS GROUP,Home Care
Peterborough,http://opendatacommunities.org/id/unitary-authority/peterborough,Peterborough City Council,Adults,Independent Sector Placements,Services,09/02/2018 00:00,8000107155,505.2,Revenue,MEARS GROUP,Home Care
Peterborough,http://opendatacommunities.org/id/unitary-authority/peterborough,Peterborough City Council,Adults,Independent Sector Placements,Services,09/02/2018 00:00,8000107157,799.8,Revenue,MEARS GROUP,Home Care
Peterborough,http://opendatacommunities.org/id/unitary-authority/peterborough,Peterborough City Council,Adults,Independent Sector Placements,Services,09/02/2018 00:00,8000107159,1685.85,Revenue,MEARS GROUP,Home Care
Peterborough,http://opendatacommunities.org/id/unitary-authority/peterborough,Peterborough City Council,Adults,Independent Sector Placements,Services,09/02/2018 00:00,8000107160,538.35,Revenue,MEARS GROUP,Home Care
